Body,Body Name,Date,Transaction Number,Amount,Invoice Number,Supplier Name,Supplier ID,Vat Registration Number,Expense Area,Expense Type,Expense Code,BVACOP,Proclass,Extended Description,Expenditure Type
http://statistics.data.gov.uk/doc/local-authority/33,Norfolk County Council,01-Apr-11,2739810,4351.17,,Redacted - Personal Data,Redacted,,Children's Services,Care Leavers Rent & Accommodation,54160,,,,Revenue
http://statistics.data.gov.uk/doc/local-authority/33,Norfolk County Council,01-Apr-11,2746248,1900,,The Royal Cambridge Hotel,270928,,Community Services,Hospitality Expenses,47970,,,,Revenue
http://statistics.data.gov.uk/doc/local-authority/33,Norfolk County Council,01-Apr-11,2756798,-1900,,The Royal Cambridge Hotel,270928,,Community Services,Hospitality Expenses,47970,,,,Revenue
http://statistics.data.gov.uk/doc/local-authority/33,Norfolk County Council,01-Apr-11,2877627,-2169.94,,Canon Business Solutions,81501,,Children's Services,General Equipment,41480,,,,Revenue
http://statistics.data.gov.uk/doc/local-authority/33,Norfolk County Council,01-Apr-11,2877631,-1427.01,,Canon Business Solutions,81501,,Children's Services,General Equipment,41480,,,,Revenue
http://statistics.data.gov.uk/doc/local-authority/33,Norfolk County Council,01-Apr-11,2885477,501.51,,Canon Business Solutions,81501,,Children's Services,Photocopying - General,46520,,,,Revenue
http://statistics.data.gov.uk/doc/local-authority/33,Norfolk County Council,01-Apr-11,2887631,518.5,,Redacted - Personal Data,Redacted,,Children's Services,Foster Parents Payments,53600,,,,Revenue
http://statistics.data.gov.uk/doc/local-authority/33,Norfolk County Council,01-Apr-11,2892908,1900,,The Royal Cambridge Hotel,270928,,Community Services,Hospitality Expenses,47970,,,,Revenue
http://statistics.data.gov.uk/doc/local-authority/33,Norfolk County Council,01-Apr-11,2915190,22.87,,Canon Business Solutions,81501,,Children's Services,Photocopying - General,46520,,,,Revenue
http://statistics.data.gov.uk/doc/local-authority/33,Norfolk County Council,01-Apr-11,2915190,434.51,,Canon Business Solutions,81501,,Children's Services,Photocopying - General,46520,,,,Revenue
http://statistics.data.gov.uk/doc/local-authority/33,Norfolk County Council,01-Apr-11,2934321,4550,,Norfolk Wildlife Services Ltd,85320,,Environment Transport & Development,Fees/Expenses - Other Consultants,44530,,,,Revenue
http://statistics.data.gov.uk/doc/local-authority/33,Norfolk County Council,01-Apr-11,2935240,75,,NORSE Commercial Services,179148,,Environment Transport & Development,Highway Landscape Maintenance,58550,,,,Revenue
http://statistics.data.gov.uk/doc/local-authority/33,Norfolk County Council,01-Apr-11,2935240,750,,NORSE Commercial Services,179148,,Environment Transport & Development,Highway Landscape Maintenance,58550,,,,Revenue
http://statistics.data.gov.uk/doc/local-authority/33,Norfolk County Council,01-Apr-11,2935240,4707.3,,NORSE Commercial Services,179148,,Environment Transport & Development,Highway Landscape Maintenance,58550,,,,Revenue
http://statistics.data.gov.uk/doc/local-authority/33,Norfolk County Council,01-Apr-11,2939798,729,,John Crane Limited,84060,,Children's Services,Equipment Purchases,40850,,,,Revenue
http://statistics.data.gov.uk/doc/local-authority/33,Norfolk County Council,01-Apr-11,2940282,1690,,Redacted - Personal Data,Redacted,,Community Services,General Equipment/Tools/Materials-Purchase,41490,,,,Revenue
http://statistics.data.gov.uk/doc/local-authority/33,Norfolk County Council,01-Apr-11,2940788,3470,,Stone Computers Ltd,91070,,Children's Services,ICT Equipment Purchases,43900,,,,Revenue
http://statistics.data.gov.uk/doc/local-authority/33,Norfolk County Council,01-Apr-11,2943464,442,,Bennetts (Retail) Ltd (In Administration),66629,,Children's Services,Purchase Of Furniture,C3000,,,,Capital
http://statistics.data.gov.uk/doc/local-authority/33,Norfolk County Council,01-Apr-11,2943485,1422.5,,Eastern Storage Equipment Limited,68600,,Fire & Rescue,Protective Clothing and Uniforms,46350,,,,Revenue
http://statistics.data.gov.uk/doc/local-authority/33,Norfolk County Council,01-Apr-11,2943557,888.5,,Lightbox,193816,,Children's Services,Purchase Of IT,C3200,,,,Capital
http://statistics.data.gov.uk/doc/local-authority/33,Norfolk County Council,01-Apr-11,2943621,1351.02,,EOn Energy,126499,,Children's Services,Electricity,24340,,,,Revenue
http://statistics.data.gov.uk/doc/local-authority/33,Norfolk County Council,01-Apr-11,2945068,1243.58,,Stannah Lift Services Ltd,74920,,Resources,Lifts Maintenance & Repairs,A1680,,,,Revenue
http://statistics.data.gov.uk/doc/local-authority/33,Norfolk County Council,01-Apr-11,2945070,552.56,,Province Building Services Ltd,171598,,Children's Services,Minor Building Repairs,A1800,,,,Revenue
http://statistics.data.gov.uk/doc/local-authority/33,Norfolk County Council,01-Apr-11,2945082,1717.95,,F W Hendry (Kings Lynn) Limited,68852,,Children's Services,School Equipment Inspection/Testing,A3610,,,,Revenue
http://statistics.data.gov.uk/doc/local-authority/33,Norfolk County Council,01-Apr-11,2945089,1124,,Stone Computers Ltd,91070,,Children's Services,ICT Equipment Purchases,43900,,,,Revenue
http://statistics.data.gov.uk/doc/local-authority/33,Norfolk County Council,01-Apr-11,2945489,577.86,,Tarmac Ltd,75281,,Environment Transport & Development,Materials Purchases,42160,,,,Revenue
http://statistics.data.gov.uk/doc/local-authority/33,Norfolk County Council,01-Apr-11,2945490,665.52,,Tarmac Ltd,75281,,Environment Transport & Development,Materials Purchases,42160,,,,Revenue
http://statistics.data.gov.uk/doc/local-authority/33,Norfolk County Council,01-Apr-11,2945493,3031.68,,May Gurney Ltd,71794,,Environment Transport & Development,Materials Purchases,42160,,,,Revenue
http://statistics.data.gov.uk/doc/local-authority/33,Norfolk County Council,01-Apr-11,2945494,557.32,,May Gurney Ltd,71794,,Environment Transport & Development,Materials Purchases,42160,,,,Revenue
http://statistics.data.gov.uk/doc/local-authority/33,Norfolk County Council,01-Apr-11,2945497,810,,Furnitubes International Ltd,82918,,Environment Transport & Development,Materials Purchases,42160,,,,Revenue
http://statistics.data.gov.uk/doc/local-authority/33,Norfolk County Council,01-Apr-11,2945498,316.53,,Bagnall & Morris Limited,66510,,Environment Transport & Development,Road Maintenance Contractor Payments,45070,,,,Revenue
http://statistics.data.gov.uk/doc/local-authority/33,Norfolk County Council,01-Apr-11,2945498,140.68,,Bagnall & Morris Limited,66510,,Environment Transport & Development,Road Maintenance Contractor Payments,45070,,,,Revenue
http://statistics.data.gov.uk/doc/local-authority/33,Norfolk County Council,01-Apr-11,2945502,531.42,,WOLSELEY UK LTD,76320,,Environment Transport & Development,Materials Purchases,42160,,,,Revenue
http://statistics.data.gov.uk/doc/local-authority/33,Norfolk County Council,01-Apr-11,2945505,826.45,,WOLSELEY UK LTD,76320,,Environment Transport & Development,Materials Purchases,42160,,,,Revenue
http://statistics.data.gov.uk/doc/local-authority/33,Norfolk County Council,01-Apr-11,2945506,779.21,,WOLSELEY UK LTD,76320,,Environment Transport & Development,Materials Purchases,42160,,,,Revenue
http://statistics.data.gov.uk/doc/local-authority/33,Norfolk County Council,01-Apr-11,2945508,446.26,,Cemmex UK Operations,104398,,Environment Transport & Development,Materials Purchases,42160,,,,Revenue
http://statistics.data.gov.uk/doc/local-authority/33,Norfolk County Council,01-Apr-11,2945510,576,,WOLSELEY UK LTD,76320,,Environment Transport & Development,Direct Materials,42150,,,,Revenue
http://statistics.data.gov.uk/doc/local-authority/33,Norfolk County Council,01-Apr-11,2945511,809.25,,Bure Valley Plant Hire Limited,66943,,Environment Transport & Development,Contract Plant & Machinery Hire,34930,,,,Revenue
http://statistics.data.gov.uk/doc/local-authority/33,Norfolk County Council,01-Apr-11,2945512,500,,Richard Church,73909,,Environment Transport & Development,Road Maintenance Contractor Payments,45070,,,,Revenue
http://statistics.data.gov.uk/doc/local-authority/33,Norfolk County Council,01-Apr-11,2946897,3917,,NPS Property Consultants Ltd,72669,,Community Services,Marketing Design Costs,47090,,,,Revenue
http://statistics.data.gov.uk/doc/local-authority/33,Norfolk County Council,01-Apr-11,2948579,1531.2,,Mansion House Bedding Co Ltd,93505,,Community Services,Furniture Purchases,40930,,,,Revenue
http://statistics.data.gov.uk/doc/local-authority/33,Norfolk County Council,01-Apr-11,2948647,1793.51,,Mas Services East Anglia Ltd,84846,,Community Services,Construction Cost-Adoption/Improvement Building,C2450,,,,Capital
http://statistics.data.gov.uk/doc/local-authority/33,Norfolk County Council,01-Apr-11,2948753,334.85,,N D Brown Limited,72143,,Environment Transport & Development,Contract Plant & Machinery Hire,34930,,,,Revenue
http://statistics.data.gov.uk/doc/local-authority/33,Norfolk County Council,01-Apr-11,2948753,157.95,,N D Brown Limited,72143,,Environment Transport & Development,Contract Plant & Machinery Hire,34930,,,,Revenue
http://statistics.data.gov.uk/doc/local-authority/33,Norfolk County Council,01-Apr-11,2948758,492.8,,N D Brown Limited,72143,,Environment Transport & Development,Contract Plant & Machinery Hire,34930,,,,Revenue
http://statistics.data.gov.uk/doc/local-authority/33,Norfolk County Council,01-Apr-11,2948759,492.8,,N D Brown Limited,72143,,Environment Transport & Development,Contract Plant & Machinery Hire,34930,,,,Revenue
http://statistics.data.gov.uk/doc/local-authority/33,Norfolk County Council,01-Apr-11,2948760,492.8,,N D Brown Limited,72143,,Environment Transport & Development,Contract Plant & Machinery Hire,34930,,,,Revenue
http://statistics.data.gov.uk/doc/local-authority/33,Norfolk County Council,01-Apr-11,2948763,550.72,,Cemmex UK Operations,104398,,Environment Transport & Development,Materials Purchases,42160,,,,Revenue
http://statistics.data.gov.uk/doc/local-authority/33,Norfolk County Council,01-Apr-11,2948769,658.92,,IRS Limited,70031,,Environment Transport & Development,Materials Purchases,42160,,,,Revenue
http://statistics.data.gov.uk/doc/local-authority/33,Norfolk County Council,01-Apr-11,2948770,747,,Bure Valley Plant Hire Limited,66943,,Environment Transport & Development,Contract Plant & Machinery Hire,34930,,,,Revenue
http://statistics.data.gov.uk/doc/local-authority/33,Norfolk County Council,01-Apr-11,2948770,192.5,,Bure Valley Plant Hire Limited,66943,,Environment Transport & Development,Contract Plant & Machinery Hire,34930,,,,Revenue
http://statistics.data.gov.uk/doc/local-authority/33,Norfolk County Council,01-Apr-11,2948771,913,,Bure Valley Plant Hire Limited,66943,,Environment Transport & Development,Contract Plant & Machinery Hire,34930,,,,Revenue
http://statistics.data.gov.uk/doc/local-authority/33,Norfolk County Council,01-Apr-11,2948772,460.6,,K Plant Ltd,70746,,Environment Transport & Development,Contract Plant & Machinery Hire,34930,,,,Revenue
http://statistics.data.gov.uk/doc/local-authority/33,Norfolk County Council,01-Apr-11,2948772,394.8,,K Plant Ltd,70746,,Environment Transport & Development,Contract Plant & Machinery Hire,34930,,,,Revenue
http://statistics.data.gov.uk/doc/local-authority/33,Norfolk County Council,01-Apr-11,2948780,1246,,Middleton Aggregates Limited,71882,,Environment Transport & Development,Contract Plant & Machinery Hire,34930,,,,Revenue
http://statistics.data.gov.uk/doc/local-authority/33,Norfolk County Council,01-Apr-11,2948781,595.38,,Breedon Aggregates England Limited,385026,,Environment Transport & Development,Materials Purchases,42160,,,,Revenue
http://statistics.data.gov.uk/doc/local-authority/33,Norfolk County Council,01-Apr-11,2948785,1152.16,,Middleton Aggregates Limited,71882,,Environment Transport & Development,Direct Materials,42150,,,,Revenue
http://statistics.data.gov.uk/doc/local-authority/33,Norfolk County Council,01-Apr-11,2948786,1155.31,,Middleton Aggregates Limited,71882,,Environment Transport & Development,Direct Materials,42150,,,,Revenue
http://statistics.data.gov.uk/doc/local-authority/33,Norfolk County Council,01-Apr-11,2948787,1131.7,,Middleton Aggregates Limited,71882,,Environment Transport & Development,Direct Materials,42150,,,,Revenue
http://statistics.data.gov.uk/doc/local-authority/33,Norfolk County Council,01-Apr-11,2948790,448.07,,May Gurney Ltd,71794,,Environment Transport & Development,Materials Purchases,42160,,,,Revenue
http://statistics.data.gov.uk/doc/local-authority/33,Norfolk County Council,01-Apr-11,2948791,434.49,,May Gurney Ltd,71794,,Environment Transport & Development,Materials Purchases,42160,,,,Revenue
http://statistics.data.gov.uk/doc/local-authority/33,Norfolk County Council,01-Apr-11,2948796,420.91,,May Gurney Ltd,71794,,Environment Transport & Development,Materials Purchases,42160,,,,Revenue
http://statistics.data.gov.uk/doc/local-authority/33,Norfolk County Council,01-Apr-11,2948797,420.91,,May Gurney Ltd,71794,,Environment Transport & Development,Materials Purchases,42160,,,,Revenue
http://statistics.data.gov.uk/doc/local-authority/33,Norfolk County Council,01-Apr-11,2949214,3896.42,,Credit Agricole Commercial Finance,477416,,Children's Services,Building Alterations & Improvements,23610,,,,Revenue
http://statistics.data.gov.uk/doc/local-authority/33,Norfolk County Council,01-Apr-11,2949222,2750,,Credit Agricole Commercial Finance,477416,,Children's Services,Building Alterations & Improvements,23610,,,,Revenue
http://statistics.data.gov.uk/doc/local-authority/33,Norfolk County Council,01-Apr-11,2950317,893.2,,Phoenix Software Limited,73240,,Children's Services,ICT Equipment Purchases,43900,,,,Revenue
http://statistics.data.gov.uk/doc/local-authority/33,Norfolk County Council,01-Apr-11,2950531,6861.33,,T & P Fire Ltd,172967,,Resources,Fire Alarms,A1690,,,,Revenue
http://statistics.data.gov.uk/doc/local-authority/33,Norfolk County Council,01-Apr-11,2950887,518.48,,The Assist Trust,75365,,Community Services,Day Care / Supported Activities,52160,,,,Revenue
http://statistics.data.gov.uk/doc/local-authority/33,Norfolk County Council,01-Apr-11,2950890,518.48,,The Assist Trust,75365,,Community Services,Day Care / Supported Activities,52160,,,,Revenue
http://statistics.data.gov.uk/doc/local-authority/33,Norfolk County Council,01-Apr-11,2950905,518.48,,The Assist Trust,75365,,Community Services,Day Care / Supported Activities,52160,,,,Revenue
http://statistics.data.gov.uk/doc/local-authority/33,Norfolk County Council,01-Apr-11,2950907,864,,Community Products (UK) Ltd,67627,,Children's Services,Loose Furniture & Fittings-General,41250,,,,Revenue
http://statistics.data.gov.uk/doc/local-authority/33,Norfolk County Council,01-Apr-11,2950910,432,,Community Products (UK) Ltd,67627,,Children's Services,Loose Furniture & Fittings-General,41250,,,,Revenue
http://statistics.data.gov.uk/doc/local-authority/33,Norfolk County Council,01-Apr-11,2950912,432,,Community Products (UK) Ltd,67627,,Children's Services,Loose Furniture & Fittings-General,41250,,,,Revenue
http://statistics.data.gov.uk/doc/local-authority/33,Norfolk County Council,01-Apr-11,2950913,518.48,,The Assist Trust,75365,,Community Services,Day Care / Supported Activities,52160,,,,Revenue
http://statistics.data.gov.uk/doc/local-authority/33,Norfolk County Council,01-Apr-11,2950918,518.48,,The Assist Trust,75365,,Community Services,Day Care / Supported Activities,52160,,,,Revenue
http://statistics.data.gov.uk/doc/local-authority/33,Norfolk County Council,01-Apr-11,2950922,782.47,,Comet Group Plc,67611,,Children's Services,Equipment Purchases,40850,,,,Revenue
http://statistics.data.gov.uk/doc/local-authority/33,Norfolk County Council,01-Apr-11,2950923,518.48,,The Assist Trust,75365,,Community Services,Day Care / Supported Activities,52160,,,,Revenue
http://statistics.data.gov.uk/doc/local-authority/33,Norfolk County Council,01-Apr-11,2950925,518.48,,The Assist Trust,75365,,Community Services,Day Care / Supported Activities,52160,,,,Revenue
http://statistics.data.gov.uk/doc/local-authority/33,Norfolk County Council,01-Apr-11,2950934,518.48,,The Assist Trust,75365,,Community Services,Day Care / Supported Activities,52160,,,,Revenue
http://statistics.data.gov.uk/doc/local-authority/33,Norfolk County Council,01-Apr-11,2951944,1005,,Lightbox,193816,,Children's Services,ICT Equipment Purchases,43900,,,,Revenue
http://statistics.data.gov.uk/doc/local-authority/33,Norfolk County Council,01-Apr-11,2953042,1950,,Redacted - Personal Data,Redacted,,Children's Services,Equipment Purchases,40850,,,,Revenue
http://statistics.data.gov.uk/doc/local-authority/33,Norfolk County Council,01-Apr-11,2953126,900,,Tribal Education Limited,75755,,Children's Services,"ICT Software Purchases, Licenses & Maintenance",44170,,,,Revenue
http://statistics.data.gov.uk/doc/local-authority/33,Norfolk County Council,01-Apr-11,2953131,416.85,,Konica Minolta Business Solutions East Ltd,70912,,Children's Services,Rents and Hire of Premises & Facilities,24500,,,,Revenue
http://statistics.data.gov.uk/doc/local-authority/33,Norfolk County Council,01-Apr-11,2953145,490,,A & P Chambers Ltd,98603,,Environment Transport & Development,"Equipment Repairs, Maintenance & Servicing",40320,,,,Revenue
http://statistics.data.gov.uk/doc/local-authority/33,Norfolk County Council,01-Apr-11,2953189,2625,,Briar Services Limited,66797,,Children's Services,Construction Cost-Adoption/Improvement Building,C2450,,,,Capital
http://statistics.data.gov.uk/doc/local-authority/33,Norfolk County Council,01-Apr-11,2953191,1449.95,,Lloyds TSB Commercial Finance,74440,,Children's Services,Construction Cost-Adoption/Improvement Building,C2450,,,,Capital
http://statistics.data.gov.uk/doc/local-authority/33,Norfolk County Council,01-Apr-11,2953208,1133.5,,Mannpower Electrical Services Limited,71699,,Community Services,"Certificate - Electricity, Power & Light",C2780,,,,Capital
http://statistics.data.gov.uk/doc/local-authority/33,Norfolk County Council,01-Apr-11,2953222,585,,Redacted - Personal Data,Redacted,,Children's Services,Other Hired & Contracted Services,44810,,,,Revenue
http://statistics.data.gov.uk/doc/local-authority/33,Norfolk County Council,01-Apr-11,2953550,710.36,,Marshalls Mono Ltd,71752,,Environment Transport & Development,Materials Purchases,42160,,,,Revenue
http://statistics.data.gov.uk/doc/local-authority/33,Norfolk County Council,01-Apr-11,2953561,693.3,,Tarmac Ltd,75281,,Environment Transport & Development,Materials Purchases,42160,,,,Revenue
http://statistics.data.gov.uk/doc/local-authority/33,Norfolk County Council,01-Apr-11,2953562,487.36,,Tarmac Ltd,75281,,Environment Transport & Development,Materials Purchases,42160,,,,Revenue
http://statistics.data.gov.uk/doc/local-authority/33,Norfolk County Council,01-Apr-11,2953563,964.33,,Tarmac Ltd,75281,,Environment Transport & Development,Materials Purchases,42160,,,,Revenue
http://statistics.data.gov.uk/doc/local-authority/33,Norfolk County Council,01-Apr-11,2953563,610.47,,Tarmac Ltd,75281,,Environment Transport & Development,Materials Purchases,42160,,,,Revenue
http://statistics.data.gov.uk/doc/local-authority/33,Norfolk County Council,01-Apr-11,2953564,1486.86,,Tarmac Ltd,75281,,Environment Transport & Development,Materials Purchases,42160,,,,Revenue
http://statistics.data.gov.uk/doc/local-authority/33,Norfolk County Council,01-Apr-11,2953567,1225,,Tarmac Ltd,75281,,Environment Transport & Development,Materials Purchases,42160,,,,Revenue
http://statistics.data.gov.uk/doc/local-authority/33,Norfolk County Council,01-Apr-11,2953568,819.72,,Tarmac Ltd,75281,,Environment Transport & Development,Materials Purchases,42160,,,,Revenue
http://statistics.data.gov.uk/doc/local-authority/33,Norfolk County Council,01-Apr-11,2953569,631.42,,Tarmac Ltd,75281,,Environment Transport & Development,Materials Purchases,42160,,,,Revenue
http://statistics.data.gov.uk/doc/local-authority/33,Norfolk County Council,01-Apr-11,2953570,462.43,,WOLSELEY UK LTD,76320,,Environment Transport & Development,Materials Purchases,42160,,,,Revenue
http://statistics.data.gov.uk/doc/local-authority/33,Norfolk County Council,01-Apr-11,2953574,1770,,WOLSELEY UK LTD,76320,,Environment Transport & Development,Materials Purchases,42160,,,,Revenue
http://statistics.data.gov.uk/doc/local-authority/33,Norfolk County Council,01-Apr-11,2953578,612.31,,IRS Limited,70031,,Environment Transport & Development,Materials Purchases,42160,,,,Revenue
http://statistics.data.gov.uk/doc/local-authority/33,Norfolk County Council,01-Apr-11,2953579,483.45,,IRS Limited,70031,,Environment Transport & Development,Materials Purchases,42160,,,,Revenue
http://statistics.data.gov.uk/doc/local-authority/33,Norfolk County Council,01-Apr-11,2953580,1057.38,,Breedon Aggregates England Limited,385026,,Environment Transport & Development,Materials Purchases,42160,,,,Revenue
http://statistics.data.gov.uk/doc/local-authority/33,Norfolk County Council,01-Apr-11,2953581,420.23,,FRIMSTONE LTD,69097,,Environment Transport & Development,Materials Purchases,42160,,,,Revenue
http://statistics.data.gov.uk/doc/local-authority/33,Norfolk County Council,01-Apr-11,2953582,482.22,,Breedon Aggregates England Limited,385026,,Environment Transport & Development,Direct Materials,42150,,,,Revenue
http://statistics.data.gov.uk/doc/local-authority/33,Norfolk County Council,01-Apr-11,2953583,567.93,,Cemmex UK Operations,104398,,Environment Transport & Development,Materials Purchases,42160,,,,Revenue
http://statistics.data.gov.uk/doc/local-authority/33,Norfolk County Council,01-Apr-11,2953584,1180.32,,Marshalls Mono Ltd,71752,,Environment Transport & Development,Materials Purchases,42160,,,,Revenue
http://statistics.data.gov.uk/doc/local-authority/33,Norfolk County Council,01-Apr-11,2953585,473.5,,Architectural Street Furnishings,66213,,Environment Transport & Development,Materials Purchases,42160,,,,Revenue
http://statistics.data.gov.uk/doc/local-authority/33,Norfolk County Council,01-Apr-11,2953587,325,,Direct Plant Supplies Limited,68254,,Environment Transport & Development,Materials Purchases,42160,,,,Revenue
http://statistics.data.gov.uk/doc/local-authority/33,Norfolk County Council,01-Apr-11,2953587,436,,Direct Plant Supplies Limited,68254,,Environment Transport & Development,Materials Purchases,42160,,,,Revenue
http://statistics.data.gov.uk/doc/local-authority/33,Norfolk County Council,01-Apr-11,2953590,5344.94,,Breedon Aggregates England Limited,385026,,Environment Transport & Development,Materials Purchases,42160,,,,Revenue
http://statistics.data.gov.uk/doc/local-authority/33,Norfolk County Council,01-Apr-11,2953591,3474.14,,Breedon Aggregates England Limited,385026,,Environment Transport & Development,Materials Purchases,42160,,,,Revenue
http://statistics.data.gov.uk/doc/local-authority/33,Norfolk County Council,01-Apr-11,2953592,3510.46,,Breedon Aggregates England Limited,385026,,Environment Transport & Development,Materials Purchases,42160,,,,Revenue
http://statistics.data.gov.uk/doc/local-authority/33,Norfolk County Council,01-Apr-11,2953597,434.49,,May Gurney Ltd,71794,,Environment Transport & Development,Materials Purchases,42160,,,,Revenue
http://statistics.data.gov.uk/doc/local-authority/33,Norfolk County Council,01-Apr-11,2953703,930,,Matthew Williams Digger Hire Ltd,167732,,Environment Transport & Development,Contract Plant & Machinery Hire,34930,,,,Revenue
http://statistics.data.gov.uk/doc/local-authority/33,Norfolk County Council,01-Apr-11,2953704,352,,Matthew Williams Digger Hire Ltd,167732,,Environment Transport & Development,Contract Plant & Machinery Hire,34930,,,,Revenue
http://statistics.data.gov.uk/doc/local-authority/33,Norfolk County Council,01-Apr-11,2953704,539,,Matthew Williams Digger Hire Ltd,167732,,Environment Transport & Development,Direct Labour Organisation Plant,34980,,,,Revenue
http://statistics.data.gov.uk/doc/local-authority/33,Norfolk County Council,01-Apr-11,2953844,3588,,ARH Groundworks Ltd,411135,,Environment Transport & Development,Contract Plant & Machinery Hire,34930,,,,Revenue
http://statistics.data.gov.uk/doc/local-authority/33,Norfolk County Council,01-Apr-11,2953844,2353,,ARH Groundworks Ltd,411135,,Environment Transport & Development,Contract Plant & Machinery Hire,34930,,,,Revenue
http://statistics.data.gov.uk/doc/local-authority/33,Norfolk County Council,01-Apr-11,2953844,1393,,ARH Groundworks Ltd,411135,,Environment Transport & Development,Contract Plant & Machinery Hire,34930,,,,Revenue
http://statistics.data.gov.uk/doc/local-authority/33,Norfolk County Council,01-Apr-11,2953844,69,,ARH Groundworks Ltd,411135,,Environment Transport & Development,Contract Plant & Machinery Hire,34930,,,,Revenue
http://statistics.data.gov.uk/doc/local-authority/33,Norfolk County Council,01-Apr-11,2953929,1632.2,,Weber Rescue UK Ltd,136157,,Fire & Rescue,Other Operational Equipment-Purchase,40310,,,,Revenue
http://statistics.data.gov.uk/doc/local-authority/33,Norfolk County Council,01-Apr-11,2954261,479.64,,J K Brock Builders (Dereham) Limited,70350,,Children's Services,Minor Building Repairs,A3800,,,,Revenue
http://statistics.data.gov.uk/doc/local-authority/33,Norfolk County Council,01-Apr-11,2954268,947.52,,Admiral Civil Engineering Ltd,132632,,Children's Services,Structural Building Work,A3010,,,,Revenue
http://statistics.data.gov.uk/doc/local-authority/33,Norfolk County Council,01-Apr-11,2954356,1312.67,,Arco Limited,66217,,Fire & Rescue,Other Operational Equipment-Purchase,40310,,,,Revenue
http://statistics.data.gov.uk/doc/local-authority/33,Norfolk County Council,01-Apr-11,2954373,902.7,,Medical Gas Solutions Ltd,154525,,Fire & Rescue,Other Operational Equipment-Purchase,40310,,,,Revenue
http://statistics.data.gov.uk/doc/local-authority/33,Norfolk County Council,01-Apr-11,2954384,418.55,,Supplies Team Ltd,116242,,Community Services,"Printing, Stationery and Photocopying",46500,,,,Revenue
http://statistics.data.gov.uk/doc/local-authority/33,Norfolk County Council,01-Apr-11,2954394,579.04,,Supplies Team Ltd,116242,,Children's Services,Computer Stationery,46550,,,,Revenue
http://statistics.data.gov.uk/doc/local-authority/33,Norfolk County Council,01-Apr-11,2954399,1373,,Briar Services Limited,66797,,Children's Services,Electrical & Mechanical Maintenance.,A3790,,,,Revenue
http://statistics.data.gov.uk/doc/local-authority/33,Norfolk County Council,01-Apr-11,2954481,52.5,,Imtech Aqua Maintenance Ltd,284255,,Community Services,Boiler Servicing,A1660,,,,Revenue
http://statistics.data.gov.uk/doc/local-authority/33,Norfolk County Council,01-Apr-11,2954481,1000.31,,Imtech Aqua Maintenance Ltd,284255,,Community Services,Boiler Servicing,A1660,,,,Revenue
http://statistics.data.gov.uk/doc/local-authority/33,Norfolk County Council,01-Apr-11,2954481,316.21,,Imtech Aqua Maintenance Ltd,284255,,Community Services,Minor Building Repairs,A1800,,,,Revenue
http://statistics.data.gov.uk/doc/local-authority/33,Norfolk County Council,01-Apr-11,2954481,286.9,,Imtech Aqua Maintenance Ltd,284255,,Children's Services,Boiler Servicing,A3660,,,,Revenue
http://statistics.data.gov.uk/doc/local-authority/33,Norfolk County Council,01-Apr-11,2954481,175,,Imtech Aqua Maintenance Ltd,284255,,Children's Services,Boiler Servicing,A3660,,,,Revenue
http://statistics.data.gov.uk/doc/local-authority/33,Norfolk County Council,01-Apr-11,2954490,465.16,,Imtech Aqua Maintenance Ltd,284255,,Community Services,Boiler Servicing,A1660,,,,Revenue
http://statistics.data.gov.uk/doc/local-authority/33,Norfolk County Council,01-Apr-11,2954490,193.5,,Imtech Aqua Maintenance Ltd,284255,,Children's Services,Gas Pressure Testing,A3640,,,,Revenue
http://statistics.data.gov.uk/doc/local-authority/33,Norfolk County Council,01-Apr-11,2954490,558.36,,Imtech Aqua Maintenance Ltd,284255,,Children's Services,Boiler Servicing,A3660,,,,Revenue
http://statistics.data.gov.uk/doc/local-authority/33,Norfolk County Council,01-Apr-11,2954490,396.3,,Imtech Aqua Maintenance Ltd,284255,,Children's Services,Boiler Servicing,A3660,,,,Revenue
http://statistics.data.gov.uk/doc/local-authority/33,Norfolk County Council,01-Apr-11,2954490,296.58,,Imtech Aqua Maintenance Ltd,284255,,Children's Services,Boiler Servicing,A3660,,,,Revenue
http://statistics.data.gov.uk/doc/local-authority/33,Norfolk County Council,01-Apr-11,2954490,70,,Imtech Aqua Maintenance Ltd,284255,,Children's Services,Boiler Servicing,A3660,,,,Revenue
http://statistics.data.gov.uk/doc/local-authority/33,Norfolk County Council,01-Apr-11,2954490,267.65,,Imtech Aqua Maintenance Ltd,284255,,Children's Services,Boiler Servicing,A3660,,,,Revenue
http://statistics.data.gov.uk/doc/local-authority/33,Norfolk County Council,01-Apr-11,2954490,825.02,,Imtech Aqua Maintenance Ltd,284255,,Children's Services,Electrical Installation Testing,A3700,,,,Revenue
http://statistics.data.gov.uk/doc/local-authority/33,Norfolk County Council,01-Apr-11,2954490,708.86,,Imtech Aqua Maintenance Ltd,284255,,Children's Services,Electrical Installation Testing,A3700,,,,Revenue
http://statistics.data.gov.uk/doc/local-authority/33,Norfolk County Council,01-Apr-11,2954490,233.3,,Imtech Aqua Maintenance Ltd,284255,,Children's Services,Electrical Installation Testing,A3700,,,,Revenue
http://statistics.data.gov.uk/doc/local-authority/33,Norfolk County Council,01-Apr-11,2954508,796.65,,Mercury & Phillips Signs,71840,,Community Services,Purchase Of Furniture,C3000,,,,Capital
http://statistics.data.gov.uk/doc/local-authority/33,Norfolk County Council,01-Apr-11,2954512,649.75,,Mercury & Phillips Signs,71840,,Community Services,Purchase Of Furniture,C3000,,,,Capital
http://statistics.data.gov.uk/doc/local-authority/33,Norfolk County Council,01-Apr-11,2954576,734,,Comm Tech Martham Limited,67613,,Fire & Rescue,Wireless-Installation Charges,43650,,,,Revenue
http://statistics.data.gov.uk/doc/local-authority/33,Norfolk County Council,01-Apr-11,2954593,1440,,Tunstall Healthcare (UK) Ltd,177113,,Community Services,Assistive Technology Equipment,41380,,,,Revenue
http://statistics.data.gov.uk/doc/local-authority/33,Norfolk County Council,01-Apr-11,2954599,700,,Tunstall Healthcare (UK) Ltd,177113,,Community Services,Assistive Technology Equipment,41380,,,,Revenue
http://statistics.data.gov.uk/doc/local-authority/33,Norfolk County Council,01-Apr-11,2954609,525.74,,Westholme Ltd,76230,,Community Services,Assistive Technology Equipment,41380,,,,Revenue
http://statistics.data.gov.uk/doc/local-authority/33,Norfolk County Council,01-Apr-11,2954791,85460.69,,Broadland District Council,81171,,Environment Transport & Development,Waste Disposal & Recycling Payments,52560,,,,Revenue
http://statistics.data.gov.uk/doc/local-authority/33,Norfolk County Council,01-Apr-11,2954846,801.18,,Daniels Plumbers Ltd,82125,,Children's Services,Building Repairs,A3780,,,,Revenue
http://statistics.data.gov.uk/doc/local-authority/33,Norfolk County Council,01-Apr-11,2954880,523.35,,Eyre (Electrical) Limited,68818,,Children's Services,Minor Building Repairs,A3800,,,,Revenue
http://statistics.data.gov.uk/doc/local-authority/33,Norfolk County Council,01-Apr-11,2954897,1875,,J K Brock Builders (Dereham) Limited,70350,,Children's Services,Building Repairs,A3780,,,,Revenue
http://statistics.data.gov.uk/doc/local-authority/33,Norfolk County Council,01-Apr-11,2954902,1052,,Eyre (Electrical) Limited,68818,,Children's Services,Building Repairs,A3780,,,,Revenue
http://statistics.data.gov.uk/doc/local-authority/33,Norfolk County Council,01-Apr-11,2955001,1700,,A C Emmerson Ltd,65614,,Children's Services,Construction Costs-Mobile Classrooms,C2460,,,,Capital
http://statistics.data.gov.uk/doc/local-authority/33,Norfolk County Council,01-Apr-11,2955088,518.48,,The Assist Trust,75365,,Community Services,Day Care / Supported Activities,52160,,,,Revenue
http://statistics.data.gov.uk/doc/local-authority/33,Norfolk County Council,01-Apr-11,2955135,1705.95,,Sense-Children & Adult Services,74507,,Community Services,Day Care / Supported Activities,52160,,,,Revenue
http://statistics.data.gov.uk/doc/local-authority/33,Norfolk County Council,01-Apr-11,2955147,2625,,Sense-Children & Adult Services,74507,,Community Services,Day Care / Supported Activities,52160,,,,Revenue
http://statistics.data.gov.uk/doc/local-authority/33,Norfolk County Council,01-Apr-11,2955282,718.05,,Compass Services Uk & Ireland Ltd,67633,,Resources,Hire Of Premises,24540,,,,Revenue
http://statistics.data.gov.uk/doc/local-authority/33,Norfolk County Council,01-Apr-11,2955283,793.05,,Compass Services Uk & Ireland Ltd,67633,,Resources,Hire Of Premises,24540,,,,Revenue
http://statistics.data.gov.uk/doc/local-authority/33,Norfolk County Council,01-Apr-11,2955365,816.8,,Espo,68527,,Children's Services,Office Equipment & Supplies,40000,,,,Revenue
http://statistics.data.gov.uk/doc/local-authority/33,Norfolk County Council,01-Apr-11,2955372,1813.44,,Anglian Health & Safety Supplies,80639,,Community Services,Protective Clothing and Uniforms,46350,,,,Revenue
http://statistics.data.gov.uk/doc/local-authority/33,Norfolk County Council,01-Apr-11,2955376,874.87,,Espo,68527,,Children's Services,Office Equipment & Supplies,40000,,,,Revenue
http://statistics.data.gov.uk/doc/local-authority/33,Norfolk County Council,01-Apr-11,2955432,518.48,,The Assist Trust,75365,,Community Services,Day Care / Supported Activities,52160,,,,Revenue
http://statistics.data.gov.uk/doc/local-authority/33,Norfolk County Council,01-Apr-11,2955448,518.48,,The Assist Trust,75365,,Community Services,Day Care / Supported Activities,52160,,,,Revenue
http://statistics.data.gov.uk/doc/local-authority/33,Norfolk County Council,01-Apr-11,2955469,7950.12,,Waste Recycling Group Limited,76094,,Environment Transport & Development,Private Contractor Site Operation Payments,52550,,,,Revenue
http://statistics.data.gov.uk/doc/local-authority/33,Norfolk County Council,01-Apr-11,2955576,518.48,,The Assist Trust,75365,,Community Services,Day Care / Supported Activities,52160,,,,Revenue
http://statistics.data.gov.uk/doc/local-authority/33,Norfolk County Council,01-Apr-11,2955580,518.48,,The Assist Trust,75365,,Community Services,Day Care / Supported Activities,52160,,,,Revenue
http://statistics.data.gov.uk/doc/local-authority/33,Norfolk County Council,01-Apr-11,2955700,807.88,,Breedon Aggregates England Limited,385026,,Environment Transport & Development,Materials Purchases,42160,,,,Revenue
http://statistics.data.gov.uk/doc/local-authority/33,Norfolk County Council,01-Apr-11,2955703,709.12,,Breedon Aggregates England Limited,385026,,Environment Transport & Development,Materials Purchases,42160,,,,Revenue
http://statistics.data.gov.uk/doc/local-authority/33,Norfolk County Council,01-Apr-11,2955705,1090.62,,Middleton Aggregates Limited,71882,,Environment Transport & Development,Materials Purchases,42160,,,,Revenue
http://statistics.data.gov.uk/doc/local-authority/33,Norfolk County Council,01-Apr-11,2955917,459,,CROMWELL GROUP (HOLDINGS) LTD,67807,,Fire & Rescue,Protective Clothing and Uniforms,46350,,,,Revenue
http://statistics.data.gov.uk/doc/local-authority/33,Norfolk County Council,01-Apr-11,2955920,1179.97,,JBF Construction,70526,,Children's Services,Building Repairs,A3780,,,,Revenue
http://statistics.data.gov.uk/doc/local-authority/33,Norfolk County Council,01-Apr-11,2955947,2875,,Eyre (Electrical) Limited,68818,,Children's Services,Plant Replacements,A1720,,,,Revenue
http://statistics.data.gov.uk/doc/local-authority/33,Norfolk County Council,01-Apr-11,2956168,3101.31,,T & P Fire Ltd,172967,,Resources,Fire Alarms,A1690,,,,Revenue
http://statistics.data.gov.uk/doc/local-authority/33,Norfolk County Council,01-Apr-11,2956170,780,,Norwich City Council,140566,,Children's Services,Rents and Hire of Premises & Facilities,24500,,,,Revenue
http://statistics.data.gov.uk/doc/local-authority/33,Norfolk County Council,01-Apr-11,2956174,3708.54,,T & P Fire Ltd,172967,,Resources,Fire Alarms,A1690,,,,Revenue
http://statistics.data.gov.uk/doc/local-authority/33,Norfolk County Council,01-Apr-11,2956186,1190.6,,JBF Construction,70526,,Children's Services,Building Repairs,A3780,,,,Revenue
http://statistics.data.gov.uk/doc/local-authority/33,Norfolk County Council,01-Apr-11,2956242,610,,Lan Synergy East Ltd,413139,,Children's Services,Construction Cost-Adoption/Improvement Building,C2450,,,,Capital
http://statistics.data.gov.uk/doc/local-authority/33,Norfolk County Council,01-Apr-11,2956599,3000,,Plantline Services Limited,73279,,Environment Transport & Development,Staff Training Costs,17450,,,,Revenue
http://statistics.data.gov.uk/doc/local-authority/33,Norfolk County Council,01-Apr-11,2956634,2580,,Ofcom,85509,,Environment Transport & Development,Telephone Rental & Calls,43200,,,,Revenue
http://statistics.data.gov.uk/doc/local-authority/33,Norfolk County Council,01-Apr-11,2956639,11000,,Due North Ltd,213843,,Resources,Software Purchases,44160,,,,Revenue
http://statistics.data.gov.uk/doc/local-authority/33,Norfolk County Council,01-Apr-11,2956667,1383.56,,NORSE Commercial Services,179148,,Children's Services,"Non Staff Course, Conference & Subsistence Expenses",46730,,,,Revenue
http://statistics.data.gov.uk/doc/local-authority/33,Norfolk County Council,01-Apr-11,2956703,492.93,,Randstad 1 Ltd,171892,,Community Services,Agency Staff - Operational APT&C,8610,,,,Revenue
http://statistics.data.gov.uk/doc/local-authority/33,Norfolk County Council,01-Apr-11,2956711,871.57,,Konica Minolta Business Solutions East Ltd,70912,,Children's Services,"Printing, Stationery and Photocopying",46500,,,,Revenue
http://statistics.data.gov.uk/doc/local-authority/33,Norfolk County Council,01-Apr-11,2956715,499.98,,Builders Equipment Limited,66929,,Environment Transport & Development,Equipment Purchases,40850,,,,Revenue
http://statistics.data.gov.uk/doc/local-authority/33,Norfolk County Council,01-Apr-11,2956727,18333.58,,May Gurney Ltd,71794,,Environment Transport & Development,Private Contractor Site Operation Payments,52550,,,,Revenue
http://statistics.data.gov.uk/doc/local-authority/33,Norfolk County Council,01-Apr-11,2956727,24774.76,,May Gurney Ltd,71794,,Environment Transport & Development,Private Contractor Site Operation Payments,52550,,,,Revenue
http://statistics.data.gov.uk/doc/local-authority/33,Norfolk County Council,01-Apr-11,2956727,11300.28,,May Gurney Ltd,71794,,Environment Transport & Development,Private Contractor Site Operation Payments,52550,,,,Revenue
http://statistics.data.gov.uk/doc/local-authority/33,Norfolk County Council,01-Apr-11,2956727,21857.01,,May Gurney Ltd,71794,,Environment Transport & Development,Private Contractor Site Operation Payments,52550,,,,Revenue
http://statistics.data.gov.uk/doc/local-authority/33,Norfolk County Council,01-Apr-11,2956727,10685.48,,May Gurney Ltd,71794,,Environment Transport & Development,Private Contractor Site Operation Payments,52550,,,,Revenue
http://statistics.data.gov.uk/doc/local-authority/33,Norfolk County Council,01-Apr-11,2956727,18776.11,,May Gurney Ltd,71794,,Environment Transport & Development,Private Contractor Site Operation Payments,52550,,,,Revenue
http://statistics.data.gov.uk/doc/local-authority/33,Norfolk County Council,01-Apr-11,2956727,35278.17,,May Gurney Ltd,71794,,Environment Transport & Development,Private Contractor Site Operation Payments,52550,,,,Revenue
http://statistics.data.gov.uk/doc/local-authority/33,Norfolk County Council,01-Apr-11,2956727,15717.47,,May Gurney Ltd,71794,,Environment Transport & Development,Private Contractor Site Operation Payments,52550,,,,Revenue
http://statistics.data.gov.uk/doc/local-authority/33,Norfolk County Council,01-Apr-11,2956727,24594.64,,May Gurney Ltd,71794,,Environment Transport & Development,Private Contractor Site Operation Payments,52550,,,,Revenue
http://statistics.data.gov.uk/doc/local-authority/33,Norfolk County Council,01-Apr-11,2956727,12924.1,,May Gurney Ltd,71794,,Environment Transport & Development,Private Contractor Site Operation Payments,52550,,,,Revenue
http://statistics.data.gov.uk/doc/local-authority/33,Norfolk County Council,01-Apr-11,2956727,27317.09,,May Gurney Ltd,71794,,Environment Transport & Development,Private Contractor Site Operation Payments,52550,,,,Revenue
http://statistics.data.gov.uk/doc/local-authority/33,Norfolk County Council,01-Apr-11,2956727,28926.39,,May Gurney Ltd,71794,,Environment Transport & Development,Private Contractor Site Operation Payments,52550,,,,Revenue
http://statistics.data.gov.uk/doc/local-authority/33,Norfolk County Council,01-Apr-11,2956727,17422.03,,May Gurney Ltd,71794,,Environment Transport & Development,Private Contractor Site Operation Payments,52550,,,,Revenue
http://statistics.data.gov.uk/doc/local-authority/33,Norfolk County Council,01-Apr-11,2956727,28452.44,,May Gurney Ltd,71794,,Environment Transport & Development,Private Contractor Site Operation Payments,52550,,,,Revenue
http://statistics.data.gov.uk/doc/local-authority/33,Norfolk County Council,01-Apr-11,2956727,13810.4,,May Gurney Ltd,71794,,Environment Transport & Development,Private Contractor Site Operation Payments,52550,,,,Revenue
http://statistics.data.gov.uk/doc/local-authority/33,Norfolk County Council,01-Apr-11,2956727,20080.84,,May Gurney Ltd,71794,,Environment Transport & Development,Private Contractor Site Operation Payments,52550,,,,Revenue
http://statistics.data.gov.uk/doc/local-authority/33,Norfolk County Council,01-Apr-11,2956727,15035.53,,May Gurney Ltd,71794,,Environment Transport & Development,Private Contractor Site Operation Payments,52550,,,,Revenue
http://statistics.data.gov.uk/doc/local-authority/33,Norfolk County Council,01-Apr-11,2956727,13178.44,,May Gurney Ltd,71794,,Environment Transport & Development,Private Contractor Site Operation Payments,52550,,,,Revenue
http://statistics.data.gov.uk/doc/local-authority/33,Norfolk County Council,01-Apr-11,2956727,31344.01,,May Gurney Ltd,71794,,Environment Transport & Development,Private Contractor Site Operation Payments,52550,,,,Revenue
http://statistics.data.gov.uk/doc/local-authority/33,Norfolk County Council,01-Apr-11,2956766,600,,Aston Flooring,122696,,Community Services,Purchase Of Fixtures & Fittings,24980,,,,Revenue
http://statistics.data.gov.uk/doc/local-authority/33,Norfolk County Council,01-Apr-11,2956768,656.98,,Xma Ltd,87736,,Children's Services,ICT Equipment Purchases,43900,,,,Revenue
http://statistics.data.gov.uk/doc/local-authority/33,Norfolk County Council,01-Apr-11,2956771,800,,Speedings Limited,74767,,Fire & Rescue,Other Operational Equipment-Purchase,40310,,,,Revenue
http://statistics.data.gov.uk/doc/local-authority/33,Norfolk County Council,01-Apr-11,2956843,580,,Redacted - Personal Data,Redacted,,Community Services,Fees & Charges,44500,,,,Revenue
http://statistics.data.gov.uk/doc/local-authority/33,Norfolk County Council,01-Apr-11,2956851,1724.18,,Konica Minolta Business Solutions East Ltd,70912,,Community Services,Photocopying - General,46520,,,,Revenue
http://statistics.data.gov.uk/doc/local-authority/33,Norfolk County Council,01-Apr-11,2956891,418.25,,Randstad 1 Ltd,171892,,Community Services,Panel Funded Staff,8100,,,,Revenue
http://statistics.data.gov.uk/doc/local-authority/33,Norfolk County Council,01-Apr-11,2956910,5277.5,,Parkwood Leisure Ltd,117116,,Children's Services,Swimming & Games Facilities,24640,,,,Revenue
http://statistics.data.gov.uk/doc/local-authority/33,Norfolk County Council,01-Apr-11,2956927,1175,,W S Lusher & Son Ltd,76044,,Children's Services,Electrical & Mechanical Maintenance.,A3790,,,,Revenue
http://statistics.data.gov.uk/doc/local-authority/33,Norfolk County Council,01-Apr-11,2956952,1029.84,,Allied Healthcare Group Ltd,104517,,Community Services,Domiciliary Care,51610,,,,Revenue
http://statistics.data.gov.uk/doc/local-authority/33,Norfolk County Council,01-Apr-11,2957053,1680,,Albies Taxis,66006,,Children's Services,Contract Taxi Hire,35400,,,,Revenue
http://statistics.data.gov.uk/doc/local-authority/33,Norfolk County Council,01-Apr-11,2957070,3470,,Stone Computers Ltd,91070,,Children's Services,ICT Equipment Purchases,43900,,,,Revenue
http://statistics.data.gov.uk/doc/local-authority/33,Norfolk County Council,01-Apr-11,2957078,625,,Dataday Technology Ltd,68109,,Children's Services,Other Hired & Contracted Services,44810,,,,Revenue
http://statistics.data.gov.uk/doc/local-authority/33,Norfolk County Council,01-Apr-11,2957082,609,,Stone Computers Ltd,91070,,Children's Services,ICT Equipment Purchases,43900,,,,Revenue
http://statistics.data.gov.uk/doc/local-authority/33,Norfolk County Council,01-Apr-11,2957099,518.48,,The Assist Trust,75365,,Community Services,Day Care / Supported Activities,52160,,,,Revenue
http://statistics.data.gov.uk/doc/local-authority/33,Norfolk County Council,01-Apr-11,2957105,1976,,Admiral Civil Engineering Ltd,132632,,Children's Services,Building Repairs,A3780,,,,Revenue
http://statistics.data.gov.uk/doc/local-authority/33,Norfolk County Council,01-Apr-11,2957107,518.48,,The Assist Trust,75365,,Community Services,Day Care / Supported Activities,52160,,,,Revenue
http://statistics.data.gov.uk/doc/local-authority/33,Norfolk County Council,01-Apr-11,2957111,478.7,,Compass Services Uk & Ireland Ltd,67633,,Children's Services,Staff Subsistence & Conference Expenses,46700,,,,Revenue
http://statistics.data.gov.uk/doc/local-authority/33,Norfolk County Council,01-Apr-11,2957112,518.48,,The Assist Trust,75365,,Community Services,Day Care / Supported Activities,52160,,,,Revenue
http://statistics.data.gov.uk/doc/local-authority/33,Norfolk County Council,01-Apr-11,2957116,674,,Admiral Civil Engineering Ltd,132632,,Children's Services,Building Repairs,A3780,,,,Revenue
http://statistics.data.gov.uk/doc/local-authority/33,Norfolk County Council,01-Apr-11,2957118,518.48,,The Assist Trust,75365,,Community Services,Day Care / Supported Activities,52160,,,,Revenue
http://statistics.data.gov.uk/doc/local-authority/33,Norfolk County Council,01-Apr-11,2957122,35.41,,Mott MacDonald Ltd,71980,,Environment Transport & Development,"ICT Software Purchases, Licenses & Maintenance",44170,,,,Revenue
http://statistics.data.gov.uk/doc/local-authority/33,Norfolk County Council,01-Apr-11,2957123,518.48,,The Assist Trust,75365,,Community Services,Day Care / Supported Activities,52160,,,,Revenue
http://statistics.data.gov.uk/doc/local-authority/33,Norfolk County Council,01-Apr-11,2957146,763.5,,Konica Minolta Business Solutions East Ltd,70912,,Environment Transport & Development,"Printing, Stationery and Photocopying",46500,,,,Revenue
http://statistics.data.gov.uk/doc/local-authority/33,Norfolk County Council,01-Apr-11,2957168,3167.2,,Science Projects Limited,74455,,Community Services,Equipment Purchases,40850,,,,Revenue
http://statistics.data.gov.uk/doc/local-authority/33,Norfolk County Council,01-Apr-11,2957168,2250.8,,Science Projects Limited,74455,,Community Services,Materials Purchases,42160,,,,Revenue
http://statistics.data.gov.uk/doc/local-authority/33,Norfolk County Council,01-Apr-11,2957169,616,,NORSE Commercial Services,179148,,Community Services,"Printing, Stationery and Photocopying",46500,,,,Revenue
http://statistics.data.gov.uk/doc/local-authority/33,Norfolk County Council,01-Apr-11,2957176,866,,NORSE Commercial Services,179148,,Resources,"Printing, Stationery and Photocopying",46500,,,,Revenue
http://statistics.data.gov.uk/doc/local-authority/33,Norfolk County Council,01-Apr-11,2957277,1023.57,,Sense-Children & Adult Services,74507,,Community Services,Day Care / Supported Activities,52160,,,,Revenue
http://statistics.data.gov.uk/doc/local-authority/33,Norfolk County Council,01-Apr-11,2957284,1851.45,,Sense-Children & Adult Services,74507,,Community Services,Day Care / Supported Activities,52160,,,,Revenue
http://statistics.data.gov.uk/doc/local-authority/33,Norfolk County Council,01-Apr-11,2957285,2416.31,,Sense-Children & Adult Services,74507,,Community Services,Day Care / Supported Activities,52160,,,,Revenue
http://statistics.data.gov.uk/doc/local-authority/33,Norfolk County Council,01-Apr-11,2957296,3378.37,,Sense-Children & Adult Services,74507,,Community Services,Day Care / Supported Activities,52160,,,,Revenue
http://statistics.data.gov.uk/doc/local-authority/33,Norfolk County Council,01-Apr-11,2957341,6202.5,,Chiltern Invadex Ltd,67453,,Community Services,Equipment For Disabled People,41320,,,,Revenue
http://statistics.data.gov.uk/doc/local-authority/33,Norfolk County Council,01-Apr-11,2957342,17377,,Garner Medical Ltd,90311,,Community Services,Equipment For Disabled People,41320,,,,Revenue
http://statistics.data.gov.uk/doc/local-authority/33,Norfolk County Council,01-Apr-11,2957347,161,,Wordingham Plant Hire Ltd,134000,,Environment Transport & Development,Road Maintenance Contractor Payments,45070,,,,Revenue
http://statistics.data.gov.uk/doc/local-authority/33,Norfolk County Council,01-Apr-11,2957347,1736.5,,Wordingham Plant Hire Ltd,134000,,Environment Transport & Development,Road Maintenance Contractor Payments,45070,,,,Revenue
http://statistics.data.gov.uk/doc/local-authority/33,Norfolk County Council,01-Apr-11,2957347,1127,,Wordingham Plant Hire Ltd,134000,,Environment Transport & Development,Road Maintenance Contractor Payments,45070,,,,Revenue
http://statistics.data.gov.uk/doc/local-authority/33,Norfolk County Council,01-Apr-11,2957347,598,,Wordingham Plant Hire Ltd,134000,,Environment Transport & Development,Road Maintenance Contractor Payments,45070,,,,Revenue
http://statistics.data.gov.uk/doc/local-authority/33,Norfolk County Council,01-Apr-11,2957348,931.5,,Wordingham Plant Hire Ltd,134000,,Environment Transport & Development,Road Maintenance Contractor Payments,45070,,,,Revenue
http://statistics.data.gov.uk/doc/local-authority/33,Norfolk County Council,01-Apr-11,2957349,23,,Wordingham Plant Hire Ltd,134000,,Environment Transport & Development,Road Maintenance Contractor Payments,45070,,,,Revenue
http://statistics.data.gov.uk/doc/local-authority/33,Norfolk County Council,01-Apr-11,2957349,4048,,Wordingham Plant Hire Ltd,134000,,Environment Transport & Development,Road Maintenance Contractor Payments,45070,,,,Revenue
http://statistics.data.gov.uk/doc/local-authority/33,Norfolk County Council,01-Apr-11,2957350,3220,,Wordingham Plant Hire Ltd,134000,,Environment Transport & Development,Road Maintenance Contractor Payments,45070,,,,Revenue
http://statistics.data.gov.uk/doc/local-authority/33,Norfolk County Council,01-Apr-11,2957350,368,,Wordingham Plant Hire Ltd,134000,,Environment Transport & Development,Road Maintenance Contractor Payments,45070,,,,Revenue
http://statistics.data.gov.uk/doc/local-authority/33,Norfolk County Council,01-Apr-11,2957619,1040,,Redacted - Personal Data,Redacted,,Community Services,Loose Furniture & Fittings-General,41250,,,,Revenue
http://statistics.data.gov.uk/doc/local-authority/33,Norfolk County Council,01-Apr-11,2957644,907.95,,Nottingham Rehab Ltd,72663,,Children's Services,Purchase Of Furniture,C3000,,,,Capital
http://statistics.data.gov.uk/doc/local-authority/33,Norfolk County Council,01-Apr-11,2957893,560,,Redacted - Personal Data,Redacted,,Community Services,ICT Equipment Purchases,43900,,,,Revenue
http://statistics.data.gov.uk/doc/local-authority/33,Norfolk County Council,01-Apr-11,2957960,129.9,,Eyre (Electrical) Limited,68818,,Children's Services,Boiler Servicing,A1660,,,,Revenue
http://statistics.data.gov.uk/doc/local-authority/33,Norfolk County Council,01-Apr-11,2957960,315.11,,Eyre (Electrical) Limited,68818,,Community Services,Boiler Servicing,A1660,,,,Revenue
http://statistics.data.gov.uk/doc/local-authority/33,Norfolk County Council,01-Apr-11,2957960,293.8,,Eyre (Electrical) Limited,68818,,Community Services,Boiler Servicing,A1660,,,,Revenue
http://statistics.data.gov.uk/doc/local-authority/33,Norfolk County Council,01-Apr-11,2957960,1342.26,,Eyre (Electrical) Limited,68818,,Community Services,Boiler Servicing,A1660,,,,Revenue
http://statistics.data.gov.uk/doc/local-authority/33,Norfolk County Council,01-Apr-11,2957960,156.65,,Eyre (Electrical) Limited,68818,,Community Services,Boiler Servicing,A1660,,,,Revenue
http://statistics.data.gov.uk/doc/local-authority/33,Norfolk County Council,01-Apr-11,2957960,92.68,,Eyre (Electrical) Limited,68818,,Community Services,Boiler Servicing,A1660,,,,Revenue
http://statistics.data.gov.uk/doc/local-authority/33,Norfolk County Council,01-Apr-11,2957960,39.93,,Eyre (Electrical) Limited,68818,,Children's Services,Boiler Servicing,A3660,,,,Revenue
http://statistics.data.gov.uk/doc/local-authority/33,Norfolk County Council,01-Apr-11,2957960,551.54,,Eyre (Electrical) Limited,68818,,Children's Services,Boiler Servicing,A3660,,,,Revenue
http://statistics.data.gov.uk/doc/local-authority/33,Norfolk County Council,01-Apr-11,2957960,49.7,,Eyre (Electrical) Limited,68818,,Children's Services,Boiler Servicing,A3660,,,,Revenue
http://statistics.data.gov.uk/doc/local-authority/33,Norfolk County Council,01-Apr-11,2958003,62,,Eyre (Electrical) Limited,68818,,Community Services,Boiler Servicing,A1660,,,,Revenue
http://statistics.data.gov.uk/doc/local-authority/33,Norfolk County Council,01-Apr-11,2958003,249.63,,Eyre (Electrical) Limited,68818,,Children's Services,Boiler Servicing,A3660,,,,Revenue
http://statistics.data.gov.uk/doc/local-authority/33,Norfolk County Council,01-Apr-11,2958003,7.25,,Eyre (Electrical) Limited,68818,,Children's Services,Boiler Servicing,A3660,,,,Revenue
http://statistics.data.gov.uk/doc/local-authority/33,Norfolk County Council,01-Apr-11,2958003,19.03,,Eyre (Electrical) Limited,68818,,Children's Services,Boiler Servicing,A3660,,,,Revenue
http://statistics.data.gov.uk/doc/local-authority/33,Norfolk County Council,01-Apr-11,2958003,18.13,,Eyre (Electrical) Limited,68818,,Children's Services,Boiler Servicing,A3660,,,,Revenue
http://statistics.data.gov.uk/doc/local-authority/33,Norfolk County Council,01-Apr-11,2958003,38.75,,Eyre (Electrical) Limited,68818,,Children's Services,Boiler Servicing,A3660,,,,Revenue
http://statistics.data.gov.uk/doc/local-authority/33,Norfolk County Council,01-Apr-11,2958003,680.83,,Eyre (Electrical) Limited,68818,,Children's Services,Boiler Servicing,A3660,,,,Revenue
http://statistics.data.gov.uk/doc/local-authority/33,Norfolk County Council,01-Apr-11,2958003,62,,Eyre (Electrical) Limited,68818,,Children's Services,Boiler Servicing,A3660,,,,Revenue
http://statistics.data.gov.uk/doc/local-authority/33,Norfolk County Council,01-Apr-11,2958003,38.75,,Eyre (Electrical) Limited,68818,,Children's Services,Boiler Servicing,A3660,,,,Revenue
http://statistics.data.gov.uk/doc/local-authority/33,Norfolk County Council,01-Apr-11,2958037,45.23,,Eyre (Electrical) Limited,68818,,Children's Services,Boiler Servicing,A1660,,,,Revenue
http://statistics.data.gov.uk/doc/local-authority/33,Norfolk County Council,01-Apr-11,2958037,159.71,,Eyre (Electrical) Limited,68818,,Community Services,Boiler Servicing,A1660,,,,Revenue
http://statistics.data.gov.uk/doc/local-authority/33,Norfolk County Council,01-Apr-11,2958037,78.39,,Eyre (Electrical) Limited,68818,,Community Services,Boiler Servicing,A1660,,,,Revenue
http://statistics.data.gov.uk/doc/local-authority/33,Norfolk County Council,01-Apr-11,2958037,590.71,,Eyre (Electrical) Limited,68818,,Children's Services,Boiler Servicing,A3660,,,,Revenue
http://statistics.data.gov.uk/doc/local-authority/33,Norfolk County Council,01-Apr-11,2958037,238.96,,Eyre (Electrical) Limited,68818,,Children's Services,Boiler Servicing,A3660,,,,Revenue
http://statistics.data.gov.uk/doc/local-authority/33,Norfolk County Council,01-Apr-11,2958037,137.83,,Eyre (Electrical) Limited,68818,,Children's Services,Boiler Servicing,A3660,,,,Revenue
http://statistics.data.gov.uk/doc/local-authority/33,Norfolk County Council,01-Apr-11,2958107,1874.34,,Inchcape Fleet Solutions Ltd,131195,,Environment Transport & Development,Fixed Price Vehicle Maintenance,32500,,,,Revenue
http://statistics.data.gov.uk/doc/local-authority/33,Norfolk County Council,01-Apr-11,2958107,546.32,,Inchcape Fleet Solutions Ltd,131195,,Environment Transport & Development,Fixed Price Vehicle Maintenance,32500,,,,Revenue
http://statistics.data.gov.uk/doc/local-authority/33,Norfolk County Council,01-Apr-11,2958107,119.83,,Inchcape Fleet Solutions Ltd,131195,,Environment Transport & Development,Fixed Price Vehicle Maintenance,32500,,,,Revenue
http://statistics.data.gov.uk/doc/local-authority/33,Norfolk County Council,01-Apr-11,2958107,61.66,,Inchcape Fleet Solutions Ltd,131195,,Environment Transport & Development,Fixed Price Vehicle Maintenance,32500,,,,Revenue
http://statistics.data.gov.uk/doc/local-authority/33,Norfolk County Council,01-Apr-11,2958107,152.11,,Inchcape Fleet Solutions Ltd,131195,,Environment Transport & Development,Fixed Price Vehicle Maintenance,32500,,,,Revenue
http://statistics.data.gov.uk/doc/local-authority/33,Norfolk County Council,01-Apr-11,2958107,64.43,,Inchcape Fleet Solutions Ltd,131195,,Environment Transport & Development,Fixed Price Vehicle Maintenance,32500,,,,Revenue
http://statistics.data.gov.uk/doc/local-authority/33,Norfolk County Council,01-Apr-11,2958107,304.5,,Inchcape Fleet Solutions Ltd,131195,,Environment Transport & Development,Fixed Price Vehicle Maintenance,32500,,,,Revenue
http://statistics.data.gov.uk/doc/local-authority/33,Norfolk County Council,01-Apr-11,2958107,121.38,,Inchcape Fleet Solutions Ltd,131195,,Environment Transport & Development,Fixed Price Vehicle Maintenance,32500,,,,Revenue
http://statistics.data.gov.uk/doc/local-authority/33,Norfolk County Council,01-Apr-11,2958125,720,,MCR Systems Ltd,71648,,Community Services,"ICT Software Purchases, Licenses & Maintenance",44170,,,,Revenue
http://statistics.data.gov.uk/doc/local-authority/33,Norfolk County Council,01-Apr-11,2958131,750,,Chris Newby,237180,,Community Services,Fees/Expenses - Other Consultants,44530,,,,Revenue
http://statistics.data.gov.uk/doc/local-authority/33,Norfolk County Council,01-Apr-11,2958144,449.94,,Professional Cabling Solutions Ltd,122431,,Children's Services,Purchase Of Equipment,C3100,,,,Capital
http://statistics.data.gov.uk/doc/local-authority/33,Norfolk County Council,01-Apr-11,2958150,2990,,Stone Computers Ltd,91070,,Children's Services,Purchase Of IT,C3200,,,,Capital
http://statistics.data.gov.uk/doc/local-authority/33,Norfolk County Council,01-Apr-11,2958160,523,,Stone Computers Ltd,91070,,Children's Services,Purchase Of IT,C3200,,,,Capital
http://statistics.data.gov.uk/doc/local-authority/33,Norfolk County Council,01-Apr-11,2958278,600,,Roy Handford Associates,157295,,Children's Services,Other Hired & Contracted Services,44810,,,,Revenue
http://statistics.data.gov.uk/doc/local-authority/33,Norfolk County Council,01-Apr-11,2958302,725.6,,Caretech UK Ltd,81532,,Community Services,Operational Equipment - Purchase,40300,,,,Revenue
http://statistics.data.gov.uk/doc/local-authority/33,Norfolk County Council,01-Apr-11,2958302,193.5,,Caretech UK Ltd,81532,,Community Services,Bedding & Linen,41580,,,,Revenue
http://statistics.data.gov.uk/doc/local-authority/33,Norfolk County Council,01-Apr-11,2958320,518.04,,NORSE Commercial Services,179148,,Community Services,Grounds Maintenance Costs,22500,,,,Revenue
http://statistics.data.gov.uk/doc/local-authority/33,Norfolk County Council,01-Apr-11,2958391,2149.56,,Camphill Communities Thornbury Ltd - Social Therapy A/C,144386,,Community Services,Day Care / Supported Activities,52160,,,,Revenue
http://statistics.data.gov.uk/doc/local-authority/33,Norfolk County Council,01-Apr-11,2958528,1302,,Divinus Support Limited,428273,,Community Services,Domiciliary Care,51610,,,,Revenue
http://statistics.data.gov.uk/doc/local-authority/33,Norfolk County Council,01-Apr-11,2958573,5737.6,,Wragge & Co Llp,76363,,Resources,Services of Solicitors Agents,44770,,,,Revenue
http://statistics.data.gov.uk/doc/local-authority/33,Norfolk County Council,01-Apr-11,2958582,1736.44,,Sense-Children & Adult Services,74507,,Community Services,Day Care / Supported Activities,52160,,,,Revenue
http://statistics.data.gov.uk/doc/local-authority/33,Norfolk County Council,01-Apr-11,2958582,1736.43,,Sense-Children & Adult Services,74507,,Community Services,Day Care / Supported Activities,52160,,,,Revenue
http://statistics.data.gov.uk/doc/local-authority/33,Norfolk County Council,01-Apr-11,2958589,1186.85,,Care Shop Ltd,67298,,Community Services,Equipment For Disabled People,41320,,,,Revenue
http://statistics.data.gov.uk/doc/local-authority/33,Norfolk County Council,01-Apr-11,2958593,3945.5,,Barclays Asset & Sales Finance,76150,,Community Services,Equipment For Disabled People,41320,,,,Revenue
http://statistics.data.gov.uk/doc/local-authority/33,Norfolk County Council,01-Apr-11,2959125,867.33,,BERTRAMS,66641,,Community Services,Books and Publications,40800,,,,Revenue
http://statistics.data.gov.uk/doc/local-authority/33,Norfolk County Council,01-Apr-11,2959127,624.76,,BERTRAMS,66641,,Community Services,Books and Publications,40800,,,,Revenue
http://statistics.data.gov.uk/doc/local-authority/33,Norfolk County Council,01-Apr-11,2959132,700.2,,BERTRAMS,66641,,Community Services,Books and Publications,40800,,,,Revenue
http://statistics.data.gov.uk/doc/local-authority/33,Norfolk County Council,01-Apr-11,2959134,635.31,,BERTRAMS,66641,,Community Services,Books and Publications,40800,,,,Revenue
http://statistics.data.gov.uk/doc/local-authority/33,Norfolk County Council,01-Apr-11,2959143,704.26,,BERTRAMS,66641,,Community Services,Books and Publications,40800,,,,Revenue
http://statistics.data.gov.uk/doc/local-authority/33,Norfolk County Council,01-Apr-11,2959144,731.2,,BERTRAMS,66641,,Community Services,Books and Publications,40800,,,,Revenue
http://statistics.data.gov.uk/doc/local-authority/33,Norfolk County Council,01-Apr-11,2959165,859.79,,BERTRAMS,66641,,Community Services,Books and Publications,40800,,,,Revenue
http://statistics.data.gov.uk/doc/local-authority/33,Norfolk County Council,01-Apr-11,2959393,487.99,,J K Brock Builders (Dereham) Limited,70350,,Children's Services,Minor Building Repairs,A1800,,,,Revenue
http://statistics.data.gov.uk/doc/local-authority/33,Norfolk County Council,01-Apr-11,2959537,4273,,Electrical & Mechanical Controls Limited,68673,,Children's Services,Construction Cost-Adoption/Improvement Building,C2450,,,,Capital
http://statistics.data.gov.uk/doc/local-authority/33,Norfolk County Council,01-Apr-11,2959553,2217.47,,Allied Healthcare Group Ltd,104517,,Community Services,Domiciliary Care,51610,,,,Revenue
http://statistics.data.gov.uk/doc/local-authority/33,Norfolk County Council,01-Apr-11,2959723,712.25,,Peters Ltd,73217,,Community Services,Books and Publications,40800,,,,Revenue
http://statistics.data.gov.uk/doc/local-authority/33,Norfolk County Council,01-Apr-11,2959728,578.88,,Peters Ltd,73217,,Community Services,Books and Publications,40800,,,,Revenue
http://statistics.data.gov.uk/doc/local-authority/33,Norfolk County Council,01-Apr-11,2959754,639.73,,Askews & Holts Library Services Ltd,505492,,Community Services,Books and Publications,40800,,,,Revenue
http://statistics.data.gov.uk/doc/local-authority/33,Norfolk County Council,01-Apr-11,2959767,4613,,CapacityBoost,153577,,Children's Services,Consultants Fees and Charges,44630,,,,Revenue
http://statistics.data.gov.uk/doc/local-authority/33,Norfolk County Council,01-Apr-11,2959777,558.21,,Askews & Holts Library Services Ltd,505492,,Community Services,Books and Publications,40800,,,,Revenue
http://statistics.data.gov.uk/doc/local-authority/33,Norfolk County Council,01-Apr-11,2959813,653.55,,Askews & Holts Library Services Ltd,505492,,Community Services,Purchase Of Books,C3300,,,,Capital
http://statistics.data.gov.uk/doc/local-authority/33,Norfolk County Council,01-Apr-11,2959839,840,,Redacted - Personal Data,Redacted,,Children's Services,Foster Parents Payments,53600,,,,Revenue
http://statistics.data.gov.uk/doc/local-authority/33,Norfolk County Council,01-Apr-11,2959842,651.63,,Askews & Holts Library Services Ltd,505492,,Community Services,Books and Publications,40800,,,,Revenue
http://statistics.data.gov.uk/doc/local-authority/33,Norfolk County Council,01-Apr-11,2959850,2613.75,,Hydroactive GB Ltd,134267,,Fire & Rescue,Staff Training Costs,17450,,,,Revenue
http://statistics.data.gov.uk/doc/local-authority/33,Norfolk County Council,01-Apr-11,2959934,945.07,,Calor Gas Limited,67241,,Fire & Rescue,Training Equipment,17660,,,,Revenue
http://statistics.data.gov.uk/doc/local-authority/33,Norfolk County Council,01-Apr-11,2960049,525,,Redacted - Personal Data,Redacted,,Children's Services,Fees/Expenses - Other Consultants,44530,,,,Revenue
http://statistics.data.gov.uk/doc/local-authority/33,Norfolk County Council,01-Apr-11,2960106,1301.71,,Trans Uk Supplies Limited,140479,,Community Services,Materials Purchases,42160,,,,Revenue
http://statistics.data.gov.uk/doc/local-authority/33,Norfolk County Council,01-Apr-11,2960161,1866,,MAGNA PRINT BOOKS,71182,,Community Services,Books and Publications,40800,,,,Revenue
http://statistics.data.gov.uk/doc/local-authority/33,Norfolk County Council,01-Apr-11,2960170,682.35,,Sense-Children & Adult Services,74507,,Community Services,Day Care / Supported Activities,52160,,,,Revenue
http://statistics.data.gov.uk/doc/local-authority/33,Norfolk County Council,01-Apr-11,2960194,625,,Impact Test Equipment Limited,70059,,Environment Transport & Development,Equipment Purchases,40850,,,,Revenue
http://statistics.data.gov.uk/doc/local-authority/33,Norfolk County Council,01-Apr-11,2960260,40238.56,,Pearson Education Ltd,144755,,Children's Services,ICT Equipment Purchases,43900,,,,Revenue
http://statistics.data.gov.uk/doc/local-authority/33,Norfolk County Council,01-Apr-11,2960359,726.8,,Electrical & Mechanical Controls Limited,68673,,Children's Services,Electrical & Mechanical Maintenance.,A3790,,,,Revenue
http://statistics.data.gov.uk/doc/local-authority/33,Norfolk County Council,01-Apr-11,2960815,1400,,Redacted - Personal Data,Redacted,,Children's Services,Fees & Charges,44500,,,,Revenue
http://statistics.data.gov.uk/doc/local-authority/33,Norfolk County Council,01-Apr-11,2960914,892.8,,Breedon Aggregates England Limited,385026,,Environment Transport & Development,Materials Purchases,42160,,,,Revenue
http://statistics.data.gov.uk/doc/local-authority/33,Norfolk County Council,01-Apr-11,2960915,610.47,,Tarmac Ltd,75281,,Environment Transport & Development,Materials Purchases,42160,,,,Revenue
http://statistics.data.gov.uk/doc/local-authority/33,Norfolk County Council,01-Apr-11,2960916,593.46,,Tarmac Ltd,75281,,Environment Transport & Development,Materials Purchases,42160,,,,Revenue
http://statistics.data.gov.uk/doc/local-authority/33,Norfolk County Council,01-Apr-11,2960920,613.44,,English Brothers Ltd,196709,,Environment Transport & Development,Materials Purchases,42160,,,,Revenue
http://statistics.data.gov.uk/doc/local-authority/33,Norfolk County Council,01-Apr-11,2960921,5012.05,,Breedon Aggregates England Limited,385026,,Environment Transport & Development,Road Maintenance Contractor Payments,45070,,,,Revenue
http://statistics.data.gov.uk/doc/local-authority/33,Norfolk County Council,01-Apr-11,2960921,1918.56,,Breedon Aggregates England Limited,385026,,Environment Transport & Development,Road Maintenance Contractor Payments,45070,,,,Revenue
http://statistics.data.gov.uk/doc/local-authority/33,Norfolk County Council,01-Apr-11,2960922,448.07,,May Gurney Ltd,71794,,Environment Transport & Development,Materials Purchases,42160,,,,Revenue
http://statistics.data.gov.uk/doc/local-authority/33,Norfolk County Council,01-Apr-11,2962423,547.63,,Weber Rescue UK Ltd,136157,,Fire & Rescue,Repairs-Hydraulic Rescue Equipment,32140,,,,Revenue
http://statistics.data.gov.uk/doc/local-authority/33,Norfolk County Council,01-Apr-11,2962454,921.6,,Expresso,68813,,Environment Transport & Development,Cost of Sales,42090,,,,Revenue
http://statistics.data.gov.uk/doc/local-authority/33,Norfolk County Council,01-Apr-11,2962723,683.6,,BERTRAMS,66641,,Community Services,Books and Publications,40800,,,,Revenue
http://statistics.data.gov.uk/doc/local-authority/33,Norfolk County Council,01-Apr-11,2962730,615.78,,MAGNA PRINT BOOKS,71182,,Community Services,Purchase Of Books,C3300,,,,Capital
http://statistics.data.gov.uk/doc/local-authority/33,Norfolk County Council,01-Apr-11,2962775,1790,,Impact Social Care Ltd,128453,,Community Services,Fees & Charges,44500,,,,Revenue
http://statistics.data.gov.uk/doc/local-authority/33,Norfolk County Council,01-Apr-11,2962787,760,,Great Yarmouth College,83141,,Community Services,Staff Training Costs,17450,,,,Revenue
http://statistics.data.gov.uk/doc/local-authority/33,Norfolk County Council,01-Apr-11,2962805,7586.6,,Redacted - Personal Data,Redacted,,Community Services,Fees & Charges,44500,,,,Revenue
http://statistics.data.gov.uk/doc/local-authority/33,Norfolk County Council,01-Apr-11,2962869,770,,University Of East Anglia,87416,,Community Services,Staff Training Costs,17450,,,,Revenue
http://statistics.data.gov.uk/doc/local-authority/33,Norfolk County Council,01-Apr-11,2962872,770,,University Of East Anglia,87416,,Community Services,Staff Training Costs,17450,,,,Revenue
http://statistics.data.gov.uk/doc/local-authority/33,Norfolk County Council,01-Apr-11,2962877,770,,University Of East Anglia,87416,,Community Services,Staff Training Costs,17450,,,,Revenue
http://statistics.data.gov.uk/doc/local-authority/33,Norfolk County Council,01-Apr-11,2962880,770,,University Of East Anglia,87416,,Community Services,Staff Training Costs,17450,,,,Revenue
http://statistics.data.gov.uk/doc/local-authority/33,Norfolk County Council,01-Apr-11,2962882,770,,University Of East Anglia,87416,,Community Services,Staff Training Costs,17450,,,,Revenue
http://statistics.data.gov.uk/doc/local-authority/33,Norfolk County Council,01-Apr-11,2962885,770,,University Of East Anglia,87416,,Community Services,Staff Training Costs,17450,,,,Revenue
http://statistics.data.gov.uk/doc/local-authority/33,Norfolk County Council,01-Apr-11,2962887,770,,University Of East Anglia,87416,,Community Services,Staff Training Costs,17450,,,,Revenue
http://statistics.data.gov.uk/doc/local-authority/33,Norfolk County Council,01-Apr-11,2962890,770,,University Of East Anglia,87416,,Community Services,Staff Training Costs,17450,,,,Revenue
http://statistics.data.gov.uk/doc/local-authority/33,Norfolk County Council,01-Apr-11,2962922,715.5,,Ocr,72717,,Community Services,External Examinations Fees,46300,,,,Revenue
http://statistics.data.gov.uk/doc/local-authority/33,Norfolk County Council,01-Apr-11,2962922,162,,Ocr,72717,,Community Services,External Examinations Fees,46300,,,,Revenue
http://statistics.data.gov.uk/doc/local-authority/33,Norfolk County Council,01-Apr-11,2963057,2170.56,,Crown Care & Support Limited,214902,,Community Services,Domiciliary Care,51610,,,,Revenue
http://statistics.data.gov.uk/doc/local-authority/33,Norfolk County Council,01-Apr-11,2963058,705.37,,Crown Care & Support Limited,214902,,Community Services,Domiciliary Care,51610,,,,Revenue
http://statistics.data.gov.uk/doc/local-authority/33,Norfolk County Council,01-Apr-11,2963072,529.11,,Crown Care & Support Limited,214902,,Community Services,Domiciliary Care,51610,,,,Revenue
http://statistics.data.gov.uk/doc/local-authority/33,Norfolk County Council,01-Apr-11,2963074,868,,Crown Care & Support Limited,214902,,Community Services,Domiciliary Care,51610,,,,Revenue
http://statistics.data.gov.uk/doc/local-authority/33,Norfolk County Council,01-Apr-11,2963082,2201,,Crown Care & Support Limited,214902,,Community Services,Domiciliary Care,51610,,,,Revenue
http://statistics.data.gov.uk/doc/local-authority/33,Norfolk County Council,01-Apr-11,2963085,1137.36,,Crown Care & Support Limited,214902,,Community Services,Domiciliary Care,51610,,,,Revenue
http://statistics.data.gov.uk/doc/local-authority/33,Norfolk County Council,01-Apr-11,2963090,651,,Crown Care & Support Limited,214902,,Community Services,Domiciliary Care,51610,,,,Revenue
http://statistics.data.gov.uk/doc/local-authority/33,Norfolk County Council,01-Apr-11,2963336,1707.36,,May Gurney Ltd,71794,,Environment Transport & Development,Materials Purchases,42160,,,,Revenue
http://statistics.data.gov.uk/doc/local-authority/33,Norfolk County Council,01-Apr-11,2963338,569.15,,Middleton Aggregates Limited,71882,,Environment Transport & Development,Materials Purchases,42160,,,,Revenue
http://statistics.data.gov.uk/doc/local-authority/33,Norfolk County Council,01-Apr-11,2964087,542.92,,Crown Care & Support Limited,214902,,Community Services,Domiciliary Care,51610,,,,Revenue
http://statistics.data.gov.uk/doc/local-authority/33,Norfolk County Council,01-Apr-11,2964102,589,,Crown Care & Support Limited,214902,,Community Services,Domiciliary Care,51610,,,,Revenue
http://statistics.data.gov.uk/doc/local-authority/33,Norfolk County Council,01-Apr-11,2964142,724.8,,New Boundaries Ltd,72394,,Community Services,Day Care / Supported Activities,52160,,,,Revenue
http://statistics.data.gov.uk/doc/local-authority/33,Norfolk County Council,01-Apr-11,2964143,4458.33,,May Gurney Ltd,71794,,Environment Transport & Development,Priority Routes 1 & 2 Standby (Morning),59150,,,,Revenue
http://statistics.data.gov.uk/doc/local-authority/33,Norfolk County Council,01-Apr-11,2964145,504,,New Boundaries Ltd,72394,,Community Services,Day Care / Supported Activities,52160,,,,Revenue
http://statistics.data.gov.uk/doc/local-authority/33,Norfolk County Council,01-Apr-11,2964147,1345,,Ollands Limited,72748,,Environment Transport & Development,Building Maintenance & Repairs,23300,,,,Revenue
http://statistics.data.gov.uk/doc/local-authority/33,Norfolk County Council,01-Apr-11,2964182,518.48,,The Assist Trust,75365,,Community Services,Day Care / Supported Activities,52160,,,,Revenue
http://statistics.data.gov.uk/doc/local-authority/33,Norfolk County Council,01-Apr-11,2964210,1999.68,,Siemens Enterprise Communications Ltd,149149,,Community Services,Office Equipment & Supplies,40000,,,,Revenue
http://statistics.data.gov.uk/doc/local-authority/33,Norfolk County Council,01-Apr-11,2964213,574.8,,Central Laundry,93217,,Community Services,Linen & Laundry,46420,,,,Revenue
http://statistics.data.gov.uk/doc/local-authority/33,Norfolk County Council,01-Apr-11,2964524,720,,Dr Eric Duerr,68334,,Resources,Witnesses Expenses and Reports,46860,,,,Revenue
http://statistics.data.gov.uk/doc/local-authority/33,Norfolk County Council,01-Apr-11,2964573,1438.62,,Imtech Aqua Maintenance Ltd,284255,,Community Services,Plant Replacements,A1720,,,,Revenue
http://statistics.data.gov.uk/doc/local-authority/33,Norfolk County Council,01-Apr-11,2964617,665,,Family Risk Assessment Ltd,177830,,Resources,Witnesses Expenses and Reports,46860,,,,Revenue
http://statistics.data.gov.uk/doc/local-authority/33,Norfolk County Council,01-Apr-11,2964672,824,,New Boundaries Ltd,72394,,Community Services,Day Care / Supported Activities,52160,,,,Revenue
http://statistics.data.gov.uk/doc/local-authority/33,Norfolk County Council,01-Apr-11,2964707,1310.41,,Micro Librarian Systems Ltd,84898,,Children's Services,Educational Materials,40860,,,,Revenue
http://statistics.data.gov.uk/doc/local-authority/33,Norfolk County Council,01-Apr-11,2964746,146.74,,T & P Fire Ltd,172967,,Fire & Rescue,Fire Alarms,A1690,,,,Revenue
http://statistics.data.gov.uk/doc/local-authority/33,Norfolk County Council,01-Apr-11,2964746,90.46,,T & P Fire Ltd,172967,,Fire & Rescue,Fire Alarms,A1690,,,,Revenue
http://statistics.data.gov.uk/doc/local-authority/33,Norfolk County Council,01-Apr-11,2964746,247.39,,T & P Fire Ltd,172967,,Fire & Rescue,Fire Alarms,A1690,,,,Revenue
http://statistics.data.gov.uk/doc/local-authority/33,Norfolk County Council,01-Apr-11,2964748,198.12,,T & P Fire Ltd,172967,,Children's Services,Fire Alarms,A3690,,,,Revenue
http://statistics.data.gov.uk/doc/local-authority/33,Norfolk County Council,01-Apr-11,2964748,735.67,,T & P Fire Ltd,172967,,Children's Services,Fire Alarms,A3690,,,,Revenue
http://statistics.data.gov.uk/doc/local-authority/33,Norfolk County Council,01-Apr-11,2964814,799.96,,Euro RSG Riley Ltd,82665,,Community Services,Staff Advertising  Expenses,17300,,,,Revenue
http://statistics.data.gov.uk/doc/local-authority/33,Norfolk County Council,01-Apr-11,2964823,917.32,,Euro RSG Riley Ltd,82665,,Community Services,Staff Advertising  Expenses,17300,,,,Revenue
http://statistics.data.gov.uk/doc/local-authority/33,Norfolk County Council,01-Apr-11,2964829,917.32,,Euro RSG Riley Ltd,82665,,Community Services,Staff Advertising  Expenses,17300,,,,Revenue
http://statistics.data.gov.uk/doc/local-authority/33,Norfolk County Council,01-Apr-11,2964955,520.2,,Rowan Humberstone,143758,,Community Services,Day Care / Supported Activities,52160,,,,Revenue
http://statistics.data.gov.uk/doc/local-authority/33,Norfolk County Council,01-Apr-11,2964971,595,,Chartered Management Institute,98999,,Community Services,Staff Training Costs,17450,,,,Revenue
http://statistics.data.gov.uk/doc/local-authority/33,Norfolk County Council,01-Apr-11,2964973,1058.85,,Anglian Insulations Ltd,125979,,Children's Services,Certificate - Building Fabric,C2560,,,,Capital
http://statistics.data.gov.uk/doc/local-authority/33,Norfolk County Council,01-Apr-11,2965024,620.56,,Province Building Services Ltd,171598,,Children's Services,Building Repairs,A3780,,,,Revenue
http://statistics.data.gov.uk/doc/local-authority/33,Norfolk County Council,01-Apr-11,2965804,375,,Redacted - Personal Data,Redacted,,Environment Transport & Development,Road Maintenance Contractor Payments,45070,,,,Revenue
http://statistics.data.gov.uk/doc/local-authority/33,Norfolk County Council,01-Apr-11,2965804,1403,,Redacted - Personal Data,Redacted,,Environment Transport & Development,Road Maintenance Contractor Payments,45070,,,,Revenue
http://statistics.data.gov.uk/doc/local-authority/33,Norfolk County Council,01-Apr-11,2965804,391,,Redacted - Personal Data,Redacted,,Environment Transport & Development,Road Maintenance Contractor Payments,45070,,,,Revenue
http://statistics.data.gov.uk/doc/local-authority/33,Norfolk County Council,01-Apr-11,2965804,69,,Redacted - Personal Data,Redacted,,Environment Transport & Development,Road Maintenance Contractor Payments,45070,,,,Revenue
http://statistics.data.gov.uk/doc/local-authority/33,Norfolk County Council,01-Apr-11,2965811,909.48,,Enco Energy Utilities Ltd,190395,,Environment Transport & Development,Electricity,24340,,,,Revenue
http://statistics.data.gov.uk/doc/local-authority/33,Norfolk County Council,01-Apr-11,2965836,4896.76,,Great Yarmouth College,83141,,Environment Transport & Development,Other Hired & Contracted Services,44810,,,,Revenue
http://statistics.data.gov.uk/doc/local-authority/33,Norfolk County Council,01-Apr-11,2965878,1218.42,,R Wright,73742,,Children's Services,Minor Building Repairs,A3800,,,,Revenue
http://statistics.data.gov.uk/doc/local-authority/33,Norfolk County Council,01-Apr-11,2970281,552,,Wordingham Plant Hire Ltd,134000,,Environment Transport & Development,Road Maintenance Contractor Payments,45070,,,,Revenue
http://statistics.data.gov.uk/doc/local-authority/33,Norfolk County Council,01-Apr-11,2970281,1449,,Wordingham Plant Hire Ltd,134000,,Environment Transport & Development,Road Maintenance Contractor Payments,45070,,,,Revenue
http://statistics.data.gov.uk/doc/local-authority/33,Norfolk County Council,01-Apr-11,2970352,920,,Wordingham Plant Hire Ltd,134000,,Environment Transport & Development,Road Maintenance Contractor Payments,45070,,,,Revenue
http://statistics.data.gov.uk/doc/local-authority/33,Norfolk County Council,01-Apr-11,2970500,184,,Wordingham Plant Hire Ltd,134000,,Environment Transport & Development,Road Maintenance Contractor Payments,45070,,,,Revenue
http://statistics.data.gov.uk/doc/local-authority/33,Norfolk County Council,01-Apr-11,2970500,736,,Wordingham Plant Hire Ltd,134000,,Environment Transport & Development,Road Maintenance Contractor Payments,45070,,,,Revenue
http://statistics.data.gov.uk/doc/local-authority/33,Norfolk County Council,01-Apr-11,2970827,980.15,,Imtech Aqua Maintenance Ltd,284255,,Children's Services,Electrical & Mechanical Maintenance.,A3790,,,,Revenue
http://statistics.data.gov.uk/doc/local-authority/33,Norfolk County Council,01-Apr-11,2970831,1252.29,,Building Services (Easton) Ltd,81233,,Children's Services,Minor Building Repairs,A3800,,,,Revenue
http://statistics.data.gov.uk/doc/local-authority/33,Norfolk County Council,01-Apr-11,2970895,3260,,Briar Services Limited,66797,,Children's Services,Plant Replacements,A3720,,,,Revenue
http://statistics.data.gov.uk/doc/local-authority/33,Norfolk County Council,01-Apr-11,2970968,887,,G W Gooch & Sons Limited,69227,,Children's Services,Building Repairs,A3780,,,,Revenue
http://statistics.data.gov.uk/doc/local-authority/33,Norfolk County Council,01-Apr-11,2970991,1980,,Redacted - Personal Data,Redacted,,Children's Services,Structural Building Work,A3010,,,,Revenue
http://statistics.data.gov.uk/doc/local-authority/33,Norfolk County Council,01-Apr-11,2971090,255.2,,May Gurney Ltd,71794,,Environment Transport & Development,Road Maintenance Contractor Payments,45070,,,,Revenue
http://statistics.data.gov.uk/doc/local-authority/33,Norfolk County Council,01-Apr-11,2971090,1440.63,,May Gurney Ltd,71794,,Environment Transport & Development,Road Maintenance Contractor Payments,45070,,,,Revenue
http://statistics.data.gov.uk/doc/local-authority/33,Norfolk County Council,01-Apr-11,2971090,343.47,,May Gurney Ltd,71794,,Environment Transport & Development,Road Maintenance Contractor Payments,45070,,,,Revenue
http://statistics.data.gov.uk/doc/local-authority/33,Norfolk County Council,01-Apr-11,2971090,28.86,,May Gurney Ltd,71794,,Environment Transport & Development,Road Maintenance Contractor Payments,45070,,,,Revenue
http://statistics.data.gov.uk/doc/local-authority/33,Norfolk County Council,01-Apr-11,2971090,100.22,,May Gurney Ltd,71794,,Environment Transport & Development,Road Maintenance Contractor Payments,45070,,,,Revenue
http://statistics.data.gov.uk/doc/local-authority/33,Norfolk County Council,01-Apr-11,2971090,673,,May Gurney Ltd,71794,,Environment Transport & Development,Road Maintenance Contractor Payments,45070,,,,Revenue
http://statistics.data.gov.uk/doc/local-authority/33,Norfolk County Council,01-Apr-11,2971090,428.66,,May Gurney Ltd,71794,,Environment Transport & Development,Road Maintenance Contractor Payments,45070,,,,Revenue
http://statistics.data.gov.uk/doc/local-authority/33,Norfolk County Council,01-Apr-11,2971090,601.67,,May Gurney Ltd,71794,,Environment Transport & Development,Road Maintenance Contractor Payments,45070,,,,Revenue
http://statistics.data.gov.uk/doc/local-authority/33,Norfolk County Council,01-Apr-11,2971090,710.46,,May Gurney Ltd,71794,,Environment Transport & Development,Road Maintenance Contractor Payments,45070,,,,Revenue
http://statistics.data.gov.uk/doc/local-authority/33,Norfolk County Council,01-Apr-11,2971090,28.86,,May Gurney Ltd,71794,,Environment Transport & Development,Road Maintenance Contractor Payments,45070,,,,Revenue
http://statistics.data.gov.uk/doc/local-authority/33,Norfolk County Council,01-Apr-11,2971090,548.31,,May Gurney Ltd,71794,,Environment Transport & Development,Road Maintenance Contractor Payments,45070,,,,Revenue
http://statistics.data.gov.uk/doc/local-authority/33,Norfolk County Council,01-Apr-11,2971090,27.77,,May Gurney Ltd,71794,,Environment Transport & Development,Road Maintenance Contractor Payments,45070,,,,Revenue
http://statistics.data.gov.uk/doc/local-authority/33,Norfolk County Council,01-Apr-11,2971090,-905.27,,May Gurney Ltd,71794,,Environment Transport & Development,Road Maintenance Contractor Payments,45070,,,,Revenue
http://statistics.data.gov.uk/doc/local-authority/33,Norfolk County Council,01-Apr-11,2971112,308,,Redacted - Personal Data,Redacted,,Environment Transport & Development,Landfill Leachate Costs,22920,,,,Revenue
http://statistics.data.gov.uk/doc/local-authority/33,Norfolk County Council,01-Apr-11,2971112,688,,Redacted - Personal Data,Redacted,,Environment Transport & Development,Landfill Leachate Costs,22920,,,,Revenue
http://statistics.data.gov.uk/doc/local-authority/33,Norfolk County Council,01-Apr-11,2971175,135.41,,May Gurney Ltd,71794,,Environment Transport & Development,Road Maintenance Contractor Payments,45070,,,,Revenue
http://statistics.data.gov.uk/doc/local-authority/33,Norfolk County Council,01-Apr-11,2971175,7903.6,,May Gurney Ltd,71794,,Environment Transport & Development,Road Maintenance Contractor Payments,45070,,,,Revenue
http://statistics.data.gov.uk/doc/local-authority/33,Norfolk County Council,01-Apr-11,2971175,2988.41,,May Gurney Ltd,71794,,Environment Transport & Development,Road Maintenance Contractor Payments,45070,,,,Revenue
http://statistics.data.gov.uk/doc/local-authority/33,Norfolk County Council,01-Apr-11,2971175,730.41,,May Gurney Ltd,71794,,Environment Transport & Development,Road Maintenance Contractor Payments,45070,,,,Revenue
http://statistics.data.gov.uk/doc/local-authority/33,Norfolk County Council,01-Apr-11,2971175,313.88,,May Gurney Ltd,71794,,Environment Transport & Development,Road Maintenance Contractor Payments,45070,,,,Revenue
http://statistics.data.gov.uk/doc/local-authority/33,Norfolk County Council,01-Apr-11,2971175,1922,,May Gurney Ltd,71794,,Environment Transport & Development,Road Maintenance Contractor Payments,45070,,,,Revenue
http://statistics.data.gov.uk/doc/local-authority/33,Norfolk County Council,01-Apr-11,2971175,6.16,,May Gurney Ltd,71794,,Environment Transport & Development,Road Maintenance Contractor Payments,45070,,,,Revenue
http://statistics.data.gov.uk/doc/local-authority/33,Norfolk County Council,01-Apr-11,2971175,18.49,,May Gurney Ltd,71794,,Environment Transport & Development,Road Maintenance Contractor Payments,45070,,,,Revenue
http://statistics.data.gov.uk/doc/local-authority/33,Norfolk County Council,01-Apr-11,2971175,3244.78,,May Gurney Ltd,71794,,Environment Transport & Development,Road Maintenance Contractor Payments,45070,,,,Revenue
http://statistics.data.gov.uk/doc/local-authority/33,Norfolk County Council,01-Apr-11,2971175,5454.95,,May Gurney Ltd,71794,,Environment Transport & Development,Road Maintenance Contractor Payments,45070,,,,Revenue
http://statistics.data.gov.uk/doc/local-authority/33,Norfolk County Council,01-Apr-11,2971175,2507.2,,May Gurney Ltd,71794,,Environment Transport & Development,Road Maintenance Contractor Payments,45070,,,,Revenue
http://statistics.data.gov.uk/doc/local-authority/33,Norfolk County Council,01-Apr-11,2971175,21.08,,May Gurney Ltd,71794,,Environment Transport & Development,Road Maintenance Contractor Payments,45070,,,,Revenue
http://statistics.data.gov.uk/doc/local-authority/33,Norfolk County Council,01-Apr-11,2971175,5947.91,,May Gurney Ltd,71794,,Environment Transport & Development,Road Maintenance Contractor Payments,45070,,,,Revenue
http://statistics.data.gov.uk/doc/local-authority/33,Norfolk County Council,01-Apr-11,2971175,2890.21,,May Gurney Ltd,71794,,Environment Transport & Development,Road Maintenance Contractor Payments,45070,,,,Revenue
http://statistics.data.gov.uk/doc/local-authority/33,Norfolk County Council,01-Apr-11,2971175,152.38,,May Gurney Ltd,71794,,Environment Transport & Development,Road Maintenance Contractor Payments,45070,,,,Revenue
http://statistics.data.gov.uk/doc/local-authority/33,Norfolk County Council,01-Apr-11,2971175,2912.41,,May Gurney Ltd,71794,,Environment Transport & Development,Road Maintenance Contractor Payments,45070,,,,Revenue
http://statistics.data.gov.uk/doc/local-authority/33,Norfolk County Council,01-Apr-11,2971175,304.9,,May Gurney Ltd,71794,,Environment Transport & Development,Road Maintenance Contractor Payments,45070,,,,Revenue
http://statistics.data.gov.uk/doc/local-authority/33,Norfolk County Council,01-Apr-11,2971175,1154.58,,May Gurney Ltd,71794,,Environment Transport & Development,Road Maintenance Contractor Payments,45070,,,,Revenue
http://statistics.data.gov.uk/doc/local-authority/33,Norfolk County Council,01-Apr-11,2971175,76.26,,May Gurney Ltd,71794,,Environment Transport & Development,Road Maintenance Contractor Payments,45070,,,,Revenue
http://statistics.data.gov.uk/doc/local-authority/33,Norfolk County Council,01-Apr-11,2971251,7782,,Agecare Eastern Ltd,95844,,Community Services,Equipment For Disabled People,41320,,,,Revenue
http://statistics.data.gov.uk/doc/local-authority/33,Norfolk County Council,01-Apr-11,2971365,2250,,CharitySkills,519482,,Community Services,ICT Equipment Purchases,43900,,,,Revenue
http://statistics.data.gov.uk/doc/local-authority/33,Norfolk County Council,01-Apr-11,2971401,630,,East of England Co-Operative Society,116404,,Resources,Other Hired & Contracted Services,44810,,,,Revenue
http://statistics.data.gov.uk/doc/local-authority/33,Norfolk County Council,01-Apr-11,2971459,850,,Redacted - Personal Data,Redacted,,Resources,Counsel's Fees,45090,,,,Revenue
http://statistics.data.gov.uk/doc/local-authority/33,Norfolk County Council,01-Apr-11,2971536,785.06,,Eyre (Electrical) Limited,68818,,Children's Services,Boiler Servicing,A3660,,,,Revenue
http://statistics.data.gov.uk/doc/local-authority/33,Norfolk County Council,01-Apr-11,2971564,1394.75,,Redacted - Personal Data,Redacted,,Environment Transport & Development,Grounds Maintenance Costs,22500,,,,Revenue
http://statistics.data.gov.uk/doc/local-authority/33,Norfolk County Council,01-Apr-11,2971564,435,,Redacted - Personal Data,Redacted,,Environment Transport & Development,Grounds Maintenance Costs,22500,,,,Revenue
http://statistics.data.gov.uk/doc/local-authority/33,Norfolk County Council,01-Apr-11,2971564,2080.61,,Redacted - Personal Data,Redacted,,Environment Transport & Development,Grounds Maintenance Costs,22500,,,,Revenue
http://statistics.data.gov.uk/doc/local-authority/33,Norfolk County Council,01-Apr-11,2971613,534.87,,Hales Group Ltd,145876,,Community Services,Domiciliary Care,51610,,,,Revenue
http://statistics.data.gov.uk/doc/local-authority/33,Norfolk County Council,01-Apr-11,2971647,597,,Hales Group Ltd,145876,,Community Services,Domiciliary Care,51610,,,,Revenue
http://statistics.data.gov.uk/doc/local-authority/33,Norfolk County Council,01-Apr-11,2971792,4625,,Colin Dawson Windows,67591,,Community Services,Structural Building Work,A1010,,,,Revenue
http://statistics.data.gov.uk/doc/local-authority/33,Norfolk County Council,01-Apr-11,2971931,82.41,,T & P Fire Ltd,172967,,Children's Services,Fire Alarms,A1690,,,,Revenue
http://statistics.data.gov.uk/doc/local-authority/33,Norfolk County Council,01-Apr-11,2971931,139.08,,T & P Fire Ltd,172967,,Community Services,Fire Alarms,A1690,,,,Revenue
http://statistics.data.gov.uk/doc/local-authority/33,Norfolk County Council,01-Apr-11,2971931,105.38,,T & P Fire Ltd,172967,,Community Services,Fire Alarms,A1690,,,,Revenue
http://statistics.data.gov.uk/doc/local-authority/33,Norfolk County Council,01-Apr-11,2971931,304.69,,T & P Fire Ltd,172967,,Community Services,Fire Alarms,A1690,,,,Revenue
http://statistics.data.gov.uk/doc/local-authority/33,Norfolk County Council,01-Apr-11,2971931,243.76,,T & P Fire Ltd,172967,,Community Services,Fire Alarms,A1690,,,,Revenue
http://statistics.data.gov.uk/doc/local-authority/33,Norfolk County Council,01-Apr-11,2971931,13.11,,T & P Fire Ltd,172967,,Community Services,Fire Alarms,A1690,,,,Revenue
http://statistics.data.gov.uk/doc/local-authority/33,Norfolk County Council,01-Apr-11,2971931,270.46,,T & P Fire Ltd,172967,,Community Services,Fire Alarms,A1690,,,,Revenue
http://statistics.data.gov.uk/doc/local-authority/33,Norfolk County Council,01-Apr-11,2971931,593.57,,T & P Fire Ltd,172967,,Community Services,Fire Alarms,A1690,,,,Revenue
http://statistics.data.gov.uk/doc/local-authority/33,Norfolk County Council,01-Apr-11,2971931,18.75,,T & P Fire Ltd,172967,,Community Services,Fire Alarms,A1690,,,,Revenue
http://statistics.data.gov.uk/doc/local-authority/33,Norfolk County Council,01-Apr-11,2971931,174.79,,T & P Fire Ltd,172967,,Community Services,Fire Alarms,A1690,,,,Revenue
http://statistics.data.gov.uk/doc/local-authority/33,Norfolk County Council,01-Apr-11,2971931,90.46,,T & P Fire Ltd,172967,,Resources,Fire Alarms,A1690,,,,Revenue
http://statistics.data.gov.uk/doc/local-authority/33,Norfolk County Council,01-Apr-11,2971931,52.08,,T & P Fire Ltd,172967,,Children's Services,Fire Alarms,A3690,,,,Revenue
http://statistics.data.gov.uk/doc/local-authority/33,Norfolk County Council,01-Apr-11,2971931,85.31,,T & P Fire Ltd,172967,,Children's Services,Fire Alarms,A3690,,,,Revenue
http://statistics.data.gov.uk/doc/local-authority/33,Norfolk County Council,01-Apr-11,2971931,24.22,,T & P Fire Ltd,172967,,Children's Services,Fire Alarms,A3690,,,,Revenue
http://statistics.data.gov.uk/doc/local-authority/33,Norfolk County Council,01-Apr-11,2971931,164.82,,T & P Fire Ltd,172967,,Children's Services,Fire Alarms,A3690,,,,Revenue
http://statistics.data.gov.uk/doc/local-authority/33,Norfolk County Council,01-Apr-11,2971931,68.87,,T & P Fire Ltd,172967,,Children's Services,Fire Alarms,A3690,,,,Revenue
http://statistics.data.gov.uk/doc/local-authority/33,Norfolk County Council,01-Apr-11,2971931,229.15,,T & P Fire Ltd,172967,,Children's Services,Fire Alarms,A3690,,,,Revenue
http://statistics.data.gov.uk/doc/local-authority/33,Norfolk County Council,01-Apr-11,2971931,159.34,,T & P Fire Ltd,172967,,Children's Services,Fire Alarms,A3690,,,,Revenue
http://statistics.data.gov.uk/doc/local-authority/33,Norfolk County Council,01-Apr-11,2971974,425.6,,John Cooper,521469,,Community Services,Rehabilitative Services,45810,,,,Revenue
http://statistics.data.gov.uk/doc/local-authority/33,Norfolk County Council,01-Apr-11,2972088,3117.54,,Mears,336001,,Community Services,Domiciliary Care,51610,,,,Revenue
http://statistics.data.gov.uk/doc/local-authority/33,Norfolk County Council,01-Apr-11,2972090,1006.56,,Mears,336001,,Community Services,Domiciliary Care,51610,,,,Revenue
http://statistics.data.gov.uk/doc/local-authority/33,Norfolk County Council,01-Apr-11,2972095,1093.75,,East of England Ambulance Service NHS Trust,135926,,Community Services,Telephone Rental & Calls,43200,,,,Revenue
http://statistics.data.gov.uk/doc/local-authority/33,Norfolk County Council,01-Apr-11,2975158,1031.94,,Sense-Children & Adult Services,74507,,Community Services,Day Care / Supported Activities,52160,,,,Revenue
http://statistics.data.gov.uk/doc/local-authority/33,Norfolk County Council,01-Apr-11,2975158,1031.94,,Sense-Children & Adult Services,74507,,Community Services,Day Care / Supported Activities,52160,,,,Revenue
http://statistics.data.gov.uk/doc/local-authority/33,Norfolk County Council,01-Apr-11,2975404,1240.73,,Original Organics Ltd,525467,,Children's Services,Purchase Of Equipment,C3100,,,,Capital
http://statistics.data.gov.uk/doc/local-authority/33,Norfolk County Council,01-Apr-11,2976232,1915,,Active IQ Ltd,184686,,Community Services,Educational Materials,40860,,,,Revenue
http://statistics.data.gov.uk/doc/local-authority/33,Norfolk County Council,01-Apr-11,2976241,194.4,,Redacted - Personal Data,Redacted,,Children's Services,Voluntary Driver Payments,35700,,,,Revenue
http://statistics.data.gov.uk/doc/local-authority/33,Norfolk County Council,01-Apr-11,2976241,760,,Redacted - Personal Data,Redacted,,Children's Services,Foster Parents Payments,53600,,,,Revenue
http://statistics.data.gov.uk/doc/local-authority/33,Norfolk County Council,01-Apr-11,2976484,1010,,Redacted - Personal Data,Redacted,,Environment Transport & Development,Grant Payments,49090,,,,Revenue
http://statistics.data.gov.uk/doc/local-authority/33,Norfolk County Council,01-Apr-11,2976487,1545,,Redacted - Personal Data,Redacted,,Environment Transport & Development,Grant Payments,49090,,,,Revenue
http://statistics.data.gov.uk/doc/local-authority/33,Norfolk County Council,01-Apr-11,2976504,3060,,Redacted - Personal Data,Redacted,,Environment Transport & Development,Grant Payments,49090,,,,Revenue
http://statistics.data.gov.uk/doc/local-authority/33,Norfolk County Council,01-Apr-11,2976518,1000,,Redacted - Personal Data,Redacted,,Community Services,Direct Payment - One Off Payment To Carers,60050,,,,Revenue
http://statistics.data.gov.uk/doc/local-authority/33,Norfolk County Council,01-Apr-11,2976566,947.45,,Redacted - Personal Data,Redacted,,Children's Services,Other Hired & Contracted Services,44810,,,,Revenue
http://statistics.data.gov.uk/doc/local-authority/33,Norfolk County Council,01-Apr-11,2976967,550.23,,Allied Healthcare Group Ltd,104517,,Community Services,Domiciliary Care,51610,,,,Revenue
http://statistics.data.gov.uk/doc/local-authority/33,Norfolk County Council,01-Apr-11,2976997,24283.5,,Miganglia Limited,71888,,Children's Services,Purchase Of Equipment,C3100,,,,Capital
http://statistics.data.gov.uk/doc/local-authority/33,Norfolk County Council,01-Apr-11,2977004,2250,,Miganglia Limited,71888,,Children's Services,Purchase Of Equipment,C3100,,,,Capital
http://statistics.data.gov.uk/doc/local-authority/33,Norfolk County Council,01-Apr-11,2978121,1162.5,,Redacted - Personal Data,Redacted,,Children's Services,Fees/Expenses - Other Consultants,44530,,,,Revenue
http://statistics.data.gov.uk/doc/local-authority/33,Norfolk County Council,01-Apr-11,2978256,663.76,,Southern Electric,74726,,Community Services,Electricity,24340,,,,Revenue
http://statistics.data.gov.uk/doc/local-authority/33,Norfolk County Council,01-Apr-11,2978458,7275,,Turner & Butcher Limited,75799,,Environment Transport & Development,Contract Transport  Hire,34900,,,,Revenue
http://statistics.data.gov.uk/doc/local-authority/33,Norfolk County Council,01-Apr-11,2978482,1286,,Val Sabin Publications,75935,,Children's Services,Fees & Charges,44500,,,,Revenue
http://statistics.data.gov.uk/doc/local-authority/33,Norfolk County Council,01-Apr-11,2978492,781,,Val Sabin Publications,75935,,Children's Services,Fees & Charges,44500,,,,Revenue
http://statistics.data.gov.uk/doc/local-authority/33,Norfolk County Council,01-Apr-11,2978572,6626.82,,Archive Logistics,80679,,Children's Services,Archive Boxes,41870,,,,Revenue
http://statistics.data.gov.uk/doc/local-authority/33,Norfolk County Council,01-Apr-11,2978594,847.13,,Waste Recycling Group Limited,76094,,Environment Transport & Development,Private Contractor Site Operation Payments,52550,,,,Revenue
http://statistics.data.gov.uk/doc/local-authority/33,Norfolk County Council,01-Apr-11,2978596,1223.4,,Waste Recycling Group Limited,76094,,Environment Transport & Development,Private Contractor Site Operation Payments,52550,,,,Revenue
http://statistics.data.gov.uk/doc/local-authority/33,Norfolk County Council,01-Apr-11,2978601,540.36,,Waste Recycling Group Limited,76094,,Environment Transport & Development,Private Contractor Site Operation Payments,52550,,,,Revenue
http://statistics.data.gov.uk/doc/local-authority/33,Norfolk County Council,01-Apr-11,2978606,651.95,,Waste Recycling Group Limited,76094,,Environment Transport & Development,Private Contractor Site Operation Payments,52550,,,,Revenue
http://statistics.data.gov.uk/doc/local-authority/33,Norfolk County Council,01-Apr-11,2978611,813.36,,Waste Recycling Group Limited,76094,,Environment Transport & Development,Private Contractor Site Operation Payments,52550,,,,Revenue
http://statistics.data.gov.uk/doc/local-authority/33,Norfolk County Council,01-Apr-11,2978615,1320.86,,Waste Recycling Group Limited,76094,,Environment Transport & Development,Private Contractor Site Operation Payments,52550,,,,Revenue
http://statistics.data.gov.uk/doc/local-authority/33,Norfolk County Council,01-Apr-11,2978625,1231.96,,Waste Recycling Group Limited,76094,,Environment Transport & Development,Private Contractor Site Operation Payments,52550,,,,Revenue
http://statistics.data.gov.uk/doc/local-authority/33,Norfolk County Council,01-Apr-11,2978633,943.27,,Waste Recycling Group Limited,76094,,Environment Transport & Development,Private Contractor Site Operation Payments,52550,,,,Revenue
http://statistics.data.gov.uk/doc/local-authority/33,Norfolk County Council,01-Apr-11,2978646,1405.26,,Waste Recycling Group Limited,76094,,Environment Transport & Development,Private Contractor Site Operation Payments,52550,,,,Revenue
http://statistics.data.gov.uk/doc/local-authority/33,Norfolk County Council,01-Apr-11,2978684,8812.79,,Waste Recycling Group Limited,76094,,Environment Transport & Development,Private Contractor Site Operation Payments,52550,,,,Revenue
http://statistics.data.gov.uk/doc/local-authority/33,Norfolk County Council,01-Apr-11,2978694,8236.34,,Waste Recycling Group Limited,76094,,Environment Transport & Development,Private Contractor Site Operation Payments,52550,,,,Revenue
http://statistics.data.gov.uk/doc/local-authority/33,Norfolk County Council,01-Apr-11,2978711,53200.28,,Waste Recycling Group Limited,76094,,Environment Transport & Development,Private Contractor Site Operation Payments,52550,,,,Revenue
http://statistics.data.gov.uk/doc/local-authority/33,Norfolk County Council,01-Apr-11,2978717,47812.05,,Waste Recycling Group Limited,76094,,Environment Transport & Development,Private Contractor Site Operation Payments,52550,,,,Revenue
http://statistics.data.gov.uk/doc/local-authority/33,Norfolk County Council,01-Apr-11,2978719,9559.11,,Waste Recycling Group Limited,76094,,Environment Transport & Development,Private Contractor Site Operation Payments,52550,,,,Revenue
http://statistics.data.gov.uk/doc/local-authority/33,Norfolk County Council,01-Apr-11,2978723,44166.76,,Waste Recycling Group Limited,76094,,Environment Transport & Development,Private Contractor Site Operation Payments,52550,,,,Revenue
http://statistics.data.gov.uk/doc/local-authority/33,Norfolk County Council,01-Apr-11,2978725,54525.9,,Waste Recycling Group Limited,76094,,Environment Transport & Development,Private Contractor Site Operation Payments,52550,,,,Revenue
http://statistics.data.gov.uk/doc/local-authority/33,Norfolk County Council,01-Apr-11,2978727,22707.99,,Waste Recycling Group Limited,76094,,Environment Transport & Development,Private Contractor Site Operation Payments,52550,,,,Revenue
http://statistics.data.gov.uk/doc/local-authority/33,Norfolk County Council,01-Apr-11,2978732,26781.04,,Waste Recycling Group Limited,76094,,Environment Transport & Development,Private Contractor Site Operation Payments,52550,,,,Revenue
http://statistics.data.gov.uk/doc/local-authority/33,Norfolk County Council,01-Apr-11,2978765,30280.76,,Waste Recycling Group Limited,76094,,Environment Transport & Development,Private Contractor Site Operation Payments,52550,,,,Revenue
http://statistics.data.gov.uk/doc/local-authority/33,Norfolk County Council,01-Apr-11,2978866,101.24,,T & P Fire Ltd,172967,,Resources,Building Maintenance & Repairs,23300,,,,Revenue
http://statistics.data.gov.uk/doc/local-authority/33,Norfolk County Council,01-Apr-11,2978866,206.29,,T & P Fire Ltd,172967,,Children's Services,Fire Alarms,A1690,,,,Revenue
http://statistics.data.gov.uk/doc/local-authority/33,Norfolk County Council,01-Apr-11,2978866,10.52,,T & P Fire Ltd,172967,,Children's Services,Fire Alarms,A1690,,,,Revenue
http://statistics.data.gov.uk/doc/local-authority/33,Norfolk County Council,01-Apr-11,2978866,174.39,,T & P Fire Ltd,172967,,Children's Services,Fire Alarms,A1690,,,,Revenue
http://statistics.data.gov.uk/doc/local-authority/33,Norfolk County Council,01-Apr-11,2978866,75,,T & P Fire Ltd,172967,,Community Services,Fire Alarms,A1690,,,,Revenue
http://statistics.data.gov.uk/doc/local-authority/33,Norfolk County Council,01-Apr-11,2978866,21.05,,T & P Fire Ltd,172967,,Community Services,Fire Alarms,A1690,,,,Revenue
http://statistics.data.gov.uk/doc/local-authority/33,Norfolk County Council,01-Apr-11,2978866,834.38,,T & P Fire Ltd,172967,,Community Services,Fire Alarms,A1690,,,,Revenue
http://statistics.data.gov.uk/doc/local-authority/33,Norfolk County Council,01-Apr-11,2978866,153.84,,T & P Fire Ltd,172967,,Community Services,Fire Alarms,A1690,,,,Revenue
http://statistics.data.gov.uk/doc/local-authority/33,Norfolk County Council,01-Apr-11,2978866,82.23,,T & P Fire Ltd,172967,,Fire & Rescue,Fire Alarms,A1690,,,,Revenue
http://statistics.data.gov.uk/doc/local-authority/33,Norfolk County Council,01-Apr-11,2978866,164.46,,T & P Fire Ltd,172967,,Fire & Rescue,Fire Alarms,A1690,,,,Revenue
http://statistics.data.gov.uk/doc/local-authority/33,Norfolk County Council,01-Apr-11,2978866,102.67,,T & P Fire Ltd,172967,,Children's Services,School Equipment Inspection/Testing,A3610,,,,Revenue
http://statistics.data.gov.uk/doc/local-authority/33,Norfolk County Council,01-Apr-11,2978866,82.23,,T & P Fire Ltd,172967,,Children's Services,Fire Alarms,A3690,,,,Revenue
http://statistics.data.gov.uk/doc/local-authority/33,Norfolk County Council,01-Apr-11,2978866,11.32,,T & P Fire Ltd,172967,,Children's Services,Fire Alarms,A3690,,,,Revenue
http://statistics.data.gov.uk/doc/local-authority/33,Norfolk County Council,01-Apr-11,2978866,146.4,,T & P Fire Ltd,172967,,Children's Services,Fire Alarms,A3690,,,,Revenue
http://statistics.data.gov.uk/doc/local-authority/33,Norfolk County Council,01-Apr-11,2978908,452.82,,Eyre (Electrical) Limited,68818,,Resources,Buildings Fixtures & Fittings,24950,,,,Revenue
http://statistics.data.gov.uk/doc/local-authority/33,Norfolk County Council,01-Apr-11,2978923,16369.98,,Norfolk Env Waste Services Ltd,72492,,Environment Transport & Development,Private Contractor Site Operation Payments,52550,,,,Revenue
http://statistics.data.gov.uk/doc/local-authority/33,Norfolk County Council,01-Apr-11,2978927,65.63,,T & P Fire Ltd,172967,,Children's Services,Fire Alarms,A1690,,,,Revenue
http://statistics.data.gov.uk/doc/local-authority/33,Norfolk County Council,01-Apr-11,2978927,213.67,,T & P Fire Ltd,172967,,Children's Services,Fire Alarms,A1690,,,,Revenue
http://statistics.data.gov.uk/doc/local-authority/33,Norfolk County Council,01-Apr-11,2978927,1243.13,,T & P Fire Ltd,172967,,Community Services,Fire Alarms,A1690,,,,Revenue
http://statistics.data.gov.uk/doc/local-authority/33,Norfolk County Council,01-Apr-11,2978927,1668.9,,T & P Fire Ltd,172967,,Community Services,Fire Alarms,A1690,,,,Revenue
http://statistics.data.gov.uk/doc/local-authority/33,Norfolk County Council,01-Apr-11,2978927,115,,T & P Fire Ltd,172967,,Community Services,Fire Alarms,A1690,,,,Revenue
http://statistics.data.gov.uk/doc/local-authority/33,Norfolk County Council,01-Apr-11,2978927,195,,T & P Fire Ltd,172967,,Community Services,Fire Alarms,A1690,,,,Revenue
http://statistics.data.gov.uk/doc/local-authority/33,Norfolk County Council,01-Apr-11,2978927,479.83,,T & P Fire Ltd,172967,,Community Services,Fire Alarms,A1690,,,,Revenue
http://statistics.data.gov.uk/doc/local-authority/33,Norfolk County Council,01-Apr-11,2978927,6767.14,,T & P Fire Ltd,172967,,Community Services,Fire Alarms,A1690,,,,Revenue
http://statistics.data.gov.uk/doc/local-authority/33,Norfolk County Council,01-Apr-11,2978927,102.21,,T & P Fire Ltd,172967,,Children's Services,Fire Alarms,A3690,,,,Revenue
http://statistics.data.gov.uk/doc/local-authority/33,Norfolk County Council,01-Apr-11,2978927,135.24,,T & P Fire Ltd,172967,,Children's Services,Fire Alarms,A3690,,,,Revenue
http://statistics.data.gov.uk/doc/local-authority/33,Norfolk County Council,01-Apr-11,2978945,51.94,,T & P Fire Ltd,172967,,Children's Services,Fire Alarms,A1690,,,,Revenue
http://statistics.data.gov.uk/doc/local-authority/33,Norfolk County Council,01-Apr-11,2978945,601.82,,T & P Fire Ltd,172967,,Children's Services,Fire Alarms,A1690,,,,Revenue
http://statistics.data.gov.uk/doc/local-authority/33,Norfolk County Council,01-Apr-11,2978945,382.03,,T & P Fire Ltd,172967,,Community Services,Fire Alarms,A1690,,,,Revenue
http://statistics.data.gov.uk/doc/local-authority/33,Norfolk County Council,01-Apr-11,2978945,316.4,,T & P Fire Ltd,172967,,Community Services,Fire Alarms,A1690,,,,Revenue
http://statistics.data.gov.uk/doc/local-authority/33,Norfolk County Council,01-Apr-11,2978945,110.54,,T & P Fire Ltd,172967,,Children's Services,Fire Alarms,A3690,,,,Revenue
http://statistics.data.gov.uk/doc/local-authority/33,Norfolk County Council,01-Apr-11,2978945,68.44,,T & P Fire Ltd,172967,,Children's Services,Fire Alarms,A3690,,,,Revenue
http://statistics.data.gov.uk/doc/local-authority/33,Norfolk County Council,01-Apr-11,2978945,51.94,,T & P Fire Ltd,172967,,Children's Services,Fire Alarms,A3690,,,,Revenue
http://statistics.data.gov.uk/doc/local-authority/33,Norfolk County Council,01-Apr-11,2978945,98.35,,T & P Fire Ltd,172967,,Children's Services,Fire Alarms,A3690,,,,Revenue
http://statistics.data.gov.uk/doc/local-authority/33,Norfolk County Council,01-Apr-11,2978945,82.23,,T & P Fire Ltd,172967,,Children's Services,Fire Alarms,A3690,,,,Revenue
http://statistics.data.gov.uk/doc/local-authority/33,Norfolk County Council,01-Apr-11,2978945,51.94,,T & P Fire Ltd,172967,,Children's Services,Fire Alarms,A3690,,,,Revenue
http://statistics.data.gov.uk/doc/local-authority/33,Norfolk County Council,01-Apr-11,2978945,227.32,,T & P Fire Ltd,172967,,Children's Services,Fire Alarms,A3690,,,,Revenue
http://statistics.data.gov.uk/doc/local-authority/33,Norfolk County Council,01-Apr-11,2978962,245.76,,T & P Fire Ltd,172967,,Children's Services,Fire Alarms,A1690,,,,Revenue
http://statistics.data.gov.uk/doc/local-authority/33,Norfolk County Council,01-Apr-11,2978962,184.19,,T & P Fire Ltd,172967,,Children's Services,Fire Alarms,A1690,,,,Revenue
http://statistics.data.gov.uk/doc/local-authority/33,Norfolk County Council,01-Apr-11,2978962,533.39,,T & P Fire Ltd,172967,,Community Services,Fire Alarms,A1690,,,,Revenue
http://statistics.data.gov.uk/doc/local-authority/33,Norfolk County Council,01-Apr-11,2978962,434.64,,T & P Fire Ltd,172967,,Community Services,Fire Alarms,A1690,,,,Revenue
http://statistics.data.gov.uk/doc/local-authority/33,Norfolk County Council,01-Apr-11,2978962,316.4,,T & P Fire Ltd,172967,,Community Services,Fire Alarms,A1690,,,,Revenue
http://statistics.data.gov.uk/doc/local-authority/33,Norfolk County Council,01-Apr-11,2978962,277.99,,T & P Fire Ltd,172967,,Community Services,Fire Alarms,A1690,,,,Revenue
http://statistics.data.gov.uk/doc/local-authority/33,Norfolk County Council,01-Apr-11,2978962,153.84,,T & P Fire Ltd,172967,,Community Services,Fire Alarms,A1690,,,,Revenue
http://statistics.data.gov.uk/doc/local-authority/33,Norfolk County Council,01-Apr-11,2978962,689.95,,T & P Fire Ltd,172967,,Resources,Fire Alarms,A1690,,,,Revenue
http://statistics.data.gov.uk/doc/local-authority/33,Norfolk County Council,01-Apr-11,2978962,82.23,,T & P Fire Ltd,172967,,Resources,Fire Alarms,A1690,,,,Revenue
http://statistics.data.gov.uk/doc/local-authority/33,Norfolk County Council,01-Apr-11,2978962,28.03,,T & P Fire Ltd,172967,,Children's Services,Fire Alarms,A3690,,,,Revenue
http://statistics.data.gov.uk/doc/local-authority/33,Norfolk County Council,01-Apr-11,2978962,94.88,,T & P Fire Ltd,172967,,Children's Services,Fire Alarms,A3690,,,,Revenue
http://statistics.data.gov.uk/doc/local-authority/33,Norfolk County Council,01-Apr-11,2978962,110.54,,T & P Fire Ltd,172967,,Children's Services,Fire Alarms,A3690,,,,Revenue
http://statistics.data.gov.uk/doc/local-authority/33,Norfolk County Council,01-Apr-11,2978962,117,,T & P Fire Ltd,172967,,Children's Services,Fire Alarms,A3690,,,,Revenue
http://statistics.data.gov.uk/doc/local-authority/33,Norfolk County Council,01-Apr-11,2978976,202.52,,T & P Fire Ltd,172967,,Children's Services,Fire Alarms,A1690,,,,Revenue
http://statistics.data.gov.uk/doc/local-authority/33,Norfolk County Council,01-Apr-11,2978976,172.45,,T & P Fire Ltd,172967,,Children's Services,Fire Alarms,A1690,,,,Revenue
http://statistics.data.gov.uk/doc/local-authority/33,Norfolk County Council,01-Apr-11,2978976,88.25,,T & P Fire Ltd,172967,,Children's Services,Fire Alarms,A1690,,,,Revenue
http://statistics.data.gov.uk/doc/local-authority/33,Norfolk County Council,01-Apr-11,2978976,547.7,,T & P Fire Ltd,172967,,Community Services,Fire Alarms,A1690,,,,Revenue
http://statistics.data.gov.uk/doc/local-authority/33,Norfolk County Council,01-Apr-11,2978976,847.49,,T & P Fire Ltd,172967,,Community Services,Fire Alarms,A1690,,,,Revenue
http://statistics.data.gov.uk/doc/local-authority/33,Norfolk County Council,01-Apr-11,2978976,37.5,,T & P Fire Ltd,172967,,Community Services,Fire Alarms,A1690,,,,Revenue
http://statistics.data.gov.uk/doc/local-authority/33,Norfolk County Council,01-Apr-11,2978976,316.4,,T & P Fire Ltd,172967,,Community Services,Fire Alarms,A1690,,,,Revenue
http://statistics.data.gov.uk/doc/local-authority/33,Norfolk County Council,01-Apr-11,2978976,164.46,,T & P Fire Ltd,172967,,Resources,Fire Alarms,A1690,,,,Revenue
http://statistics.data.gov.uk/doc/local-authority/33,Norfolk County Council,01-Apr-11,2978976,316.4,,T & P Fire Ltd,172967,,Children's Services,School Equipment Inspection/Testing,A3610,,,,Revenue
http://statistics.data.gov.uk/doc/local-authority/33,Norfolk County Council,01-Apr-11,2978976,530.65,,T & P Fire Ltd,172967,,Children's Services,Fire Alarms,A3690,,,,Revenue
http://statistics.data.gov.uk/doc/local-authority/33,Norfolk County Council,01-Apr-11,2978976,51.94,,T & P Fire Ltd,172967,,Children's Services,Fire Alarms,A3690,,,,Revenue
http://statistics.data.gov.uk/doc/local-authority/33,Norfolk County Council,01-Apr-11,2979012,52.08,,T & P Fire Ltd,172967,,Children's Services,Fire Alarms,A1690,,,,Revenue
http://statistics.data.gov.uk/doc/local-authority/33,Norfolk County Council,01-Apr-11,2979012,135.46,,T & P Fire Ltd,172967,,Community Services,Fire Alarms,A1690,,,,Revenue
http://statistics.data.gov.uk/doc/local-authority/33,Norfolk County Council,01-Apr-11,2979012,56.25,,T & P Fire Ltd,172967,,Community Services,Fire Alarms,A1690,,,,Revenue
http://statistics.data.gov.uk/doc/local-authority/33,Norfolk County Council,01-Apr-11,2979012,420.59,,T & P Fire Ltd,172967,,Community Services,Fire Alarms,A1690,,,,Revenue
http://statistics.data.gov.uk/doc/local-authority/33,Norfolk County Council,01-Apr-11,2979012,37.5,,T & P Fire Ltd,172967,,Community Services,Fire Alarms,A1690,,,,Revenue
http://statistics.data.gov.uk/doc/local-authority/33,Norfolk County Council,01-Apr-11,2979012,150,,T & P Fire Ltd,172967,,Community Services,Fire Alarms,A1690,,,,Revenue
http://statistics.data.gov.uk/doc/local-authority/33,Norfolk County Council,01-Apr-11,2979012,56.16,,T & P Fire Ltd,172967,,Community Services,Fire Alarms,A1690,,,,Revenue
http://statistics.data.gov.uk/doc/local-authority/33,Norfolk County Council,01-Apr-11,2979012,164.82,,T & P Fire Ltd,172967,,Community Services,Fire Alarms,A1690,,,,Revenue
http://statistics.data.gov.uk/doc/local-authority/33,Norfolk County Council,01-Apr-11,2979012,146.74,,T & P Fire Ltd,172967,,Children's Services,School Equipment Inspection/Testing,A3610,,,,Revenue
http://statistics.data.gov.uk/doc/local-authority/33,Norfolk County Council,01-Apr-11,2979012,4.98,,T & P Fire Ltd,172967,,Children's Services,Fire Alarms,A3690,,,,Revenue
http://statistics.data.gov.uk/doc/local-authority/33,Norfolk County Council,01-Apr-11,2979012,14.04,,T & P Fire Ltd,172967,,Children's Services,Fire Alarms,A3690,,,,Revenue
http://statistics.data.gov.uk/doc/local-authority/33,Norfolk County Council,01-Apr-11,2979012,53.88,,T & P Fire Ltd,172967,,Children's Services,Fire Alarms,A3690,,,,Revenue
http://statistics.data.gov.uk/doc/local-authority/33,Norfolk County Council,01-Apr-11,2979106,2882.63,,Redacted - Personal Data,Redacted,,Environment Transport & Development,Grant Payments,49090,,,,Revenue
http://statistics.data.gov.uk/doc/local-authority/33,Norfolk County Council,01-Apr-11,2979551,-1024.86,,Mervyn Lambert Plant Ltd,71849,,Environment Transport & Development,Contract Plant & Machinery Hire,34930,,,,Revenue
http://statistics.data.gov.uk/doc/local-authority/33,Norfolk County Council,01-Apr-11,2979659,300,,Great Yarmouth Racecourse Limited,69442,,Children's Services,"Non Staff Course, Conference & Subsistence Expenses",46730,,,,Revenue
http://statistics.data.gov.uk/doc/local-authority/33,Norfolk County Council,01-Apr-11,2979824,41.87,,Refresh Express Ltd,110321,,Environment Transport & Development,Other Hired & Contracted Services,44810,,,,Revenue
http://statistics.data.gov.uk/doc/local-authority/33,Norfolk County Council,01-Apr-11,2979824,1152.98,,Refresh Express Ltd,110321,,Environment Transport & Development,Other Hired & Contracted Services,44810,,,,Revenue
http://statistics.data.gov.uk/doc/local-authority/33,Norfolk County Council,01-Apr-11,2979824,199.79,,Refresh Express Ltd,110321,,Environment Transport & Development,Other Hired & Contracted Services,44810,,,,Revenue
http://statistics.data.gov.uk/doc/local-authority/33,Norfolk County Council,01-Apr-11,2979824,355.79,,Refresh Express Ltd,110321,,Environment Transport & Development,Other Hired & Contracted Services,44810,,,,Revenue
http://statistics.data.gov.uk/doc/local-authority/33,Norfolk County Council,01-Apr-11,2979824,26.47,,Refresh Express Ltd,110321,,Environment Transport & Development,Other Hired & Contracted Services,44810,,,,Revenue
http://statistics.data.gov.uk/doc/local-authority/33,Norfolk County Council,01-Apr-11,2980061,-3470,,Stone Computers Ltd,91070,,Children's Services,ICT Equipment Purchases,43900,,,,Revenue
http://statistics.data.gov.uk/doc/local-authority/33,Norfolk County Council,01-Apr-11,2980062,600,,Redacted - Personal Data,Redacted,,Children's Services,Fees/Expenses - Other Consultants,44530,,,,Revenue
http://statistics.data.gov.uk/doc/local-authority/33,Norfolk County Council,01-Apr-11,2980462,665,,Redacted - Personal Data,Redacted,,Children's Services,Staff Training Costs,17450,,,,Revenue
http://statistics.data.gov.uk/doc/local-authority/33,Norfolk County Council,01-Apr-11,2980960,-48.25,,Konica Minolta Business Solutions East Ltd,70912,,Community Services,Photocopying - General,46520,,,,Revenue
http://statistics.data.gov.uk/doc/local-authority/33,Norfolk County Council,01-Apr-11,2980960,-53.43,,Konica Minolta Business Solutions East Ltd,70912,,Community Services,Photocopying - General,46520,,,,Revenue
http://statistics.data.gov.uk/doc/local-authority/33,Norfolk County Council,01-Apr-11,2980960,-29.79,,Konica Minolta Business Solutions East Ltd,70912,,Community Services,Photocopying - General,46520,,,,Revenue
http://statistics.data.gov.uk/doc/local-authority/33,Norfolk County Council,01-Apr-11,2980960,-287.62,,Konica Minolta Business Solutions East Ltd,70912,,Community Services,Photocopying - General,46520,,,,Revenue
http://statistics.data.gov.uk/doc/local-authority/33,Norfolk County Council,01-Apr-11,2980960,-80.95,,Konica Minolta Business Solutions East Ltd,70912,,Community Services,Photocopying - General,46520,,,,Revenue
http://statistics.data.gov.uk/doc/local-authority/33,Norfolk County Council,01-Apr-11,2981029,3409,,Bidwells Sundry Rents Commercial Client Account,189134,,Resources,Services Provided By Landlord,24600,,,,Revenue
http://statistics.data.gov.uk/doc/local-authority/33,Norfolk County Council,01-Apr-11,2981047,666.62,,Misco (Computer Supplies) Ltd,71935,,Children's Services,ICT Equipment Purchases,43900,,,,Revenue
http://statistics.data.gov.uk/doc/local-authority/33,Norfolk County Council,01-Apr-11,2981179,7124.86,,T Farrow Construction Ltd,75144,,Children's Services,Asphalting,A3040,,,,Revenue
http://statistics.data.gov.uk/doc/local-authority/33,Norfolk County Council,01-Apr-11,2981299,1454,,Eyre (Electrical) Limited,68818,,Children's Services,Repair & Replacement Of Light Fittings,A3740,,,,Revenue
http://statistics.data.gov.uk/doc/local-authority/33,Norfolk County Council,01-Apr-11,2981299,1401,,Eyre (Electrical) Limited,68818,,Children's Services,"Certificate - Electricity, Power & Light",C2780,,,,Capital
http://statistics.data.gov.uk/doc/local-authority/33,Norfolk County Council,01-Apr-11,2981355,1164.16,,Province Building Services Ltd,171598,,Community Services,Adaptation/Improvement-Existing Buildings,C5320,,,,Capital
http://statistics.data.gov.uk/doc/local-authority/33,Norfolk County Council,01-Apr-11,2981484,545,,Redacted - Personal Data,Redacted,,Community Services,Building Repairs,A1780,,,,Revenue
http://statistics.data.gov.uk/doc/local-authority/33,Norfolk County Council,01-Apr-11,2981498,675,,Eyre (Electrical) Limited,68818,,Community Services,Tank Clean/Water System Disinfection,A1630,,,,Revenue
http://statistics.data.gov.uk/doc/local-authority/33,Norfolk County Council,01-Apr-11,2981605,6150,,Hertfordshire County Council,83412,,Community Services,Other Miscellaneous Expenses,48080,,,,Revenue
http://statistics.data.gov.uk/doc/local-authority/33,Norfolk County Council,01-Apr-11,2981620,720,,Mr J Carpmael,133163,,Community Services,Fees & Charges,44500,,,,Revenue
http://statistics.data.gov.uk/doc/local-authority/33,Norfolk County Council,01-Apr-11,2981902,469.2,,Hughes Hall (Cambridge),83519,,Community Services,Hospitality Expenses,47970,,,,Revenue
http://statistics.data.gov.uk/doc/local-authority/33,Norfolk County Council,01-Apr-11,2982021,-3472,,Nexus Fostering Ltd,91708,,Children's Services,Payments to Organisations Providing Services To NCC,52000,,,,Revenue
http://statistics.data.gov.uk/doc/local-authority/33,Norfolk County Council,01-Apr-11,2982033,734,,Broadland Guarding Services Limited,66869,,Children's Services,Estate / Site Management Costs,22550,,,,Revenue
http://statistics.data.gov.uk/doc/local-authority/33,Norfolk County Council,01-Apr-11,2982336,532.94,,Redacted - Personal Data,Redacted,,Community Services,Direct Payment - Day Care Services / Supported Activities,60060,,,,Revenue
http://statistics.data.gov.uk/doc/local-authority/33,Norfolk County Council,01-Apr-11,2982386,702.8,,Staff Call Recruitment Specialists Ltd,74897,,Resources,Agency Staff - Operational APT&C,8610,,,,Revenue
http://statistics.data.gov.uk/doc/local-authority/33,Norfolk County Council,01-Apr-11,2982386,318.85,,Staff Call Recruitment Specialists Ltd,74897,,Resources,Temporary Staff Admin & Clerical,13750,,,,Revenue
http://statistics.data.gov.uk/doc/local-authority/33,Norfolk County Council,01-Apr-11,2982386,331.89,,Staff Call Recruitment Specialists Ltd,74897,,Resources,Temporary Staff Admin & Clerical,13750,,,,Revenue
http://statistics.data.gov.uk/doc/local-authority/33,Norfolk County Council,01-Apr-11,2982386,816.17,,Staff Call Recruitment Specialists Ltd,74897,,Resources,Temporary Staff Admin & Clerical,13750,,,,Revenue
http://statistics.data.gov.uk/doc/local-authority/33,Norfolk County Council,01-Apr-11,2982386,926.59,,Staff Call Recruitment Specialists Ltd,74897,,Resources,Agency Staff,13800,,,,Revenue
http://statistics.data.gov.uk/doc/local-authority/33,Norfolk County Council,01-Apr-11,2982386,1363.6,,Staff Call Recruitment Specialists Ltd,74897,,Resources,Agency Staff,13800,,,,Revenue
http://statistics.data.gov.uk/doc/local-authority/33,Norfolk County Council,01-Apr-11,2982386,414.4,,Staff Call Recruitment Specialists Ltd,74897,,,Agency Staff,13800,,,,Revenue
http://statistics.data.gov.uk/doc/local-authority/33,Norfolk County Council,01-Apr-11,2982386,1151.35,,Staff Call Recruitment Specialists Ltd,74897,,Children's Services,Purchase Of IT,C3200,,,,Capital
http://statistics.data.gov.uk/doc/local-authority/33,Norfolk County Council,01-Apr-11,2982419,1225,,Dr C Mayer,82304,,Children's Services,Consultants Fees and Charges,44630,,,,Revenue
http://statistics.data.gov.uk/doc/local-authority/33,Norfolk County Council,01-Apr-11,2982669,3150,,Redacted - Personal Data,Redacted,,Children's Services,Providing Financial Assistance to Service Users,45650,,,,Revenue
http://statistics.data.gov.uk/doc/local-authority/33,Norfolk County Council,01-Apr-11,2983120,1086.75,,Gold Group Ltd,375020,,Environment Transport & Development,Agency Staff - Operational APT&C,8610,,,,Revenue
http://statistics.data.gov.uk/doc/local-authority/33,Norfolk County Council,01-Apr-11,2983121,1197,,Gold Group Ltd,375020,,Environment Transport & Development,Agency Staff - Operational APT&C,8610,,,,Revenue
http://statistics.data.gov.uk/doc/local-authority/33,Norfolk County Council,01-Apr-11,2983139,950,,Cdi-Anders Elite Ltd,81578,,Environment Transport & Development,Agency Staff - Operational APT&C,8610,,,,Revenue
http://statistics.data.gov.uk/doc/local-authority/33,Norfolk County Council,01-Apr-11,2983159,925,,Cdi-Anders Elite Ltd,81578,,Environment Transport & Development,Agency Staff - Operational APT&C,8610,,,,Revenue
http://statistics.data.gov.uk/doc/local-authority/33,Norfolk County Council,01-Apr-11,2983279,522.83,,Espo,68527,,Community Services,Gas (mains supplied),24360,,,,Revenue
http://statistics.data.gov.uk/doc/local-authority/33,Norfolk County Council,01-Apr-11,2983284,425.88,,Espo,68527,,Community Services,Gas (mains supplied),24360,,,,Revenue
http://statistics.data.gov.uk/doc/local-authority/33,Norfolk County Council,01-Apr-11,2983288,558.05,,Espo,68527,,Community Services,Gas (mains supplied),24360,,,,Revenue
http://statistics.data.gov.uk/doc/local-authority/33,Norfolk County Council,01-Apr-11,2983292,-422.35,,Espo,68527,,Community Services,Gas (mains supplied),24360,,,,Revenue
http://statistics.data.gov.uk/doc/local-authority/33,Norfolk County Council,01-Apr-11,2983293,389849.93,,BT Global Services,81223,,Children's Services,Purchase Of IT,C3200,,,,Capital
http://statistics.data.gov.uk/doc/local-authority/33,Norfolk County Council,01-Apr-11,2983296,224798.55,,BT Global Services,81223,,Children's Services,Purchase Of IT,C3200,,,,Capital
http://statistics.data.gov.uk/doc/local-authority/33,Norfolk County Council,01-Apr-11,2983300,-440,,Espo,68527,,Community Services,Gas (mains supplied),24360,,,,Revenue
http://statistics.data.gov.uk/doc/local-authority/33,Norfolk County Council,01-Apr-11,2983301,10030.95,,Redacted - Personal Data,Redacted,,Children's Services,Care Leavers Rent & Accommodation,54160,,,,Revenue
http://statistics.data.gov.uk/doc/local-authority/33,Norfolk County Council,01-Apr-11,2983304,4910.4,,Continuum Care & Education Group,128609,,Children's Services,Private Voluntary Independent School Pre-school & Playgroup,52200,,,,Revenue
http://statistics.data.gov.uk/doc/local-authority/33,Norfolk County Council,01-Apr-11,2983305,8.39,,Amey LG Ltd,166086,,Environment Transport & Development,Vandalism Under 500,23340,,,,Revenue
http://statistics.data.gov.uk/doc/local-authority/33,Norfolk County Council,01-Apr-11,2983305,921.78,,Amey LG Ltd,166086,,Environment Transport & Development,Highway Rechargeable Works Payments,54700,,,,Revenue
http://statistics.data.gov.uk/doc/local-authority/33,Norfolk County Council,01-Apr-11,2983320,7500,,Chartwell House,138980,,Children's Services,Private Voluntary Independent School Pre-school & Playgroup,52200,,,,Revenue
http://statistics.data.gov.uk/doc/local-authority/33,Norfolk County Council,01-Apr-11,2983323,2178,,Redacted - Personal Data,Redacted,,Environment Transport & Development,Grounds Maintenance Costs,22500,,,,Revenue
http://statistics.data.gov.uk/doc/local-authority/33,Norfolk County Council,01-Apr-11,2983327,7935.04,,NETwork Interventions,277224,,Children's Services,Other Hired & Contracted Services,44810,,,,Revenue
http://statistics.data.gov.uk/doc/local-authority/33,Norfolk County Council,01-Apr-11,2983330,1086,,Verma Care Limited,75949,,Community Services,Short Term Residential Care,50210,,,,Revenue
http://statistics.data.gov.uk/doc/local-authority/33,Norfolk County Council,01-Apr-11,2983332,563.09,,Twin Oaks Nursing Home,75801,,Community Services,Long Term Care with Nursing,51550,,,,Revenue
http://statistics.data.gov.uk/doc/local-authority/33,Norfolk County Council,01-Apr-11,2983335,8945.71,,Twin Oaks Nursing Home,75801,,Community Services,Personal Budget - Long Term Nursing Care,60160,,,,Revenue
http://statistics.data.gov.uk/doc/local-authority/33,Norfolk County Council,01-Apr-11,2983336,1925.54,,Twin Oaks Nursing Home,75801,,Community Services,Long Term Care with Nursing,51550,,,,Revenue
http://statistics.data.gov.uk/doc/local-authority/33,Norfolk County Council,01-Apr-11,2983337,-1925.54,,Twin Oaks Nursing Home,75801,,Community Services,Personal Budget - Long Term Nursing Care,60160,,,,Revenue
http://statistics.data.gov.uk/doc/local-authority/33,Norfolk County Council,01-Apr-11,2983338,9964.29,,Bupa Care Services,66941,,Community Services,Long Term Care with Nursing,51550,,,,Revenue
http://statistics.data.gov.uk/doc/local-authority/33,Norfolk County Council,01-Apr-11,2983339,-1444.16,,Bupa Care Services,66941,,Community Services,Long Term Care with Nursing,51550,,,,Revenue
http://statistics.data.gov.uk/doc/local-authority/33,Norfolk County Council,01-Apr-11,2983349,5478.57,,Viridian Housing,530474,,Community Services,Long Term Residential Care,52070,,,,Revenue
http://statistics.data.gov.uk/doc/local-authority/33,Norfolk County Council,01-Apr-11,2983350,5478.57,,Viridian Housing,530474,,Community Services,Long Term Residential Care,52070,,,,Revenue
http://statistics.data.gov.uk/doc/local-authority/33,Norfolk County Council,01-Apr-11,2983362,732,,Redacted - Personal Data,Redacted,,Community Services,Long Term Residential Care,52070,,,,Revenue
http://statistics.data.gov.uk/doc/local-authority/33,Norfolk County Council,01-Apr-11,2983363,732,,Redacted - Personal Data,Redacted,,Community Services,Short Term Residential Care,50210,,,,Revenue
http://statistics.data.gov.uk/doc/local-authority/33,Norfolk County Council,01-Apr-11,2983364,732,,Redacted - Personal Data,Redacted,,Community Services,Short Term Residential Care,50210,,,,Revenue
http://statistics.data.gov.uk/doc/local-authority/33,Norfolk County Council,01-Apr-11,2983365,1103.4,,Healthcare Homes Limited (Overbury),107619,,Community Services,Short Term Care with Nursing,50200,,,,Revenue
http://statistics.data.gov.uk/doc/local-authority/33,Norfolk County Council,01-Apr-11,2983370,4601.14,,Ingham Healthcare Ltd,97508,,Community Services,Personal Budget - Respite Residential Care,60130,,,,Revenue
http://statistics.data.gov.uk/doc/local-authority/33,Norfolk County Council,01-Apr-11,2983382,8250,,Bupa Care Services,66941,,Community Services,Long Term Care with Nursing,51550,,,,Revenue
http://statistics.data.gov.uk/doc/local-authority/33,Norfolk County Council,01-Apr-11,2983383,-1195.7,,Bupa Care Services,66941,,Community Services,Long Term Care with Nursing,51550,,,,Revenue
http://statistics.data.gov.uk/doc/local-authority/33,Norfolk County Council,01-Apr-11,2983384,1133.59,,Integrated Nursing Homes Ltd T/A Millbridge Nursing Home,71914,,Community Services,Free Nursing Care,55560,,,,Revenue
http://statistics.data.gov.uk/doc/local-authority/33,Norfolk County Council,01-Apr-11,2983385,2158.47,,Devaglade Limited,68223,,Community Services,Free Nursing Care,55560,,,,Revenue
http://statistics.data.gov.uk/doc/local-authority/33,Norfolk County Council,01-Apr-11,2983392,-1390.18,,Hilton Community Services Ltd,154104,,Community Services,Supported Living,52140,,,,Revenue
http://statistics.data.gov.uk/doc/local-authority/33,Norfolk County Council,01-Apr-11,2983393,7902.25,,Hilton Community Services Ltd,154104,,Community Services,Supported Living,52140,,,,Revenue
http://statistics.data.gov.uk/doc/local-authority/33,Norfolk County Council,01-Apr-11,2983402,-1144.29,,Ashbourne Homes Ltd-Re Hillcrest,80706,,Community Services,Long Term Residential Care,52070,,,,Revenue
http://statistics.data.gov.uk/doc/local-authority/33,Norfolk County Council,01-Apr-11,2983403,520,,Ashbourne Homes Ltd-Re Hillcrest,80706,,Community Services,Short Term Residential Care,50210,,,,Revenue
http://statistics.data.gov.uk/doc/local-authority/33,Norfolk County Council,01-Apr-11,2983406,530,,Ashbourne Homes Ltd-Re Hillcrest,80706,,Community Services,Long Term Residential Care,52070,,,,Revenue
http://statistics.data.gov.uk/doc/local-authority/33,Norfolk County Council,01-Apr-11,2983412,11822.5,,NETwork Interventions,277224,,Children's Services,Other Hired & Contracted Services,44810,,,,Revenue
http://statistics.data.gov.uk/doc/local-authority/33,Norfolk County Council,01-Apr-11,2983435,492.75,,NPS Property Consultants Ltd,72669,,Community Services,Adaptation/Improvement-Existing Buildings,C5320,,,,Capital
http://statistics.data.gov.uk/doc/local-authority/33,Norfolk County Council,01-Apr-11,2983437,940,,Treecare Consultants Ltd,67132,,Environment Transport & Development,Grounds Maintenance Costs,22500,,,,Revenue
http://statistics.data.gov.uk/doc/local-authority/33,Norfolk County Council,01-Apr-11,2983445,1242,,Care Quality Commission,183307,,Community Services,Cost of Licenses & Subscriptions,49020,,,,Revenue
http://statistics.data.gov.uk/doc/local-authority/33,Norfolk County Council,01-Apr-11,2983447,1708.97,,Westcotec limited,76224,,Environment Transport & Development,Highway Rechargeable Works Payments,54700,,,,Revenue
http://statistics.data.gov.uk/doc/local-authority/33,Norfolk County Council,01-Apr-11,2983456,3210.76,,Fostering Solutions Ltd,141049,,Children's Services,Payments to Organisations Providing Services To NCC,52000,,,,Revenue
http://statistics.data.gov.uk/doc/local-authority/33,Norfolk County Council,01-Apr-11,2983457,5250,,Redacted - Personal Data,Redacted,,Resources,Agency Staff - Admin/Chief Officers - Scale K and Above,13660,,,,Revenue
http://statistics.data.gov.uk/doc/local-authority/33,Norfolk County Council,01-Apr-11,2983459,2700.88,,Fostering Solutions Ltd,141049,,Children's Services,Payments to Organisations Providing Services To NCC,52000,,,,Revenue
http://statistics.data.gov.uk/doc/local-authority/33,Norfolk County Council,01-Apr-11,2983462,2700.88,,Fostering Solutions Ltd,141049,,Children's Services,Payments to Organisations Providing Services To NCC,52000,,,,Revenue
http://statistics.data.gov.uk/doc/local-authority/33,Norfolk County Council,01-Apr-11,2983465,1534.62,,Pearl Linguistics Ltd,121733,,Children's Services,Interpreters/Translators,49560,,,,Revenue
http://statistics.data.gov.uk/doc/local-authority/33,Norfolk County Council,01-Apr-11,2983467,850.5,,Jark Healthcare Ltd,134618,,Community Services,Personal Budget - Domiciliary Care,60110,,,,Revenue
http://statistics.data.gov.uk/doc/local-authority/33,Norfolk County Council,01-Apr-11,2983468,7226.25,,Dereham Coachways Ltd,68186,,Environment Transport & Development,Contract Transport  Hire,34900,,,,Revenue
http://statistics.data.gov.uk/doc/local-authority/33,Norfolk County Council,01-Apr-11,2983469,2246.25,,Dereham Coachways Ltd,68186,,Environment Transport & Development,Contract Transport  Hire,34900,,,,Revenue
http://statistics.data.gov.uk/doc/local-authority/33,Norfolk County Council,01-Apr-11,2983470,1946.75,,Dereham Coachways Ltd,68186,,Environment Transport & Development,Contract Transport  Hire,34900,,,,Revenue
http://statistics.data.gov.uk/doc/local-authority/33,Norfolk County Council,01-Apr-11,2983474,750,,N J E Taxis Ltd,72172,,Environment Transport & Development,Contract Transport  Hire,34900,,,,Revenue
http://statistics.data.gov.uk/doc/local-authority/33,Norfolk County Council,01-Apr-11,2983476,2473,,Station Taxis (Kings Lynn) Ltd,74931,,Environment Transport & Development,Contract Transport  Hire,34900,,,,Revenue
http://statistics.data.gov.uk/doc/local-authority/33,Norfolk County Council,01-Apr-11,2983479,16702.14,,Easton College,82553,,Environment Transport & Development,Grant Payments,49090,,,,Revenue
http://statistics.data.gov.uk/doc/local-authority/33,Norfolk County Council,01-Apr-11,2983481,4467.75,,Easton College,82553,,Environment Transport & Development,Grant Payments,49090,,,,Revenue
http://statistics.data.gov.uk/doc/local-authority/33,Norfolk County Council,01-Apr-11,2983482,17883.87,,Norfolk Community Health & Care,188303,,Children's Services,Operational Staff - Scale K and Above,8750,,,,Revenue
http://statistics.data.gov.uk/doc/local-authority/33,Norfolk County Council,01-Apr-11,2983485,3472,,Nexus Fostering Ltd,91708,,Children's Services,Payments to Organisations Providing Services To NCC,52000,,,,Revenue
http://statistics.data.gov.uk/doc/local-authority/33,Norfolk County Council,01-Apr-11,2983486,2700.88,,Fostering Solutions Ltd,141049,,Children's Services,Payments to Organisations Providing Services To NCC,52000,,,,Revenue
http://statistics.data.gov.uk/doc/local-authority/33,Norfolk County Council,01-Apr-11,2983488,5000,,Beeston Hall School Trust Ltd,148599,,Children's Services,Payments to Organisations Providing Services To NCC,52000,,,,Revenue
http://statistics.data.gov.uk/doc/local-authority/33,Norfolk County Council,01-Apr-11,2983489,18675.61,,Easton College,82553,,Environment Transport & Development,Grant Payments,49090,,,,Revenue
http://statistics.data.gov.uk/doc/local-authority/33,Norfolk County Council,01-Apr-11,2983491,4311.84,,Easton College,82553,,Environment Transport & Development,Grant Payments,49090,,,,Revenue
http://statistics.data.gov.uk/doc/local-authority/33,Norfolk County Council,01-Apr-11,2983494,16569.48,,Easton College,82553,,Environment Transport & Development,Grant Payments,49090,,,,Revenue
http://statistics.data.gov.uk/doc/local-authority/33,Norfolk County Council,01-Apr-11,2983496,3967.24,,Easton College,82553,,Environment Transport & Development,Grant Payments,49090,,,,Revenue
http://statistics.data.gov.uk/doc/local-authority/33,Norfolk County Council,01-Apr-11,2983497,3050.32,,Fostering Solutions Ltd,141049,,Children's Services,Payments to Organisations Providing Services To NCC,52000,,,,Revenue
http://statistics.data.gov.uk/doc/local-authority/33,Norfolk County Council,01-Apr-11,2983498,560,,Nexus Fostering Ltd,91708,,Children's Services,Child In Care Agency Fostering,50950,,,,Revenue
http://statistics.data.gov.uk/doc/local-authority/33,Norfolk County Council,01-Apr-11,2983501,2889.04,,Fostering Solutions Ltd,141049,,Children's Services,Payments to Organisations Providing Services To NCC,52000,,,,Revenue
http://statistics.data.gov.uk/doc/local-authority/33,Norfolk County Council,01-Apr-11,2983502,15949.23,,Clover Childcare Services Ltd,142117,,Children's Services,Payments to Organisations Providing Services To NCC,52000,,,,Revenue
http://statistics.data.gov.uk/doc/local-authority/33,Norfolk County Council,01-Apr-11,2983503,2889.04,,Fostering Solutions Ltd,141049,,Children's Services,Payments to Organisations Providing Services To NCC,52000,,,,Revenue
http://statistics.data.gov.uk/doc/local-authority/33,Norfolk County Council,01-Apr-11,2983505,625.63,,Norfolk Primary Care Trust,126018,,Children's Services,Private Voluntary Independent School Pre-school & Playgroup,52200,,,,Revenue
http://statistics.data.gov.uk/doc/local-authority/33,Norfolk County Council,01-Apr-11,2983506,2889.04,,Fostering Solutions Ltd,141049,,Children's Services,Payments to Organisations Providing Services To NCC,52000,,,,Revenue
http://statistics.data.gov.uk/doc/local-authority/33,Norfolk County Council,01-Apr-11,2983507,2796.29,,NPS South East Ltd,174955,,Environment Transport & Development,Grants To Outside Bodies,C4000,,,,Capital
http://statistics.data.gov.uk/doc/local-authority/33,Norfolk County Council,01-Apr-11,2983508,3210.48,,Fostering Solutions Ltd,141049,,Children's Services,Payments to Organisations Providing Services To NCC,52000,,,,Revenue
http://statistics.data.gov.uk/doc/local-authority/33,Norfolk County Council,01-Apr-11,2983511,15949.23,,Clover Childcare Services Ltd,142117,,Children's Services,Payments to Organisations Providing Services To NCC,52000,,,,Revenue
http://statistics.data.gov.uk/doc/local-authority/33,Norfolk County Council,01-Apr-11,2983512,3210.48,,Fostering Solutions Ltd,141049,,Children's Services,Payments to Organisations Providing Services To NCC,52000,,,,Revenue
http://statistics.data.gov.uk/doc/local-authority/33,Norfolk County Council,01-Apr-11,2983513,2134.65,,Dilham Pre-School,68238,,Children's Services,Private Voluntary Independent School Pre-school & Playgroup,52200,,,,Revenue
http://statistics.data.gov.uk/doc/local-authority/33,Norfolk County Council,01-Apr-11,2983514,3656.92,,Westcotec limited,76224,,Environment Transport & Development,Construction Costs Roads Other,C2570,,,,Capital
http://statistics.data.gov.uk/doc/local-authority/33,Norfolk County Council,01-Apr-11,2983515,3210.48,,Fostering Solutions Ltd,141049,,Children's Services,Payments to Organisations Providing Services To NCC,52000,,,,Revenue
http://statistics.data.gov.uk/doc/local-authority/33,Norfolk County Council,01-Apr-11,2983521,3210.48,,Fostering Solutions Ltd,141049,,Children's Services,Payments to Organisations Providing Services To NCC,52000,,,,Revenue
http://statistics.data.gov.uk/doc/local-authority/33,Norfolk County Council,01-Apr-11,2983523,3210.48,,Fostering Solutions Ltd,141049,,Children's Services,Payments to Organisations Providing Services To NCC,52000,,,,Revenue
http://statistics.data.gov.uk/doc/local-authority/33,Norfolk County Council,01-Apr-11,2983524,3210.48,,Fostering Solutions Ltd,141049,,Children's Services,Payments to Organisations Providing Services To NCC,52000,,,,Revenue
http://statistics.data.gov.uk/doc/local-authority/33,Norfolk County Council,01-Apr-11,2983526,3339,,Fostering Solutions Ltd,141049,,Children's Services,Payments to Organisations Providing Services To NCC,52000,,,,Revenue
http://statistics.data.gov.uk/doc/local-authority/33,Norfolk County Council,01-Apr-11,2983527,715.99,,Prospects for People With Learning Disabilities,73427,,Community Services,Day Care / Supported Activities,52160,,,,Revenue
http://statistics.data.gov.uk/doc/local-authority/33,Norfolk County Council,01-Apr-11,2983529,570,,Redacted - Personal Data,Redacted,,Children's Services,Sessional Fees,44560,,,,Revenue
http://statistics.data.gov.uk/doc/local-authority/33,Norfolk County Council,01-Apr-11,2983531,3229.52,,Fostering Solutions Ltd,141049,,Children's Services,Payments to Organisations Providing Services To NCC,52000,,,,Revenue
http://statistics.data.gov.uk/doc/local-authority/33,Norfolk County Council,01-Apr-11,2983533,3210.48,,Fostering Solutions Ltd,141049,,Children's Services,Payments to Organisations Providing Services To NCC,52000,,,,Revenue
http://statistics.data.gov.uk/doc/local-authority/33,Norfolk County Council,01-Apr-11,2983535,7094.25,,Aspict Solutions Ltd,66273,,Children's Services,ICT System Improvements,44000,,,,Revenue
http://statistics.data.gov.uk/doc/local-authority/33,Norfolk County Council,01-Apr-11,2983536,3210.76,,Fostering Solutions Ltd,141049,,Children's Services,Payments to Organisations Providing Services To NCC,52000,,,,Revenue
http://statistics.data.gov.uk/doc/local-authority/33,Norfolk County Council,01-Apr-11,2983538,520.1,,BNP Paribas Lease Group (Rentals) Ltd,134815,,Environment Transport & Development,Estate / Site Management Costs,22550,,,,Revenue
http://statistics.data.gov.uk/doc/local-authority/33,Norfolk County Council,01-Apr-11,2983539,3050.32,,Fostering Solutions Ltd,141049,,Children's Services,Payments to Organisations Providing Services To NCC,52000,,,,Revenue
http://statistics.data.gov.uk/doc/local-authority/33,Norfolk County Council,01-Apr-11,2983542,2170,,Cambridgeshire & Peterborough NHS Foundation Trust,104198,,Community Services,Day Care / Supported Activities,52160,,,,Revenue
http://statistics.data.gov.uk/doc/local-authority/33,Norfolk County Council,01-Apr-11,2983567,112,,Jo Jingles Norwich Area,247599,,Children's Services,Hire Of Premises,24540,,,,Revenue
http://statistics.data.gov.uk/doc/local-authority/33,Norfolk County Council,01-Apr-11,2983567,480,,Jo Jingles Norwich Area,247599,,Children's Services,Other Hired & Contracted Services,44810,,,,Revenue
http://statistics.data.gov.uk/doc/local-authority/33,Norfolk County Council,01-Apr-11,2983585,639,,NORSE Commercial Services,179148,,Resources,Printing,46510,,,,Revenue
http://statistics.data.gov.uk/doc/local-authority/33,Norfolk County Council,01-Apr-11,2983603,1661.25,,Pace Fuelcare Ltd,198157,,Community Services,Fuel Oil,24300,,,,Revenue
http://statistics.data.gov.uk/doc/local-authority/33,Norfolk County Council,01-Apr-11,2983627,3840,,Jeesal Residential Care Services Ltd,440281,,Community Services,Day Care / Supported Activities,52160,,,,Revenue
http://statistics.data.gov.uk/doc/local-authority/33,Norfolk County Council,01-Apr-11,2983632,3840,,Jeesal Residential Care Services Ltd,440281,,Community Services,Day Care / Supported Activities,52160,,,,Revenue
http://statistics.data.gov.uk/doc/local-authority/33,Norfolk County Council,01-Apr-11,2983648,1080,,Redacted - Personal Data,Redacted,,Community Services,Sessional Fees,44560,,,,Revenue
http://statistics.data.gov.uk/doc/local-authority/33,Norfolk County Council,01-Apr-11,2983650,1080,,Redacted - Personal Data,Redacted,,Community Services,Sessional Fees,44560,,,,Revenue
http://statistics.data.gov.uk/doc/local-authority/33,Norfolk County Council,01-Apr-11,2983652,1080,,Redacted - Personal Data,Redacted,,Community Services,Sessional Fees,44560,,,,Revenue
http://statistics.data.gov.uk/doc/local-authority/33,Norfolk County Council,01-Apr-11,2983653,656.8,,Papworth Trust,80019,,Community Services,Day Care / Supported Activities,52160,,,,Revenue
http://statistics.data.gov.uk/doc/local-authority/33,Norfolk County Council,01-Apr-11,2983654,1980,,Redacted - Personal Data,Redacted,,Community Services,Sessional Fees,44560,,,,Revenue
http://statistics.data.gov.uk/doc/local-authority/33,Norfolk County Council,01-Apr-11,2983659,4796.63,,BIS Colchester,66761,,Community Services,Day Care / Supported Activities,52160,,,,Revenue
http://statistics.data.gov.uk/doc/local-authority/33,Norfolk County Council,01-Apr-11,2983663,35597.86,,Norfolk Community Health & Care,188303,,Community Services,Operational Staff - Scale A to J,8600,,,,Revenue
http://statistics.data.gov.uk/doc/local-authority/33,Norfolk County Council,01-Apr-11,2983668,2836.1,,Norfolk Community Health & Care,188303,,Community Services,Operational Staff - Scale A to J,8600,,,,Revenue
http://statistics.data.gov.uk/doc/local-authority/33,Norfolk County Council,01-Apr-11,2983668,2836.1,,Norfolk Community Health & Care,188303,,Community Services,Staff Car & Cycle Allowances,35770,,,,Revenue
http://statistics.data.gov.uk/doc/local-authority/33,Norfolk County Council,01-Apr-11,2983682,641.35,,Caretech UK Ltd,81532,,Community Services,Specialised Equipment Service Contract,45550,,,,Revenue
http://statistics.data.gov.uk/doc/local-authority/33,Norfolk County Council,01-Apr-11,2983683,484.97,,Southern Electric,74726,,Community Services,Electricity,24340,,,,Revenue
http://statistics.data.gov.uk/doc/local-authority/33,Norfolk County Council,01-Apr-11,2983685,4543.2,,Royal Mail,86310,,Resources,Postage & Postal Services,43050,,,,Revenue
http://statistics.data.gov.uk/doc/local-authority/33,Norfolk County Council,01-Apr-11,2983694,450.75,,NORSE Commercial Services,179148,,Community Services,Contract Cleaning & Other Cleaning Services,25300,,,,Revenue
http://statistics.data.gov.uk/doc/local-authority/33,Norfolk County Council,01-Apr-11,2983695,5336,,Norfolk Community Health & Care,188303,,Community Services,Social Services Operational-Other1 April,8700,,,,Revenue
http://statistics.data.gov.uk/doc/local-authority/33,Norfolk County Council,01-Apr-11,2983695,118.75,,Norfolk Community Health & Care,188303,,Community Services,Staff Car & Cycle Allowances,35770,,,,Revenue
http://statistics.data.gov.uk/doc/local-authority/33,Norfolk County Council,01-Apr-11,2983698,15312,,Norfolk Community Health & Care,188303,,Community Services,Social Services Operational-Other1 April,8700,,,,Revenue
http://statistics.data.gov.uk/doc/local-authority/33,Norfolk County Council,01-Apr-11,2983698,593.42,,Norfolk Community Health & Care,188303,,Community Services,Staff Car & Cycle Allowances,35770,,,,Revenue
http://statistics.data.gov.uk/doc/local-authority/33,Norfolk County Council,01-Apr-11,2983699,929.34,,NPS Property Consultants Ltd,72669,,Children's Services,Architects Fees,C5120,,,,Capital
http://statistics.data.gov.uk/doc/local-authority/33,Norfolk County Council,01-Apr-11,2983700,9512,,Norfolk Community Health & Care,188303,,Community Services,Social Services Operational-Other1 April,8700,,,,Revenue
http://statistics.data.gov.uk/doc/local-authority/33,Norfolk County Council,01-Apr-11,2983700,269.52,,Norfolk Community Health & Care,188303,,Community Services,Staff Car & Cycle Allowances,35770,,,,Revenue
http://statistics.data.gov.uk/doc/local-authority/33,Norfolk County Council,01-Apr-11,2983703,1104.9,,Konica Minolta Business Solutions East Ltd,70912,,Community Services,Photocopying - General,46520,,,,Revenue
http://statistics.data.gov.uk/doc/local-authority/33,Norfolk County Council,01-Apr-11,2983708,1549.75,,NPS Property Consultants Ltd,72669,,Children's Services,Architects Fees,C5120,,,,Capital
http://statistics.data.gov.uk/doc/local-authority/33,Norfolk County Council,01-Apr-11,2983710,1474.9,,NORSE Commercial Services,179148,,Community Services,Contract Cleaning & Other Cleaning Services,25300,,,,Revenue
http://statistics.data.gov.uk/doc/local-authority/33,Norfolk County Council,01-Apr-11,2983714,961.8,,NPS Property Consultants Ltd,72669,,Children's Services,Architects Fees,C5120,,,,Capital
http://statistics.data.gov.uk/doc/local-authority/33,Norfolk County Council,01-Apr-11,2983723,627.9,,Southern Electric,74726,,Community Services,Electricity,24340,,,,Revenue
http://statistics.data.gov.uk/doc/local-authority/33,Norfolk County Council,01-Apr-11,2983729,658.46,,Southern Electric,74726,,Community Services,Electricity,24340,,,,Revenue
http://statistics.data.gov.uk/doc/local-authority/33,Norfolk County Council,01-Apr-11,2983736,450,,Redacted - Personal Data,Redacted,,Children's Services,Care Leavers Rent & Accommodation,54160,,,,Revenue
http://statistics.data.gov.uk/doc/local-authority/33,Norfolk County Council,01-Apr-11,2983770,2458.33,,Beacon East Ltd,321990,,Children's Services,School Academy Payments,54210,,,,Revenue
http://statistics.data.gov.uk/doc/local-authority/33,Norfolk County Council,01-Apr-11,2983812,887.5,,Redacted - Personal Data,Redacted,,Children's Services,Other Hired & Contracted Services,44810,,,,Revenue
http://statistics.data.gov.uk/doc/local-authority/33,Norfolk County Council,01-Apr-11,2983820,6297.77,,NPS South East Ltd,174955,,Children's Services,Architects Fees,C5120,,,,Capital
http://statistics.data.gov.uk/doc/local-authority/33,Norfolk County Council,01-Apr-11,2983820,4474.66,,NPS South East Ltd,174955,,Children's Services,Architects Fees,C5120,,,,Capital
http://statistics.data.gov.uk/doc/local-authority/33,Norfolk County Council,01-Apr-11,2983820,3892.25,,NPS South East Ltd,174955,,Children's Services,Architects Fees,C5120,,,,Capital
http://statistics.data.gov.uk/doc/local-authority/33,Norfolk County Council,01-Apr-11,2983820,1640.7,,NPS South East Ltd,174955,,Children's Services,Architects Fees,C5120,,,,Capital
http://statistics.data.gov.uk/doc/local-authority/33,Norfolk County Council,01-Apr-11,2983820,3657.17,,NPS South East Ltd,174955,,Children's Services,Architects Fees,C5120,,,,Capital
http://statistics.data.gov.uk/doc/local-authority/33,Norfolk County Council,01-Apr-11,2983820,5352.85,,NPS South East Ltd,174955,,Children's Services,Architects Fees,C5120,,,,Capital
http://statistics.data.gov.uk/doc/local-authority/33,Norfolk County Council,01-Apr-11,2983820,3128.85,,NPS South East Ltd,174955,,Children's Services,Architects Fees,C5120,,,,Capital
http://statistics.data.gov.uk/doc/local-authority/33,Norfolk County Council,01-Apr-11,2983820,230.43,,NPS South East Ltd,174955,,Children's Services,Architects Fees,C5120,,,,Capital
http://statistics.data.gov.uk/doc/local-authority/33,Norfolk County Council,01-Apr-11,2983820,4556.21,,NPS South East Ltd,174955,,Children's Services,Architects Fees,C5120,,,,Capital
http://statistics.data.gov.uk/doc/local-authority/33,Norfolk County Council,01-Apr-11,2983820,3336.18,,NPS South East Ltd,174955,,Children's Services,Architects Fees,C5120,,,,Capital
http://statistics.data.gov.uk/doc/local-authority/33,Norfolk County Council,01-Apr-11,2983820,7069.95,,NPS South East Ltd,174955,,Children's Services,Architects Fees,C5120,,,,Capital
http://statistics.data.gov.uk/doc/local-authority/33,Norfolk County Council,01-Apr-11,2983820,11798.11,,NPS South East Ltd,174955,,Children's Services,Architects Fees,C5120,,,,Capital
http://statistics.data.gov.uk/doc/local-authority/33,Norfolk County Council,01-Apr-11,2983820,12940.13,,NPS South East Ltd,174955,,Children's Services,Architects Fees,C5120,,,,Capital
http://statistics.data.gov.uk/doc/local-authority/33,Norfolk County Council,01-Apr-11,2983820,2123.03,,NPS South East Ltd,174955,,Children's Services,Architects Fees,C5120,,,,Capital
http://statistics.data.gov.uk/doc/local-authority/33,Norfolk County Council,01-Apr-11,2983820,4115.51,,NPS South East Ltd,174955,,Children's Services,Architects Fees,C5120,,,,Capital
http://statistics.data.gov.uk/doc/local-authority/33,Norfolk County Council,01-Apr-11,2983820,7480,,NPS South East Ltd,174955,,Children's Services,Architects Fees,C5120,,,,Capital
http://statistics.data.gov.uk/doc/local-authority/33,Norfolk County Council,01-Apr-11,2983820,5422.95,,NPS South East Ltd,174955,,Children's Services,Architects Fees,C5120,,,,Capital
http://statistics.data.gov.uk/doc/local-authority/33,Norfolk County Council,01-Apr-11,2983820,1089.21,,NPS South East Ltd,174955,,Children's Services,Architects Fees,C5120,,,,Capital
http://statistics.data.gov.uk/doc/local-authority/33,Norfolk County Council,01-Apr-11,2983820,19315.17,,NPS South East Ltd,174955,,Children's Services,Architects Fees,C5120,,,,Capital
http://statistics.data.gov.uk/doc/local-authority/33,Norfolk County Council,01-Apr-11,2983820,6267.01,,NPS South East Ltd,174955,,Children's Services,Architects Fees,C5120,,,,Capital
http://statistics.data.gov.uk/doc/local-authority/33,Norfolk County Council,01-Apr-11,2983820,1963.62,,NPS South East Ltd,174955,,Children's Services,Architects Fees,C5120,,,,Capital
http://statistics.data.gov.uk/doc/local-authority/33,Norfolk County Council,01-Apr-11,2983820,4349.89,,NPS South East Ltd,174955,,Children's Services,Architects Fees,C5120,,,,Capital
http://statistics.data.gov.uk/doc/local-authority/33,Norfolk County Council,01-Apr-11,2983820,9647.07,,NPS South East Ltd,174955,,Children's Services,Architects Fees,C5120,,,,Capital
http://statistics.data.gov.uk/doc/local-authority/33,Norfolk County Council,01-Apr-11,2983820,2939.27,,NPS South East Ltd,174955,,Children's Services,Architects Fees,C5120,,,,Capital
http://statistics.data.gov.uk/doc/local-authority/33,Norfolk County Council,01-Apr-11,2983820,3454.07,,NPS South East Ltd,174955,,Children's Services,Architects Fees,C5120,,,,Capital
http://statistics.data.gov.uk/doc/local-authority/33,Norfolk County Council,01-Apr-11,2983820,48698.99,,NPS South East Ltd,174955,,Children's Services,Architects Fees,C5120,,,,Capital
http://statistics.data.gov.uk/doc/local-authority/33,Norfolk County Council,01-Apr-11,2983823,102.04,,NPS South East Ltd,174955,,Children's Services,Architects Fees,C5120,,,,Capital
http://statistics.data.gov.uk/doc/local-authority/33,Norfolk County Council,01-Apr-11,2983823,3414.17,,NPS South East Ltd,174955,,Children's Services,Architects Fees,C5120,,,,Capital
http://statistics.data.gov.uk/doc/local-authority/33,Norfolk County Council,01-Apr-11,2983823,1180,,NPS South East Ltd,174955,,Children's Services,Architects Fees,C5120,,,,Capital
http://statistics.data.gov.uk/doc/local-authority/33,Norfolk County Council,01-Apr-11,2983823,1683.65,,NPS South East Ltd,174955,,Children's Services,Architects Fees,C5120,,,,Capital
http://statistics.data.gov.uk/doc/local-authority/33,Norfolk County Council,01-Apr-11,2983823,1794.35,,NPS South East Ltd,174955,,Children's Services,Architects Fees,C5120,,,,Capital
http://statistics.data.gov.uk/doc/local-authority/33,Norfolk County Council,01-Apr-11,2983823,1239.75,,NPS South East Ltd,174955,,Children's Services,Architects Fees,C5120,,,,Capital
http://statistics.data.gov.uk/doc/local-authority/33,Norfolk County Council,01-Apr-11,2983823,1325.82,,NPS South East Ltd,174955,,Children's Services,Architects Fees,C5120,,,,Capital
http://statistics.data.gov.uk/doc/local-authority/33,Norfolk County Council,01-Apr-11,2983823,1239.75,,NPS South East Ltd,174955,,Children's Services,Architects Fees,C5120,,,,Capital
http://statistics.data.gov.uk/doc/local-authority/33,Norfolk County Council,01-Apr-11,2983823,3776.2,,NPS South East Ltd,174955,,Children's Services,Architects Fees,C5120,,,,Capital
http://statistics.data.gov.uk/doc/local-authority/33,Norfolk County Council,01-Apr-11,2983823,1693.95,,NPS South East Ltd,174955,,Children's Services,Architects Fees,C5120,,,,Capital
http://statistics.data.gov.uk/doc/local-authority/33,Norfolk County Council,01-Apr-11,2983823,495.63,,NPS South East Ltd,174955,,Children's Services,Architects Fees,C5120,,,,Capital
http://statistics.data.gov.uk/doc/local-authority/33,Norfolk County Council,01-Apr-11,2983823,255.66,,NPS South East Ltd,174955,,Children's Services,Architects Fees,C5120,,,,Capital
http://statistics.data.gov.uk/doc/local-authority/33,Norfolk County Council,01-Apr-11,2983823,14656.07,,NPS South East Ltd,174955,,Children's Services,Architects Fees,C5120,,,,Capital
http://statistics.data.gov.uk/doc/local-authority/33,Norfolk County Council,01-Apr-11,2983823,3000,,NPS South East Ltd,174955,,Children's Services,Architects Fees,C5120,,,,Capital
http://statistics.data.gov.uk/doc/local-authority/33,Norfolk County Council,01-Apr-11,2983823,850,,NPS South East Ltd,174955,,Children's Services,Architects Fees,C5120,,,,Capital
http://statistics.data.gov.uk/doc/local-authority/33,Norfolk County Council,01-Apr-11,2983823,729.11,,NPS South East Ltd,174955,,Children's Services,Architects Fees,C5120,,,,Capital
http://statistics.data.gov.uk/doc/local-authority/33,Norfolk County Council,01-Apr-11,2983823,53.7,,NPS South East Ltd,174955,,Children's Services,Architects Fees,C5120,,,,Capital
http://statistics.data.gov.uk/doc/local-authority/33,Norfolk County Council,01-Apr-11,2983833,96051.94,,Broadland District Council,81165,,Environment Transport & Development,Grant Payments,49090,,,,Revenue
http://statistics.data.gov.uk/doc/local-authority/33,Norfolk County Council,01-Apr-11,2983837,1043.05,,NPS Property Consultants Ltd,72669,,Children's Services,Estate / Site Management Costs,22550,,,,Revenue
http://statistics.data.gov.uk/doc/local-authority/33,Norfolk County Council,01-Apr-11,2983890,5073.9,,Draper & Nichols Limited,68368,,Children's Services,Construction Cost-Adoption/Improvement Building,C2450,,,,Capital
http://statistics.data.gov.uk/doc/local-authority/33,Norfolk County Council,01-Apr-11,2983893,30182,,Draper & Nichols Limited,68368,,Children's Services,Construction Cost-Adoption/Improvement Building,C2450,,,,Capital
http://statistics.data.gov.uk/doc/local-authority/33,Norfolk County Council,01-Apr-11,2983894,30820,,Draper & Nichols Limited,68368,,Children's Services,Construction Cost-Adoption/Improvement Building,C2450,,,,Capital
http://statistics.data.gov.uk/doc/local-authority/33,Norfolk County Council,01-Apr-11,2983896,6940,,Draper & Nichols Limited,68368,,Children's Services,Construction Cost-Adoption/Improvement Building,C2450,,,,Capital
http://statistics.data.gov.uk/doc/local-authority/33,Norfolk County Council,01-Apr-11,2983897,745.7,,Sovereign Design Play Systems Ltd,86790,,Children's Services,Purchase Of Furniture,C3000,,,,Capital
http://statistics.data.gov.uk/doc/local-authority/33,Norfolk County Council,01-Apr-11,2983898,89322.5,,KIER EASTERN,70845,,Children's Services,Construction Cost-Adoption/Improvement Building,C2450,,,,Capital
http://statistics.data.gov.uk/doc/local-authority/33,Norfolk County Council,01-Apr-11,2983901,124137,,KIER EASTERN,70845,,Children's Services,Construction Cost-Adoption/Improvement Building,C2450,,,,Capital
http://statistics.data.gov.uk/doc/local-authority/33,Norfolk County Council,01-Apr-11,2983904,4746.75,,CROSSROADS  CARING FOR CARERS IN NFK LTD,79575,,Children's Services,Service Level Agreement With Organisations Providing Services to NCC,52260,,,,Revenue
http://statistics.data.gov.uk/doc/local-authority/33,Norfolk County Council,01-Apr-11,2983905,20236.97,,G W Gooch & Sons Limited,69227,,Children's Services,Construction Cost-Adoption/Improvement Building,C2450,,,,Capital
http://statistics.data.gov.uk/doc/local-authority/33,Norfolk County Council,01-Apr-11,2983906,14250,,G W Gooch & Sons Limited,69227,,Community Services,Construction Cost-Adoption/Improvement Building,C2450,,,,Capital
http://statistics.data.gov.uk/doc/local-authority/33,Norfolk County Council,01-Apr-11,2983909,62700,,E N Suiter & Sons Limited,68487,,Children's Services,Construction Cost-Adoption/Improvement Building,C2450,,,,Capital
http://statistics.data.gov.uk/doc/local-authority/33,Norfolk County Council,01-Apr-11,2983911,3713.37,,Mas Services East Anglia Ltd,84846,,Community Services,Adaptation/Improvement-Existing Buildings,C5320,,,,Capital
http://statistics.data.gov.uk/doc/local-authority/33,Norfolk County Council,01-Apr-11,2983914,3141.57,,Mas Services East Anglia Ltd,84846,,Community Services,Adaptation/Improvement-Existing Buildings,C5320,,,,Capital
http://statistics.data.gov.uk/doc/local-authority/33,Norfolk County Council,01-Apr-11,2983915,19634.05,,T Gill & Son (Norwich) Ltd,75157,,Children's Services,Construction Cost-Adoption/Improvement Building,C2450,,,,Capital
http://statistics.data.gov.uk/doc/local-authority/33,Norfolk County Council,01-Apr-11,2983923,4060,,S Mortimer,119300,,Resources,"Own Disbursements, Other",A0170,,,,Revenue
http://statistics.data.gov.uk/doc/local-authority/33,Norfolk County Council,01-Apr-11,2983924,20003.04,,John Youngs Limited,70626,,Children's Services,Construction Cost-Adoption/Improvement Building,C2450,,,,Capital
http://statistics.data.gov.uk/doc/local-authority/33,Norfolk County Council,01-Apr-11,2983927,8940,,Fire Service College,82815,,Fire & Rescue,Training Equipment,17660,,,,Revenue
http://statistics.data.gov.uk/doc/local-authority/33,Norfolk County Council,01-Apr-11,2983930,30350,,City College Norwich,81683,,Children's Services,Internal Recharge Schools,74520,,,,Revenue
http://statistics.data.gov.uk/doc/local-authority/33,Norfolk County Council,01-Apr-11,2983931,1738.8,,T & P Fire Ltd,172967,,Community Services,Purchase Of IT,C3200,,,,Capital
http://statistics.data.gov.uk/doc/local-authority/33,Norfolk County Council,01-Apr-11,2983933,1738.8,,T & P Fire Ltd,172967,,Community Services,Purchase Of IT,C3200,,,,Capital
http://statistics.data.gov.uk/doc/local-authority/33,Norfolk County Council,01-Apr-11,2983938,1910.33,,G & J Peck Ltd,125936,,Children's Services,Purchase Of Equipment,C3100,,,,Capital
http://statistics.data.gov.uk/doc/local-authority/33,Norfolk County Council,01-Apr-11,2983939,10661.9,,T & P Fire Ltd,172967,,Resources,Building Maintenance & Repairs,23300,,,,Revenue
http://statistics.data.gov.uk/doc/local-authority/33,Norfolk County Council,01-Apr-11,2983941,1950.1,,Break,79512,,Community Services,Short Term Residential Care,50210,,,,Revenue
http://statistics.data.gov.uk/doc/local-authority/33,Norfolk County Council,01-Apr-11,2983949,1135,,Admiral Civil Engineering Ltd,132632,,Children's Services,Construction Cost-Adoption/Improvement Building,C2450,,,,Capital
http://statistics.data.gov.uk/doc/local-authority/33,Norfolk County Council,01-Apr-11,2983952,20155.44,,Farrans (Construction) Ltd,397024,,Children's Services,Construction Cost-Adoption/Improvement Building,C2450,,,,Capital
http://statistics.data.gov.uk/doc/local-authority/33,Norfolk County Council,01-Apr-11,2983969,4125,,Norfolk Pension Fund,85294,,Resources,Fees/Expenses - Other Consultants,44530,,,,Revenue
http://statistics.data.gov.uk/doc/local-authority/33,Norfolk County Council,01-Apr-11,2983999,465.87,,Norfolk Community Health & Care,188303,,Community Services,Gas (mains supplied),24360,,,,Revenue
http://statistics.data.gov.uk/doc/local-authority/33,Norfolk County Council,01-Apr-11,2983999,192.1,,Norfolk Community Health & Care,188303,,Community Services,Water Services,24820,,,,Revenue
http://statistics.data.gov.uk/doc/local-authority/33,Norfolk County Council,01-Apr-11,2984030,13256.14,,Enviros Consulting Ltd,68745,,Environment Transport & Development,Fees/Expenses - Other Consultants,44530,,,,Revenue
http://statistics.data.gov.uk/doc/local-authority/33,Norfolk County Council,01-Apr-11,2984174,652.51,,Bidwells Sundry Rents Commercial Client Account,189134,,Resources,Services Provided By Landlord,24600,,,,Revenue
http://statistics.data.gov.uk/doc/local-authority/33,Norfolk County Council,01-Apr-11,2984176,226.8,,Facit Testing Ltd,546466,,Children's Services,School Equipment Inspection/Testing,A3610,,,,Revenue
http://statistics.data.gov.uk/doc/local-authority/33,Norfolk County Council,01-Apr-11,2984176,294.4,,Facit Testing Ltd,546466,,Children's Services,School Equipment Inspection/Testing,A3610,,,,Revenue
http://statistics.data.gov.uk/doc/local-authority/33,Norfolk County Council,01-Apr-11,2984176,448.2,,Facit Testing Ltd,546466,,Children's Services,School Equipment Inspection/Testing,A3610,,,,Revenue
http://statistics.data.gov.uk/doc/local-authority/33,Norfolk County Council,01-Apr-11,2984177,300.8,,Facit Testing Ltd,546466,,Children's Services,School Equipment Inspection/Testing,A3610,,,,Revenue
http://statistics.data.gov.uk/doc/local-authority/33,Norfolk County Council,01-Apr-11,2984177,509,,Facit Testing Ltd,546466,,Children's Services,School Equipment Inspection/Testing,A3610,,,,Revenue
http://statistics.data.gov.uk/doc/local-authority/33,Norfolk County Council,01-Apr-11,2984177,530,,Facit Testing Ltd,546466,,Children's Services,School Equipment Inspection/Testing,A3610,,,,Revenue
http://statistics.data.gov.uk/doc/local-authority/33,Norfolk County Council,01-Apr-11,2984177,588.2,,Facit Testing Ltd,546466,,Children's Services,School Equipment Inspection/Testing,A3610,,,,Revenue
http://statistics.data.gov.uk/doc/local-authority/33,Norfolk County Council,01-Apr-11,2984177,586.4,,Facit Testing Ltd,546466,,Children's Services,School Equipment Inspection/Testing,A3610,,,,Revenue
http://statistics.data.gov.uk/doc/local-authority/33,Norfolk County Council,01-Apr-11,2984177,226.8,,Facit Testing Ltd,546466,,Children's Services,School Equipment Inspection/Testing,A3610,,,,Revenue
http://statistics.data.gov.uk/doc/local-authority/33,Norfolk County Council,01-Apr-11,2984179,191.47,,NORSE Commercial Services,179148,,Community Services,Construction Cost-Adoption/Improvement Building,C2450,,,,Capital
http://statistics.data.gov.uk/doc/local-authority/33,Norfolk County Council,01-Apr-11,2984179,591.58,,NORSE Commercial Services,179148,,Community Services,Construction Cost-Adoption/Improvement Building,C2450,,,,Capital
http://statistics.data.gov.uk/doc/local-authority/33,Norfolk County Council,01-Apr-11,2984179,696.9,,NORSE Commercial Services,179148,,Community Services,Construction Cost-Adoption/Improvement Building,C2450,,,,Capital
http://statistics.data.gov.uk/doc/local-authority/33,Norfolk County Council,01-Apr-11,2984179,74.5,,NORSE Commercial Services,179148,,Community Services,Construction Cost-Adoption/Improvement Building,C2450,,,,Capital
http://statistics.data.gov.uk/doc/local-authority/33,Norfolk County Council,01-Apr-11,2984179,1580.2,,NORSE Commercial Services,179148,,Community Services,Construction Cost-Adoption/Improvement Building,C2450,,,,Capital
http://statistics.data.gov.uk/doc/local-authority/33,Norfolk County Council,01-Apr-11,2984179,817.08,,NORSE Commercial Services,179148,,Community Services,Construction Cost-Adoption/Improvement Building,C2450,,,,Capital
http://statistics.data.gov.uk/doc/local-authority/33,Norfolk County Council,01-Apr-11,2984179,480.04,,NORSE Commercial Services,179148,,Community Services,Construction Cost-Adoption/Improvement Building,C2450,,,,Capital
http://statistics.data.gov.uk/doc/local-authority/33,Norfolk County Council,01-Apr-11,2984179,208.89,,NORSE Commercial Services,179148,,Community Services,Construction Cost-Adoption/Improvement Building,C2450,,,,Capital
http://statistics.data.gov.uk/doc/local-authority/33,Norfolk County Council,01-Apr-11,2984179,115.86,,NORSE Commercial Services,179148,,Community Services,Construction Cost-Adoption/Improvement Building,C2450,,,,Capital
http://statistics.data.gov.uk/doc/local-authority/33,Norfolk County Council,01-Apr-11,2984179,474.19,,NORSE Commercial Services,179148,,Community Services,Construction Cost-Adoption/Improvement Building,C2450,,,,Capital
http://statistics.data.gov.uk/doc/local-authority/33,Norfolk County Council,01-Apr-11,2984179,453.25,,NORSE Commercial Services,179148,,Community Services,Construction Cost-Adoption/Improvement Building,C2450,,,,Capital
http://statistics.data.gov.uk/doc/local-authority/33,Norfolk County Council,01-Apr-11,2984179,352.05,,NORSE Commercial Services,179148,,Community Services,Construction Cost-Adoption/Improvement Building,C2450,,,,Capital
http://statistics.data.gov.uk/doc/local-authority/33,Norfolk County Council,01-Apr-11,2984179,556.64,,NORSE Commercial Services,179148,,Community Services,Construction Cost-Adoption/Improvement Building,C2450,,,,Capital
http://statistics.data.gov.uk/doc/local-authority/33,Norfolk County Council,01-Apr-11,2984179,370.97,,NORSE Commercial Services,179148,,Community Services,Construction Cost-Adoption/Improvement Building,C2450,,,,Capital
http://statistics.data.gov.uk/doc/local-authority/33,Norfolk County Council,01-Apr-11,2984179,946.04,,NORSE Commercial Services,179148,,Community Services,Construction Cost-Adoption/Improvement Building,C2450,,,,Capital
http://statistics.data.gov.uk/doc/local-authority/33,Norfolk County Council,01-Apr-11,2984179,597.77,,NORSE Commercial Services,179148,,Community Services,Construction Cost-Adoption/Improvement Building,C2450,,,,Capital
http://statistics.data.gov.uk/doc/local-authority/33,Norfolk County Council,01-Apr-11,2984198,1520.12,,Custom Group Ltd,67855,,Children's Services,Construction Cost-Adoption/Improvement Building,C2450,,,,Capital
http://statistics.data.gov.uk/doc/local-authority/33,Norfolk County Council,01-Apr-11,2984200,2940.6,,NORSE Commercial Services,179148,,Resources,Cleaning Materials Purchases,25100,,,,Revenue
http://statistics.data.gov.uk/doc/local-authority/33,Norfolk County Council,04-Apr-11,2891723,-2139.45,,NPS Property Consultants Ltd,72669,,Environment Transport & Development,Publicity,48200,,,,Revenue
http://statistics.data.gov.uk/doc/local-authority/33,Norfolk County Council,04-Apr-11,2946591,518.94,,Conservation By Design Ltd,81825,,Community Services,Materials Purchases,42160,,,,Revenue
http://statistics.data.gov.uk/doc/local-authority/33,Norfolk County Council,04-Apr-11,2946591,30,,Conservation By Design Ltd,81825,,Community Services,Postage & Postal Services,43050,,,,Revenue
http://statistics.data.gov.uk/doc/local-authority/33,Norfolk County Council,04-Apr-11,2948593,732.15,,Speechmark Publishing Ltd,74766,,Children's Services,Equipment Purchases,40850,,,,Revenue
http://statistics.data.gov.uk/doc/local-authority/33,Norfolk County Council,04-Apr-11,2955935,10902,,Matrix Display Systems Ltd,84854,,Children's Services,Purchase Of IT,C3200,,,,Capital
http://statistics.data.gov.uk/doc/local-authority/33,Norfolk County Council,04-Apr-11,2965018,1790,,Impact Social Care Ltd,128453,,Community Services,Fees & Charges,44500,,,,Revenue
http://statistics.data.gov.uk/doc/local-authority/33,Norfolk County Council,04-Apr-11,2982028,13361.93,,Resource Partners,76245,,Children's Services,Payments to Organisations Providing Services To NCC,52000,,,,Revenue
http://statistics.data.gov.uk/doc/local-authority/33,Norfolk County Council,04-Apr-11,2982055,1145.72,,Southern Electric,74726,,Community Services,Electricity,24340,,,,Revenue
http://statistics.data.gov.uk/doc/local-authority/33,Norfolk County Council,04-Apr-11,2982396,109.32,,Staff Call Recruitment Specialists Ltd,74897,,Children's Services,Cleaner/Domestic,12000,,,,Revenue
http://statistics.data.gov.uk/doc/local-authority/33,Norfolk County Council,04-Apr-11,2982396,169.28,,Staff Call Recruitment Specialists Ltd,74897,,Children's Services,Admin & Clerical - Scale A to J,13600,,,,Revenue
http://statistics.data.gov.uk/doc/local-authority/33,Norfolk County Council,04-Apr-11,2982396,385.36,,Staff Call Recruitment Specialists Ltd,74897,,Children's Services,Temporary Staff Admin & Clerical,13750,,,,Revenue
http://statistics.data.gov.uk/doc/local-authority/33,Norfolk County Council,04-Apr-11,2982396,332.28,,Staff Call Recruitment Specialists Ltd,74897,,Children's Services,Temporary Staff Admin & Clerical,13750,,,,Revenue
http://statistics.data.gov.uk/doc/local-authority/33,Norfolk County Council,04-Apr-11,2982396,159.65,,Staff Call Recruitment Specialists Ltd,74897,,Children's Services,Agency Staff,13800,,,,Revenue
http://statistics.data.gov.uk/doc/local-authority/33,Norfolk County Council,04-Apr-11,2982396,441.41,,Staff Call Recruitment Specialists Ltd,74897,,Children's Services,Temporary Staff Admin & Clerical,13750,,,,Revenue
http://statistics.data.gov.uk/doc/local-authority/33,Norfolk County Council,04-Apr-11,2982396,418.38,,Staff Call Recruitment Specialists Ltd,74897,,Children's Services,Other Professional Services,44650,,,,Revenue
http://statistics.data.gov.uk/doc/local-authority/33,Norfolk County Council,04-Apr-11,2982396,585,,Staff Call Recruitment Specialists Ltd,74897,,Children's Services,Other Professional Services,44650,,,,Revenue
http://statistics.data.gov.uk/doc/local-authority/33,Norfolk County Council,04-Apr-11,2982613,1764.9,,Orwell Trucks Limited,72797,,Environment Transport & Development,Fixed Price Vehicle Maintenance,32500,,,,Revenue
http://statistics.data.gov.uk/doc/local-authority/33,Norfolk County Council,04-Apr-11,2982627,-1764.9,,Orwell Trucks Limited,72797,,Environment Transport & Development,Fixed Price Vehicle Maintenance,32500,,,,Revenue
http://statistics.data.gov.uk/doc/local-authority/33,Norfolk County Council,04-Apr-11,2983748,532.8,,Southern Electric,74726,,Community Services,Electricity,24340,,,,Revenue
http://statistics.data.gov.uk/doc/local-authority/33,Norfolk County Council,04-Apr-11,2983752,575.34,,Southern Electric,74726,,Community Services,Electricity,24340,,,,Revenue
http://statistics.data.gov.uk/doc/local-authority/33,Norfolk County Council,04-Apr-11,2983762,547.59,,Southern Electric,74726,,Community Services,Electricity,24340,,,,Revenue
http://statistics.data.gov.uk/doc/local-authority/33,Norfolk County Council,04-Apr-11,2983764,-547.59,,Southern Electric,74726,,Community Services,Electricity,24340,,,,Revenue
http://statistics.data.gov.uk/doc/local-authority/33,Norfolk County Council,04-Apr-11,2983768,-575.34,,Southern Electric,74726,,Community Services,Electricity,24340,,,,Revenue
http://statistics.data.gov.uk/doc/local-authority/33,Norfolk County Council,04-Apr-11,2984572,1431,,Fostering Solutions Ltd,141049,,Children's Services,Child In Care Agency Fostering,50950,,,,Revenue
http://statistics.data.gov.uk/doc/local-authority/33,Norfolk County Council,04-Apr-11,2985043,382.5,,NPS Property Consultants Ltd,72669,,Community Services,"Certificate - Electricity, Power & Light",C2780,,,,Capital
http://statistics.data.gov.uk/doc/local-authority/33,Norfolk County Council,04-Apr-11,2985043,434.25,,NPS Property Consultants Ltd,72669,,Community Services,"Certificate - Electricity, Power & Light",C2780,,,,Capital
http://statistics.data.gov.uk/doc/local-authority/33,Norfolk County Council,04-Apr-11,2985043,376.5,,NPS Property Consultants Ltd,72669,,Community Services,"Certificate - Electricity, Power & Light",C2780,,,,Capital
http://statistics.data.gov.uk/doc/local-authority/33,Norfolk County Council,04-Apr-11,2985043,415.5,,NPS Property Consultants Ltd,72669,,Community Services,"Certificate - Electricity, Power & Light",C2780,,,,Capital
http://statistics.data.gov.uk/doc/local-authority/33,Norfolk County Council,04-Apr-11,2985043,260.07,,NPS Property Consultants Ltd,72669,,Community Services,Certificate - Plant Replacement,C3210,,,,Capital
http://statistics.data.gov.uk/doc/local-authority/33,Norfolk County Council,04-Apr-11,2985063,1517,,Blue Group International Ltd,81011,,Children's Services,Operational Staff - Scale A to J,8600,,,,Revenue
http://statistics.data.gov.uk/doc/local-authority/33,Norfolk County Council,04-Apr-11,2985064,1150.5,,DLeeves Social Care Ltd,459300,,Children's Services,Operational Staff - Scale A to J,8600,,,,Revenue
http://statistics.data.gov.uk/doc/local-authority/33,Norfolk County Council,04-Apr-11,2985064,366,,DLeeves Social Care Ltd,459300,,Children's Services,Staff Car & Cycle Allowances,35770,,,,Revenue
http://statistics.data.gov.uk/doc/local-authority/33,Norfolk County Council,04-Apr-11,2985064,59.24,,DLeeves Social Care Ltd,459300,,Children's Services,Staff Subsistence & Conference Expenses,46700,,,,Revenue
http://statistics.data.gov.uk/doc/local-authority/33,Norfolk County Council,04-Apr-11,2985070,600,,Kadesh Education Ltd,173578,,Children's Services,Private Voluntary Independent School Pre-school & Playgroup,52200,,,,Revenue
http://statistics.data.gov.uk/doc/local-authority/33,Norfolk County Council,04-Apr-11,2985081,5233.5,,J Whitmore Catering,101219,,Community Services,Private Contractor Catering Payments,52600,,,,Revenue
http://statistics.data.gov.uk/doc/local-authority/33,Norfolk County Council,04-Apr-11,2985091,520.61,,Konica Minolta Business Solutions East Ltd,70912,,Community Services,Photocopying - General,46520,,,,Revenue
http://statistics.data.gov.uk/doc/local-authority/33,Norfolk County Council,04-Apr-11,2985092,800,,HSBC Invoice Finance UK Ltd,171995,,Children's Services,Operational Staff - Scale A to J,8600,,,,Revenue
http://statistics.data.gov.uk/doc/local-authority/33,Norfolk County Council,04-Apr-11,2985099,2700,,Methwold Nursery School,126610,,Children's Services,Staff Subsistence & Conference Expenses,46700,,,,Revenue
http://statistics.data.gov.uk/doc/local-authority/33,Norfolk County Council,04-Apr-11,2985109,2700,,Strawberry Patch Nursery & Pre School,75551,,Children's Services,Staff Subsistence & Conference Expenses,46700,,,,Revenue
http://statistics.data.gov.uk/doc/local-authority/33,Norfolk County Council,04-Apr-11,2985110,1010.62,,Attlebridge Concrete Products Limited,66323,,Environment Transport & Development,Grounds Maintenance Costs,22500,,,,Revenue
http://statistics.data.gov.uk/doc/local-authority/33,Norfolk County Council,04-Apr-11,2985111,630,,Norwich City Council,90769,,Community Services,Rents and Hire of Premises & Facilities,24500,,,,Revenue
http://statistics.data.gov.uk/doc/local-authority/33,Norfolk County Council,04-Apr-11,2985116,630,,Norwich City Council,90769,,Community Services,Rents and Hire of Premises & Facilities,24500,,,,Revenue
http://statistics.data.gov.uk/doc/local-authority/33,Norfolk County Council,04-Apr-11,2985117,1207.5,,William Cowper Pre Sch Nursery,76280,,Children's Services,Staff Subsistence & Conference Expenses,46700,,,,Revenue
http://statistics.data.gov.uk/doc/local-authority/33,Norfolk County Council,04-Apr-11,2985119,2625.6,,Chapelfield Childrens Day Nursery,67413,,Children's Services,Staff Subsistence & Conference Expenses,46700,,,,Revenue
http://statistics.data.gov.uk/doc/local-authority/33,Norfolk County Council,04-Apr-11,2985124,1560,,Treetots Playgroup,75746,,Children's Services,Staff Subsistence & Conference Expenses,46700,,,,Revenue
http://statistics.data.gov.uk/doc/local-authority/33,Norfolk County Council,04-Apr-11,2985128,3250,,HSBC Invoice Finance UK Ltd,171995,,Children's Services,Operational Staff - Scale A to J,8600,,,,Revenue
http://statistics.data.gov.uk/doc/local-authority/33,Norfolk County Council,04-Apr-11,2985136,1400,,Easton Countryside Services,142789,,Environment Transport & Development,Grounds Maintenance Costs,22500,,,,Revenue
http://statistics.data.gov.uk/doc/local-authority/33,Norfolk County Council,04-Apr-11,2985137,1760,,T C Garrett Ltd,75121,,Children's Services,Building Repairs,A3780,,,,Revenue
http://statistics.data.gov.uk/doc/local-authority/33,Norfolk County Council,04-Apr-11,2985152,975,,Haller Builders,83291,,Environment Transport & Development,Construction Costs - Roads - Management,C2500,,,,Capital
http://statistics.data.gov.uk/doc/local-authority/33,Norfolk County Council,04-Apr-11,2985155,990,,Haller Builders,83291,,Environment Transport & Development,Construction Costs - Roads - Management,C2500,,,,Capital
http://statistics.data.gov.uk/doc/local-authority/33,Norfolk County Council,04-Apr-11,2985161,736.12,,JSF 4X4 Limited,70536,,Environment Transport & Development,Other Vehicles Running Costs,34600,,,,Revenue
http://statistics.data.gov.uk/doc/local-authority/33,Norfolk County Council,04-Apr-11,2985164,798.6,,PHS Group Plc,73070,,Community Services,Refuse Collection Costs,25270,,,,Revenue
http://statistics.data.gov.uk/doc/local-authority/33,Norfolk County Council,04-Apr-11,2985170,828,,Imtech Aqua Maintenance Ltd,284255,,Children's Services,Tank Clean/Water System Disinfection,A3630,,,,Revenue
http://statistics.data.gov.uk/doc/local-authority/33,Norfolk County Council,04-Apr-11,2985175,560,,C R Dunn t/a Seventh House Digital Media,470296,,Community Services,Fees & Charges,44500,,,,Revenue
http://statistics.data.gov.uk/doc/local-authority/33,Norfolk County Council,04-Apr-11,2985182,1820,,Mr Bees -  Family Centre,68902,,Children's Services,Staff Subsistence & Conference Expenses,46700,,,,Revenue
http://statistics.data.gov.uk/doc/local-authority/33,Norfolk County Council,04-Apr-11,2985234,1010,,Redacted - Personal Data,Redacted,,Environment Transport & Development,Advanced Driving Instructor Fees,44740,,,,Revenue
http://statistics.data.gov.uk/doc/local-authority/33,Norfolk County Council,04-Apr-11,2985237,1120,,Redacted - Personal Data,Redacted,,Children's Services,Care Leavers Rent & Accommodation,54160,,,,Revenue
http://statistics.data.gov.uk/doc/local-authority/33,Norfolk County Council,04-Apr-11,2985239,487.86,,Staff Call Recruitment Specialists Ltd,74897,,Children's Services,Admin & Clerical - Scale A to J,13600,,,,Revenue
http://statistics.data.gov.uk/doc/local-authority/33,Norfolk County Council,04-Apr-11,2985257,13756.92,,BNP Paribas Lease Group (Rentals) Ltd,134815,,Children's Services,Photocopying - General,46520,,,,Revenue
http://statistics.data.gov.uk/doc/local-authority/33,Norfolk County Council,04-Apr-11,2985259,1108.95,,Konica Minolta Business Solutions East Ltd,70912,,Children's Services,Photocopying - General,46520,,,,Revenue
http://statistics.data.gov.uk/doc/local-authority/33,Norfolk County Council,04-Apr-11,2985276,580,,S Howells,86460,,Environment Transport & Development,Advanced Driving Instructor Fees,44740,,,,Revenue
http://statistics.data.gov.uk/doc/local-authority/33,Norfolk County Council,04-Apr-11,2985282,644,,Barry Gotts Advanced Driving Services,125629,,Environment Transport & Development,Advanced Driving Instructor Fees,44740,,,,Revenue
http://statistics.data.gov.uk/doc/local-authority/33,Norfolk County Council,04-Apr-11,2985285,3637.77,,Redacted - Personal Data,Redacted,,Children's Services,Foster Parents Payments,53600,,,,Revenue
http://statistics.data.gov.uk/doc/local-authority/33,Norfolk County Council,04-Apr-11,2985363,2800,,The Verderers Ltd,143125,,Environment Transport & Development,Grounds Maintenance Costs,22500,,,,Revenue
http://statistics.data.gov.uk/doc/local-authority/33,Norfolk County Council,04-Apr-11,2985367,5388.58,,Comm Tech Martham Limited,67613,,Fire & Rescue,Telephone Rental & Calls,43200,,,,Revenue
http://statistics.data.gov.uk/doc/local-authority/33,Norfolk County Council,04-Apr-11,2985367,200.1,,Comm Tech Martham Limited,67613,,Fire & Rescue,Telephone Rental & Calls,43200,,,,Revenue
http://statistics.data.gov.uk/doc/local-authority/33,Norfolk County Council,04-Apr-11,2985371,10096.97,,Safequip Ltd,455292,,Fire & Rescue,Equipment Purchases,40850,,,,Revenue
http://statistics.data.gov.uk/doc/local-authority/33,Norfolk County Council,04-Apr-11,2985382,1033.2,,The Royal British Legion Homes,115687,,Community Services,Day Care / Supported Activities,52160,,,,Revenue
http://statistics.data.gov.uk/doc/local-authority/33,Norfolk County Council,04-Apr-11,2985387,1823.92,,Dimensions (NSO) Ltd,144113,,Community Services,Day Care / Supported Activities,52160,,,,Revenue
http://statistics.data.gov.uk/doc/local-authority/33,Norfolk County Council,04-Apr-11,2985392,150.75,,Redacted - Personal Data,Redacted,,Children's Services,Voluntary Driver Payments,35700,,,,Revenue
http://statistics.data.gov.uk/doc/local-authority/33,Norfolk County Council,04-Apr-11,2985392,576.8,,Redacted - Personal Data,Redacted,,Children's Services,Other Expenses,46970,,,,Revenue
http://statistics.data.gov.uk/doc/local-authority/33,Norfolk County Council,04-Apr-11,2985395,2554.79,,May Gurney Ltd,71794,,Environment Transport & Development,Schedule of Rates Vehicle Maintenance,32520,,,,Revenue
http://statistics.data.gov.uk/doc/local-authority/33,Norfolk County Council,04-Apr-11,2985400,666.4,,Dimensions (NSO) Ltd,144113,,Community Services,Day Care / Supported Activities,52160,,,,Revenue
http://statistics.data.gov.uk/doc/local-authority/33,Norfolk County Council,04-Apr-11,2985402,906.08,,May Gurney Ltd,71794,,Environment Transport & Development,Fixed Price Vehicle Maintenance,32500,,,,Revenue
http://statistics.data.gov.uk/doc/local-authority/33,Norfolk County Council,04-Apr-11,2985402,464.87,,May Gurney Ltd,71794,,Environment Transport & Development,Schedule of Rates Vehicle Maintenance,32520,,,,Revenue
http://statistics.data.gov.uk/doc/local-authority/33,Norfolk County Council,04-Apr-11,2985404,1070.16,,Royal Mencap Society,74022,,Community Services,Day Care / Supported Activities,52160,,,,Revenue
http://statistics.data.gov.uk/doc/local-authority/33,Norfolk County Council,04-Apr-11,2985406,3135,,ADCS,180457,,Children's Services,Cost of Licenses & Subscriptions,49020,,,,Revenue
http://statistics.data.gov.uk/doc/local-authority/33,Norfolk County Council,04-Apr-11,2985407,760,,Redacted - Personal Data,Redacted,,Environment Transport & Development,Advanced Driving Instructor Fees,44740,,,,Revenue
http://statistics.data.gov.uk/doc/local-authority/33,Norfolk County Council,04-Apr-11,2985409,205.62,,May Gurney Ltd,71794,,Environment Transport & Development,Fixed Price Vehicle Maintenance,32500,,,,Revenue
http://statistics.data.gov.uk/doc/local-authority/33,Norfolk County Council,04-Apr-11,2985409,251.91,,May Gurney Ltd,71794,,Environment Transport & Development,Vehicle Abuse/Wear & Tear Costs,32580,,,,Revenue
http://statistics.data.gov.uk/doc/local-authority/33,Norfolk County Council,04-Apr-11,2985413,69.96,,Comensura Ltd,455300,,Community Services,Operational Staff - Scale A to J,8600,,,,Revenue
http://statistics.data.gov.uk/doc/local-authority/33,Norfolk County Council,04-Apr-11,2985413,1300.73,,Comensura Ltd,455300,,Children's Services,Agency Staff - Operational APT&C,8610,,,,Revenue
http://statistics.data.gov.uk/doc/local-authority/33,Norfolk County Council,04-Apr-11,2985413,1389.96,,Comensura Ltd,455300,,Children's Services,Agency Staff - Operational APT&C,8610,,,,Revenue
http://statistics.data.gov.uk/doc/local-authority/33,Norfolk County Council,04-Apr-11,2985413,1269.84,,Comensura Ltd,455300,,Children's Services,Agency Staff - Operational APT&C,8610,,,,Revenue
http://statistics.data.gov.uk/doc/local-authority/33,Norfolk County Council,04-Apr-11,2985413,1517,,Comensura Ltd,455300,,Children's Services,Agency Staff - Operational APT&C,8610,,,,Revenue
http://statistics.data.gov.uk/doc/local-authority/33,Norfolk County Council,04-Apr-11,2985413,2539.68,,Comensura Ltd,455300,,Children's Services,Agency Staff - Operational APT&C,8610,,,,Revenue
http://statistics.data.gov.uk/doc/local-authority/33,Norfolk County Council,04-Apr-11,2985413,1167.33,,Comensura Ltd,455300,,Children's Services,Agency Staff - Operational APT&C,8610,,,,Revenue
http://statistics.data.gov.uk/doc/local-authority/33,Norfolk County Council,04-Apr-11,2985413,446.68,,Comensura Ltd,455300,,Community Services,Agency Staff - Operational APT&C,8610,,,,Revenue
http://statistics.data.gov.uk/doc/local-authority/33,Norfolk County Council,04-Apr-11,2985413,119.55,,Comensura Ltd,455300,,Community Services,Agency Staff - Operational APT&C,8610,,,,Revenue
http://statistics.data.gov.uk/doc/local-authority/33,Norfolk County Council,04-Apr-11,2985413,130.68,,Comensura Ltd,455300,,Community Services,Agency Staff - Operational APT&C,8610,,,,Revenue
http://statistics.data.gov.uk/doc/local-authority/33,Norfolk County Council,04-Apr-11,2985413,1132.2,,Comensura Ltd,455300,,Community Services,Agency Staff - Operational APT&C,8610,,,,Revenue
http://statistics.data.gov.uk/doc/local-authority/33,Norfolk County Council,04-Apr-11,2985413,1158.38,,Comensura Ltd,455300,,Community Services,Agency Staff - Operational APT&C,8610,,,,Revenue
http://statistics.data.gov.uk/doc/local-authority/33,Norfolk County Council,04-Apr-11,2985413,1143.28,,Comensura Ltd,455300,,Community Services,Agency Staff - Operational APT&C,8610,,,,Revenue
http://statistics.data.gov.uk/doc/local-authority/33,Norfolk County Council,04-Apr-11,2985413,409.41,,Comensura Ltd,455300,,Community Services,Agency Staff - Operational APT&C,8610,,,,Revenue
http://statistics.data.gov.uk/doc/local-authority/33,Norfolk County Council,04-Apr-11,2985413,151.58,,Comensura Ltd,455300,,Community Services,Agency Staff - Operational APT&C,8610,,,,Revenue
http://statistics.data.gov.uk/doc/local-authority/33,Norfolk County Council,04-Apr-11,2985413,394.91,,Comensura Ltd,455300,,Community Services,Agency Staff - Operational APT&C,8610,,,,Revenue
http://statistics.data.gov.uk/doc/local-authority/33,Norfolk County Council,04-Apr-11,2985413,220.49,,Comensura Ltd,455300,,Community Services,Agency Staff - Operational APT&C,8610,,,,Revenue
http://statistics.data.gov.uk/doc/local-authority/33,Norfolk County Council,04-Apr-11,2985413,2267.74,,Comensura Ltd,455300,,Community Services,Agency Staff - Operational APT&C,8610,,,,Revenue
http://statistics.data.gov.uk/doc/local-authority/33,Norfolk County Council,04-Apr-11,2985413,587.25,,Comensura Ltd,455300,,Community Services,Agency Staff - Operational APT&C,8610,,,,Revenue
http://statistics.data.gov.uk/doc/local-authority/33,Norfolk County Council,04-Apr-11,2985413,217.68,,Comensura Ltd,455300,,Community Services,Agency Staff - Operational APT&C,8610,,,,Revenue
http://statistics.data.gov.uk/doc/local-authority/33,Norfolk County Council,04-Apr-11,2985413,1871.68,,Comensura Ltd,455300,,Environment Transport & Development,Agency Staff - Operational APT&C,8610,,,,Revenue
http://statistics.data.gov.uk/doc/local-authority/33,Norfolk County Council,04-Apr-11,2985413,172.64,,Comensura Ltd,455300,,Community Services,Agency Staff - Operational - Manual,8810,,,,Revenue
http://statistics.data.gov.uk/doc/local-authority/33,Norfolk County Council,04-Apr-11,2985413,213.9,,Comensura Ltd,455300,,Community Services,Agency Staff - Operational - Manual,8810,,,,Revenue
http://statistics.data.gov.uk/doc/local-authority/33,Norfolk County Council,04-Apr-11,2985413,604.02,,Comensura Ltd,455300,,Community Services,Agency Staff - Operational - Manual,8810,,,,Revenue
http://statistics.data.gov.uk/doc/local-authority/33,Norfolk County Council,04-Apr-11,2985413,124.74,,Comensura Ltd,455300,,Community Services,Agency Staff - Operational - Manual,8810,,,,Revenue
http://statistics.data.gov.uk/doc/local-authority/33,Norfolk County Council,04-Apr-11,2985413,2058.77,,Comensura Ltd,455300,,Community Services,Agency Staff - Operational - Manual,8810,,,,Revenue
http://statistics.data.gov.uk/doc/local-authority/33,Norfolk County Council,04-Apr-11,2985413,255.51,,Comensura Ltd,455300,,Community Services,Agency Staff - Operational - Manual,8810,,,,Revenue
http://statistics.data.gov.uk/doc/local-authority/33,Norfolk County Council,04-Apr-11,2985413,339.49,,Comensura Ltd,455300,,Community Services,Agency Staff - Operational - Manual,8810,,,,Revenue
http://statistics.data.gov.uk/doc/local-authority/33,Norfolk County Council,04-Apr-11,2985413,61.94,,Comensura Ltd,455300,,Community Services,Agency Staff - Operational - Manual,8810,,,,Revenue
http://statistics.data.gov.uk/doc/local-authority/33,Norfolk County Council,04-Apr-11,2985413,75.78,,Comensura Ltd,455300,,Community Services,Agency Staff - Operational - Manual,8810,,,,Revenue
http://statistics.data.gov.uk/doc/local-authority/33,Norfolk County Council,04-Apr-11,2985413,1548.32,,Comensura Ltd,455300,,Community Services,Agency Staff - Operational - Manual,8810,,,,Revenue
http://statistics.data.gov.uk/doc/local-authority/33,Norfolk County Council,04-Apr-11,2985413,397.04,,Comensura Ltd,455300,,Community Services,Agency Staff - Operational - Manual,8810,,,,Revenue
http://statistics.data.gov.uk/doc/local-authority/33,Norfolk County Council,04-Apr-11,2985413,376.98,,Comensura Ltd,455300,,Community Services,Agency Staff - Operational - Manual,8810,,,,Revenue
http://statistics.data.gov.uk/doc/local-authority/33,Norfolk County Council,04-Apr-11,2985413,326.58,,Comensura Ltd,455300,,Community Services,Agency Staff - Operational - Manual,8810,,,,Revenue
http://statistics.data.gov.uk/doc/local-authority/33,Norfolk County Council,04-Apr-11,2985413,110.7,,Comensura Ltd,455300,,Community Services,Agency Staff - Operational - Manual,8810,,,,Revenue
http://statistics.data.gov.uk/doc/local-authority/33,Norfolk County Council,04-Apr-11,2985413,151.92,,Comensura Ltd,455300,,Community Services,Agency Staff - Operational - Manual,8810,,,,Revenue
http://statistics.data.gov.uk/doc/local-authority/33,Norfolk County Council,04-Apr-11,2985413,210.24,,Comensura Ltd,455300,,Community Services,Agency Staff - Operational - Manual,8810,,,,Revenue
http://statistics.data.gov.uk/doc/local-authority/33,Norfolk County Council,04-Apr-11,2985413,290.81,,Comensura Ltd,455300,,Community Services,Agency Staff - Operational - Manual,8810,,,,Revenue
http://statistics.data.gov.uk/doc/local-authority/33,Norfolk County Council,04-Apr-11,2985413,867.01,,Comensura Ltd,455300,,Community Services,Agency Staff - Operational - Manual,8810,,,,Revenue
http://statistics.data.gov.uk/doc/local-authority/33,Norfolk County Council,04-Apr-11,2985413,413.61,,Comensura Ltd,455300,,Community Services,Agency Staff - Operational - Manual,8810,,,,Revenue
http://statistics.data.gov.uk/doc/local-authority/33,Norfolk County Council,04-Apr-11,2985413,128.8,,Comensura Ltd,455300,,Community Services,Agency Staff - Operational - Manual,8810,,,,Revenue
http://statistics.data.gov.uk/doc/local-authority/33,Norfolk County Council,04-Apr-11,2985413,1976.6,,Comensura Ltd,455300,,Community Services,Agency Staff - Operational - Manual,8810,,,,Revenue
http://statistics.data.gov.uk/doc/local-authority/33,Norfolk County Council,04-Apr-11,2985413,1741.11,,Comensura Ltd,455300,,Community Services,Agency Staff - Operational - Manual,8810,,,,Revenue
http://statistics.data.gov.uk/doc/local-authority/33,Norfolk County Council,04-Apr-11,2985413,2891.32,,Comensura Ltd,455300,,Community Services,Agency Staff - Operational - Manual,8810,,,,Revenue
http://statistics.data.gov.uk/doc/local-authority/33,Norfolk County Council,04-Apr-11,2985413,73.91,,Comensura Ltd,455300,,Community Services,Agency Staff - Operational - Manual,8810,,,,Revenue
http://statistics.data.gov.uk/doc/local-authority/33,Norfolk County Council,04-Apr-11,2985413,1243.16,,Comensura Ltd,455300,,Community Services,Agency Staff - Operational - Manual,8810,,,,Revenue
http://statistics.data.gov.uk/doc/local-authority/33,Norfolk County Council,04-Apr-11,2985413,52.32,,Comensura Ltd,455300,,Community Services,Agency Staff - Premises Manual,12560,,,,Revenue
http://statistics.data.gov.uk/doc/local-authority/33,Norfolk County Council,04-Apr-11,2985414,466.63,,May Gurney Ltd,71794,,Environment Transport & Development,Schedule of Rates Vehicle Maintenance,32520,,,,Revenue
http://statistics.data.gov.uk/doc/local-authority/33,Norfolk County Council,04-Apr-11,2985418,888.66,,Southern Electric,74726,,Resources,Electricity,24340,,,,Revenue
http://statistics.data.gov.uk/doc/local-authority/33,Norfolk County Council,04-Apr-11,2985446,817.38,,Southern Electric,74726,,Environment Transport & Development,Electricity,24340,,,,Revenue
http://statistics.data.gov.uk/doc/local-authority/33,Norfolk County Council,04-Apr-11,2985451,644.11,,May Gurney Ltd,71794,,Environment Transport & Development,Schedule of Rates Vehicle Maintenance,32520,,,,Revenue
http://statistics.data.gov.uk/doc/local-authority/33,Norfolk County Council,04-Apr-11,2985458,750.07,,May Gurney Ltd,71794,,Environment Transport & Development,Schedule of Rates Vehicle Maintenance,32520,,,,Revenue
http://statistics.data.gov.uk/doc/local-authority/33,Norfolk County Council,04-Apr-11,2985461,559.04,,May Gurney Ltd,71794,,Environment Transport & Development,Schedule of Rates Vehicle Maintenance,32520,,,,Revenue
http://statistics.data.gov.uk/doc/local-authority/33,Norfolk County Council,04-Apr-11,2985462,0.14,,May Gurney Ltd,71794,,Environment Transport & Development,Fixed Price Vehicle Maintenance,32500,,,,Revenue
http://statistics.data.gov.uk/doc/local-authority/33,Norfolk County Council,04-Apr-11,2985462,513.28,,May Gurney Ltd,71794,,Environment Transport & Development,Schedule of Rates Vehicle Maintenance,32520,,,,Revenue
http://statistics.data.gov.uk/doc/local-authority/33,Norfolk County Council,04-Apr-11,2985465,830.73,,May Gurney Ltd,71794,,Environment Transport & Development,Schedule of Rates Vehicle Maintenance,32520,,,,Revenue
http://statistics.data.gov.uk/doc/local-authority/33,Norfolk County Council,04-Apr-11,2985470,2541.94,,Prestige Nursing,73367,,Community Services,Domiciliary Care,51610,,,,Revenue
http://statistics.data.gov.uk/doc/local-authority/33,Norfolk County Council,04-Apr-11,2985481,655.61,,May Gurney Ltd,71794,,Environment Transport & Development,Fixed Price Vehicle Maintenance,32500,,,,Revenue
http://statistics.data.gov.uk/doc/local-authority/33,Norfolk County Council,04-Apr-11,2985481,153.17,,May Gurney Ltd,71794,,Environment Transport & Development,Vehicle Abuse/Wear & Tear Costs,32580,,,,Revenue
http://statistics.data.gov.uk/doc/local-authority/33,Norfolk County Council,04-Apr-11,2985484,517.11,,May Gurney Ltd,71794,,Environment Transport & Development,Fixed Price Vehicle Maintenance,32500,,,,Revenue
http://statistics.data.gov.uk/doc/local-authority/33,Norfolk County Council,04-Apr-11,2985484,277.37,,May Gurney Ltd,71794,,Environment Transport & Development,Schedule of Rates Vehicle Maintenance,32520,,,,Revenue
http://statistics.data.gov.uk/doc/local-authority/33,Norfolk County Council,04-Apr-11,2985484,44.36,,May Gurney Ltd,71794,,Environment Transport & Development,Vehicle Abuse/Wear & Tear Costs,32580,,,,Revenue
http://statistics.data.gov.uk/doc/local-authority/33,Norfolk County Council,04-Apr-11,2985496,96,,T & A Plant Ltd,505470,,Environment Transport & Development,Road Maintenance Contractor Payments,45070,,,,Revenue
http://statistics.data.gov.uk/doc/local-authority/33,Norfolk County Council,04-Apr-11,2985496,1500,,T & A Plant Ltd,505470,,Environment Transport & Development,Road Maintenance Contractor Payments,45070,,,,Revenue
